Workbook

Sheet Intro
B2: Pro správnou funkčnost šablony je zapotřebí povolit makra.
B3: A jelikož nemáte makra povolená, zobrazuje se tento list.
B4: Makra povolíte v menu Soubor/Možnosti/Centrum zabezpečení/Nastavení centra zabezpečení/ Nastavení maker a zaškrtněte volbu Povolit všechny makra
B5: Po povolení maker šablonu zavřete a otevřete znovu.

Sheet Summary (hidden)
G1: =SUM(F:F) -> 0
B2: Plánovací proces 2021 - šablona pro úpravu návrhu rozpočtu analytického účtu do středisek a měsíců
B4: Garant | C4: OPP
B5: Jméno | C5: Ing. Jarmila Neudörflerová
B6: Email | C6: Jarmila.Neudorflerova@fnol.cz
B8: Analytický účet | D8: Rozpočet
D9: 1_Původní | E9: 2_Upravený | F9: 3_Rozdíly
B10: 64908009 | C10: Smlouva o účelově vázané úplatě | D10: =IFERROR(VLOOKUP(B10,'1_Původní'!A:P,16,FALSE),0) -> 215000 | E10: =IFERROR(VLOOKUP(B10,'2_Upravený'!A:P,16,FALSE),0) -> 215000 | F10: =ROUND(E10-D10,0) -> 0
B11: 64924438 | C11: Výkony etické komise | D11: =IFERROR(VLOOKUP(B11,'1_Původní'!A:P,16,FALSE),0) -> 2300000 | E11: =IFERROR(VLOOKUP(B11,'2_Upravený'!A:P,16,FALSE),0) -> 2300000 | F11: =ROUND(E11-D11,0) -> 0
B12: 64924439 | C12: Klinické hodnocení - tuzemci (81xx,9003,9028) | D12: =IFERROR(VLOOKUP(B12,'1_Původní'!A:P,16,FALSE),0) -> 35200000 | E12: =IFERROR(VLOOKUP(B12,'2_Upravený'!A:P,16,FALSE),0) -> 35200000 | F12: 0
B13: 64924440 | C13: Klinické hodnocení - EU (81xx,9003,9028) | D13: =IFERROR(VLOOKUP(B13,'1_Původní'!A:P,16,FALSE),0) -> 6340000 | E13: =IFERROR(VLOOKUP(B13,'2_Upravený'!A:P,16,FALSE),0) -> 6339999.971 | F13: 0
B14: 64924441 | C14: Klinické hodnocení - 3.země (81xx,9003,9028) | D14: =IFERROR(VLOOKUP(B14,'1_Původní'!A:P,16,FALSE),0) -> 6900000 | E14: =IFERROR(VLOOKUP(B14,'2_Upravený'!A:P,16,FALSE),0) -> 6900000 | F14: 0
B15: 67101000 | C15: Transfery MZ - ostatní | D15: =IFERROR(VLOOKUP(B15,'1_Původní'!A:P,16,FALSE),0) -> 16961000 | E15: =IFERROR(VLOOKUP(B15,'2_Upravený'!A:P,16,FALSE),0) -> 16961000 | F15: 0
B16: 67101001 | C16: Transfery MZ na VaV - věcné náklady | D16: =IFERROR(VLOOKUP(B16,'1_Původní'!A:P,16,FALSE),0) -> 2829000 | E16: =IFERROR(VLOOKUP(B16,'2_Upravený'!A:P,16,FALSE),0) -> 2829000 | F16: 0
B17: 67101002 | C17: Transfery MZ na VaV - mzdové náklady | D17: =IFERROR(VLOOKUP(B17,'1_Původní'!A:P,16,FALSE),0) -> 3874000 | E17: =IFERROR(VLOOKUP(B17,'2_Upravený'!A:P,16,FALSE),0) -> 3874000 | F17: 0
B18: 67101006 | C18: Transfery MZ na rezidenční místa | D18: =IFERROR(VLOOKUP(B18,'1_Původní'!A:P,16,FALSE),0) -> 8151000 | E18: =IFERROR(VLOOKUP(B18,'2_Upravený'!A:P,16,FALSE),0) -> 8151000 | F18: 0
B19: 67101010 | C19: Transfery MZ - RIV (institucionální podpora) | D19: =IFERROR(VLOOKUP(B19,'1_Původní'!A:P,16,FALSE),0) -> 8000000 | E19: =IFERROR(VLOOKUP(B19,'2_Upravený'!A:P,16,FALSE),0) -> 8000000 | F19: 0
B20: 67101011 | C20: Transfery MZ - MEDEVAC (humanitární program) | D20: =IFERROR(VLOOKUP(B20,'1_Původní'!A:P,16,FALSE),0) -> 403000 | E20: =IFERROR(VLOOKUP(B20,'2_Upravený'!A:P,16,FALSE),0) -> 403000 | F20: 0
B21: 67102001 | C21: Transfery jiného poskytovatele - VaV věcné | D21: =IFERROR(VLOOKUP(B21,'1_Původní'!A:P,16,FALSE),0) -> 4731000 | E21: =IFERROR(VLOOKUP(B21,'2_Upravený'!A:P,16,FALSE),0) -> 4730999.595 | F21: 0
B22: 67102002 | C22: Transfery jiného poskytovatele - VaV mzdové | D22: =IFERROR(VLOOKUP(B22,'1_Původní'!A:P,16,FALSE),0) -> 8910000 | E22: =IFERROR(VLOOKUP(B22,'2_Upravený'!A:P,16,FALSE),0) -> 8910000 | F22: 0
B23: 67102004 | C23: Transfery jiného poskytovatele - ostatní | D23: =IFERROR(VLOOKUP(B23,'1_Původní'!A:P,16,FALSE),0) -> 8405000 | E23: =IFERROR(VLOOKUP(B23,'2_Upravený'!A:P,16,FALSE),0) -> 8405000 | F23: =ROUND(E23-D23,0) -> 0
F25: =ROUND(SUM(F10:F23),0) -> 0
B27: Přehled plánovaných rezerv za garanta
F28: =IF(COUNTIF('2_Upravený'!$Q:$Q,"Obrat bez specifikace NS")>0,COUNTIF('2_Upravený'!$Q:$Q,"Obrat bez specifikace NS"),"") -> 
E29: =IF($F$28="","","Obrat") ->  | F29: =IF(COUNTIF('2_Upravený'!$Q:$Q,"Obrat bez specifikace NS")>0,SUMIF('2_Upravený'!$Q:$Q,"Obrat bez specifikace NS",'2_Upravený'!$P:$P),"") -> 
B30: Bez rezerv

Sheet 1_Původní (hidden)
A1: Legenda | C1: Hodnoty v CZK
A2: Účet | B2: Název účtu
B3: NS | C3: Název NS | D3: =MID(Summary!$B$2,18,4)&"01" -> 202101 | E3: =MID(Summary!$B$2,18,4)&"02" -> 202102 | F3: =MID(Summary!$B$2,18,4)&"03" -> 202103 | G3: =MID(Summary!$B$2,18,4)&"04" -> 202104 | H3: =MID(Summary!$B$2,18,4)&"05" -> 202105 | I3: =MID(Summary!$B$2,18,4)&"06" -> 202106 | J3: =MID(Summary!$B$2,18,4)&"07" -> 202107 | K3: =MID(Summary!$B$2,18,4)&"08" -> 202108 | L3: =MID(Summary!$B$2,18,4)&"09" -> 202109 | M3: =MID(Summary!$B$2,18,4)&"10" -> 202110 | N3: =MID(Summary!$B$2,18,4)&"11" -> 202111 | O3: =MID(Summary!$B$2,18,4)&"12" -> 202112 | P3: =MID(Summary!$B$2,18,4)&" celkem" -> 2021 celkem
A5: 64908009 | B5: Smlouva o účelově vázané úplatě | D5: =SUM(D6:D7) -> 0 | E5: 0 | F5: 0 | G5: 75568.2788 | H5: 0 | I5: 33948.8493 | J5: 0 | K5: 0 | L5: 0 | M5: 33356.6403 | N5: 0 | O5: 72126.2316 | P5: 215000
B6: 4803 | C6: OP - specializační vzdělávání klinických farmaceutů | D6: 0 | E6: 0 | F6: 0 | G6: 75568.2788 | H6: 0 | I6: 33948.8493 | J6: 0 | K6: 0 | L6: 0 | M6: 33356.6403 | N6: 0 | O6: 72126.2316 | P6: =SUM(D6:O6) -> 215000
A9: 64924438 | B9: Výkony etické komise | D9: =SUM(D10:D11) -> 132976.4454 | E9: =SUM(E10:E11) -> 167451.8201 | F9: =SUM(F10:F11) -> 201927.1949 | G9: =SUM(G10:G11) -> 211777.3019 | H9: =SUM(H10:H11) -> 226552.4625 | I9: =SUM(I10:I11) -> 132976.4454 | J9: =SUM(J10:J11) -> 216702.3555 | K9: =SUM(K10:K11) -> 197002.1413 | L9: =SUM(L10:L11) -> 128051.3919 | M9: =SUM(M10:M11) -> 221627.409 | N9: =SUM(N10:N11) -> 251177.7302 | O9: =SUM(O10:O11) -> 211777.3019 | P9: =SUM(P10:P11) -> 2300000
B10: 9003 | C10: Etická komise | D10: 132976.4454 | E10: 167451.8201 | F10: 201927.1949 | G10: 211777.3019 | H10: 226552.4625 | I10: 132976.4454 | J10: 216702.3555 | K10: 197002.1413 | L10: 128051.3919 | M10: 221627.409 | N10: 251177.7302 | O10: 211777.3019 | P10: =SUM(D10:O10) -> 2300000
A13: 64924439 | B13: Klinické hodnocení - tuzemci (81xx,9003,9028) | D13: =SUM(D14:D27) -> 885232.7404 | E13: =SUM(E14:E27) -> 3562594.571 | F13: =SUM(F14:F27) -> 4268226.55 | G13: =SUM(G14:G27) -> 4238089.12 | H13: =SUM(H14:H27) -> 717306.0398 | I13: =SUM(I14:I27) -> 1511824.494 | J13: =SUM(J14:J27) -> 2377216.63 | K13: =SUM(K14:K27) -> 6585884.692 | L13: =SUM(L14:L27) -> 532703.8139 | M13: =SUM(M14:M27) -> 1037839.029 | N13: =SUM(N14:N27) -> 4967132.579 | O13: =SUM(O14:O27) -> 4515949.74 | P13: =SUM(P14:P27) -> 35200000
B14: 8101 | C14: Klinická hodnocení - I. Interní klinika | D14: 0 | E14: 0 | F14: 129639.2115 | G14: 0 | H14: 0 | I14: 0 | J14: 5744.6609 | K14: 0 | L14: 0 | M14: 0 | N14: 226408.9727 | O14: 0 | P14: =SUM(D14:O14) -> 361792.8451
B15: 8103 | C15: Klinická hodnocení - III. Interní klinika | D15: 0 | E15: 0 | F15: 0 | G15: 0 | H15: 0 | I15: 0 | J15: 30283.304 | K15: 0 | L15: 0 | M15: 0 | N15: 21980.1437 | O15: 0 | P15: =SUM(D15:O15) -> 52263.4477
B16: 8108 | C16: Klinická hodnocení - Porodnicko-gynekologická klinika | D16: 0 | E16: 0 | F16: 0 | G16: 0 | H16: 0 | I16: 0 | J16: 0 | K16: 17581.4361 | L16: 0 | M16: 0 | N16: 0 | O16: 0 | P16: 17581.4361
B17: 8112 | C17: Klinická hodnocení - Urologická klinika | D17: 0 | E17: 27662.388 | F17: 0 | G17: 0 | H17: 0 | I17: 0 | J17: 15097.3527 | K17: 0 | L17: 0 | M17: 0 | N17: 0 | O17: 0 | P17: 42759.7407
B18: 8114 | C18: Klinická hodnocení - Oční klinika | D18: 0 | E18: 93049.4821 | F18: 0 | G18: 49657.9144 | H18: 0 | I18: 0 | J18: 0 | K18: 0 | L18: 0 | M18: 0 | N18: 110076.2138 | O18: 0 | P18: 252783.6103
B19: 8116 | C19: Klinická hodnocení - Klinika plicních nemocí a tuberkulózy | D19: 28262.3335 | E19: 147491.5293 | F19: 0 | G19: 119281.0156 | H19: 0 | I19: 26378.7398 | J19: 0 | K19: 7621.5784 | L19: 281574.9407 | M19: 1098.763 | N19: 46721.1336 | O19: 11684.6994 | P19: 670114.7333
B20: 8117 | C20: Klinická hodnocení - Neurologická klinika | D20: 17382.5565 | E20: 0 | F20: 25872.0391 | G20: 84926.2748 | H20: 11163.1741 | I20: 199898.7581 | J20: 46700.442 | K20: 0 | L20: 0 | M20: 11856.4273 | N20: 9636.3261 | O20: 283711.1732 | P20: 691147.1712
B21: 8120 | C21: Klinická hodnocení - Klinika chorob kožních a pohlavních | D21: 0 | E21: 0 | F21: 0 | G21: 0 | H21: 93138.2273 | I21: 0 | J21: 0 | K21: 0 | L21: 0 | M21: 56225.6709 | N21: 300407.5435 | O21: 0 | P21: 449771.4417
B22: 8121 | C22: Klinická hodnocení - Onkologická klinika | D22: 595677.3409 | E22: 1483246.951 | F22: 1090108.246 | G22: 3307623.02 | H22: 487584.8443 | I22: 786879.2676 | J22: 2070674.291 | K22: 4175938.48 | L22: 21038.598 | M22: 532766.6144 | N22: 1439158.042 | O22: 3568455.394 | P22: 19559151.09
B23: 8127 | C23: Klinická hodnocení - Klinika TVL a kardiovask rehabilitace | D23: 0 | E23: 0 | F23: 0 | G23: 0 | H23: 0 | I23: 0 | J23: 0 | K23: 0 | L23: 0 | M23: 0 | N23: 47604.6926 | O23: 0 | P23: 47604.6926
B24: 8132 | C24: Klinická hodnocení - Hemato-onkologická klinika | D24: 80433.2829 | E24: 1488142.056 | F24: 2748247.951 | G24: 214623.8638 | H24: 0 | I24: 236146.943 | J24: 4257.9892 | K24: 1566035.94 | L24: 107772.181 | M24: 332973.6376 | N24: 2301436.807 | O24: 13184.8702 | P24: 9093255.522
B25: 8148 | C25: Klinická hodnocení - Lékárna | D25: 100690.7685 | E25: 281144.5256 | F25: 253430.283 | G25: 336404.1152 | H25: 125419.7941 | I25: 178805.5079 | J25: 162723.1683 | K25: 797778.4386 | L25: 80460.4554 | M25: 61060.277 | N25: 463702.7034 | O25: 617984.7835 | P25: 3459604.821
B26: 9028 | C26: Oddělení vědy a výzkumu | D26: 62786.4581 | E26: 41857.6388 | F26: 20928.8194 | G26: 125572.9163 | H26: 0 | I26: 83715.2775 | J26: 41735.4214 | K26: 20928.8194 | L26: 41857.6388 | M26: 41857.6388 | N26: 0 | O26: 20928.8194 | P26: 502169.4479
A29: 64924440 | B29: Klinické hodnocení - EU (81xx,9003,9028) | D29: =SUM(D30:D42) -> 296067.9439 | E29: =SUM(E30:E42) -> 446036.9295 | F29: =SUM(F30:F42) -> 169885.6551 | G29: =SUM(G30:G42) -> 1063846 | H29: =SUM(H30:H42) -> 374526.6662 | I29: =SUM(I30:I42) -> 1430224.96 | J29: =SUM(J30:J42) -> 450770.1808 | K29: =SUM(K30:K42) -> 607293.2356 | L29: =SUM(L30:L42) -> 260460.1064 | M29: =SUM(M30:M42) -> 161126.2113 | N29: =SUM(N30:N42) -> 163552.2702 | O29: =SUM(O30:O42) -> 916209.8412 | P29: =SUM(P30:P42) -> 6340000
B30: 8101 | C30: Klinická hodnocení - I. Interní klinika | D30: 0 | E30: 0 | F30: 0 | G30: 0 | H30: 0 | I30: 10196.123 | J30: 0 | K30: 0 | L30: 64640.956 | M30: 0 | N30: 0 | O30: 0 | P30: =SUM(D30:O30) -> 74837.079
B31: 8103 | C31: Klinická hodnocení - III. Interní klinika | D31: 0 | E31: 0 | F31: 0 | G31: 0 | H31: 0 | I31: 3652.3418 | J31: 0 | K31: 0 | L31: 0 | M31: 0 | N31: 0 | O31: 0 | P31: =SUM(D31:O31) -> 3652.3418
B32: 8105 | C32: Klinická hodnocení - II. Chirurgická klinika | D32: 0 | E32: 0 | F32: 0 | G32: 0 | H32: 67407.0573 | I32: 0 | J32: 0 | K32: 31044.4753 | L32: 73532.787 | M32: 0 | N32: 29959.614 | O32: 0 | P32: 201943.9336
B33: 8110 | C33: Klinická hodnocení - Dětská klinika | D33: 0 | E33: 0 | F33: 0 | G33: 30025.0179 | H33: 8609.2152 | I33: 0 | J33: 0 | K33: 18437.4798 | L33: 0 | M33: 0 | N33: 76507.8342 | O33: 11783.4548 | P33: 145363.0019
B34: 8112 | C34: Klinická hodnocení - Urologická klinika | D34: 0 | E34: 0 | F34: 0 | G34: 2893.0127 | H34: 0 | I34: 0 | J34: 0 | K34: 0 | L34: 0 | M34: 0 | N34: 0 | O34: 0 | P34: 2893.0127
B35: 8114 | C35: Klinická hodnocení - Oční klinika | D35: 0 | E35: 5621.8949 | F35: 0 | G35: 0 | H35: 0 | I35: 0 | J35: 0 | K35: 0 | L35: 67875.271 | M35: 34421.0109 | N35: 0 | O35: 0 | P35: 107918.1768
B36: 8116 | C36: Klinická hodnocení - Klinika plicních nemocí a tuberkulózy | D36: 0 | E36: 0 | F36: 0 | G36: 0 | H36: 22535.3018 | I36: 6145.8266 | J36: 282622.3135 | K36: 7458.95 | L36: 0 | M36: 0 | N36: 26496.8218 | O36: 72435.2653 | P36: 417694.479
B37: 8117 | C37: Klinická hodnocení - Neurologická klinika | D37: 8813.6377 | E37: 0 | F37: 0 | G37: 0 | H37: 0 | I37: 0 | J37: 0 | K37: 0 | L37: 0 | M37: 0 | N37: 0 | O37: 0 | P37: 8813.6377
B38: 8121 | C38: Klinická hodnocení - Onkologická klinika | D38: 314656.8077 | E38: 182689.0958 | F38: 0 | G38: 692663.8434 | H38: 193735.9241 | I38: 1005060.812 | J38: 0 | K38: 190813.6082 | L38: 0 | M38: 0 | N38: 0 | O38: 436159.1603 | P38: 3015779.252
B39: 8132 | C39: Klinická hodnocení - Hemato-onkologická klinika | D39: -137804.5017 | E39: 9913.5686 | F39: 122249.6236 | G39: 132866.2993 | H39: 3317.0501 | I39: 86548.0498 | J39: 109727.76 | K39: 283290.5308 | L39: 35289.6989 | M39: 126454.4568 | N39: 0 | O39: 145040.7393 | P39: 916893.2755
B40: 8148 | C40: Klinická hodnocení - Lékárna | D40: 55089.5609 | E40: 229374.8904 | F40: 13249.4987 | G40: 168714.3527 | H40: 60466.7351 | I40: 259520.3296 | J40: 3247.0307 | K40: 57810.7117 | L40: 450.6919 | M40: 250.7436 | N40: 12110.7877 | O40: 195639.9934 | P40: 1055925.326
B41: 9028 | C41: Oddělení vědy a výzkumu | D41: 55312.4393 | E41: 18437.4798 | F41: 34386.5328 | G41: 36683.474 | H41: 18455.3826 | I41: 59101.4766 | J41: 55173.0766 | K41: 18437.4798 | L41: 18670.7016 | M41: 0 | N41: 18477.2125 | O41: 55151.2281 | P41: 388286.4837
A44: 64924441 | B44: Klinické hodnocení - 3.země (81xx,9003,9028) | D44: =SUM(D45:D57) -> 309381.076 | E44: =SUM(E45:E57) -> 457797.4039 | F44: =SUM(F45:F57) -> 1030136.688 | G44: =SUM(G45:G57) -> 217622.8382 | H44: =SUM(H45:H57) -> 578617.1828 | I44: =SUM(I45:I57) -> 415146.3407 | J44: =SUM(J45:J57) -> 1005090.333 | K44: =SUM(K45:K57) -> 613466.2107 | L44: =SUM(L45:L57) -> 378758.9323 | M44: =SUM(M45:M57) -> 185755.9162 | N44: =SUM(N45:N57) -> 1035337.96 | O44: =SUM(O45:O57) -> 672889.1184 | P44: =SUM(P45:P57) -> 6900000
B45: 8101 | C45: Klinická hodnocení - I. Interní klinika | D45: 12693.0144 | E45: 0 | F45: 482382.5442 | G45: 0 | H45: 0 | I45: 33026.7169 | J45: 5390.887 | K45: 0 | L45: 11210.4902 | M45: 0 | N45: 0 | O45: 21962.0542 | P45: =SUM(D45:O45) -> 566665.7069
B46: 8103 | C46: Klinická hodnocení - III. Interní klinika | D46: 0 | E46: 15368.4206 | F46: 0 | G46: 0 | H46: 0 | I46: 0 | J46: 16382.0054 | K46: 121680.6977 | L46: 0 | M46: 25808.0623 | N46: 21382.8619 | O46: 0 | P46: =SUM(D46:O46) -> 200622.0479
B47: 8108 | C47: Klinická hodnocení - Porodnicko-gynekologická klinika | D47: 0 | E47: 0 | F47: 0 | G47: 0 | H47: 0 | I47: 5583.7976 | J47: 0 | K47: 0 | L47: 0 | M47: 0 | N47: 0 | O47: 0 | P47: 5583.7976
B48: 8116 | C48: Klinická hodnocení - Klinika plicních nemocí a tuberkulózy | D48: 156967.2149 | E48: 0 | F48: 193645.52 | G48: 0 | H48: 0 | I48: 0 | J48: 0 | K48: 0 | L48: 291970.5615 | M48: 0 | N48: 0 | O48: 169652.2286 | P48: 812235.525
B49: 8117 | C49: Klinická hodnocení - Neurologická klinika | D49: 51911.6132 | E49: 0 | F49: 36560.6963 | G49: 217114.7313 | H49: 0 | I49: 52952.1977 | J49: 49899.1837 | K49: 0 | L49: 0 | M49: 122810.8636 | N49: 0 | O49: 0 | P49: 531249.2858
B50: 8120 | C50: Klinická hodnocení - Klinika chorob kožních a pohlavních | D50: 0 | E50: 0 | F50: 0 | G50: 0 | H50: 102224.9005 | I50: 0 | J50: 0 | K50: 0 | L50: 0 | M50: 0 | N50: 0 | O50: 0 | P50: 102224.9005
B51: 8121 | C51: Klinická hodnocení - Onkologická klinika | D51: 7058.0518 | E51: 371309.5957 | F51: 7086.5681 | G51: 63.7791 | H51: 393108.2903 | I51: 43121.8025 | J51: 401196.8212 | K51: 455302.7193 | L51: 0 | M51: 13802.5655 | N51: 463824.9553 | O51: 0 | P51: 2155875.149
B52: 8132 | C52: Klinická hodnocení - Hemato-onkologická klinika | D52: 0 | E52: 30281.6143 | F52: 219513.0385 | G52: 444.3278 | H52: 0 | I52: 156712.4599 | J52: 387346.1805 | K52: 19439.6469 | L52: 0 | M52: 0 | N52: 434633.1701 | O52: 328861.3856 | P52: 1577231.824
B53: 8134 | C53: Klinická hodnocení - Radiologická klinika | D53: 0 | E53: 0 | F53: 0 | G53: 0 | H53: 0 | I53: 63714.3774 | J53: 0 | K53: 0 | L53: 0 | M53: 0 | N53: 0 | O53: 0 | P53: 63714.3774
B54: 8148 | C54: Klinická hodnocení - Lékárna | D54: 19994.504 | E54: 19742.5836 | F54: 23157.1047 | G54: 0 | H54: 26624.7538 | I54: 17515.5799 | J54: 96403.9721 | K54: 17043.1468 | L54: 26405.6229 | M54: 2047.3804 | N54: 94400.1387 | O54: 131153.7456 | P54: 474488.5325
B55: 8150 | C55: Klinická hodnocení - Kardiochirurgická klinika | D55: 39496.9733 | E55: 0 | F55: 3933.4705 | G55: 0 | H55: 0 | I55: 0 | J55: 27258.6686 | K55: 0 | L55: 6652.8489 | M55: 0 | N55: 0 | O55: 0 | P55: 77341.9613
B56: 9028 | C56: Oddělení vědy a výzkumu | D56: 21259.7044 | E56: 21095.1897 | F56: 63857.7458 | G56: 0 | H56: 56659.2382 | I56: 42519.4088 | J56: 21212.6142 | K56: 0 | L56: 42519.4088 | M56: 21287.0444 | N56: 21096.8338 | O56: 21259.7044 | P56: 332766.8925
A59: 67101000 | B59: Transfery MZ - ostatní | D59: =SUM(D60:D77) -> 0 | E59: =SUM(E60:E77) -> 0 | F59: =SUM(F60:F77) -> 0 | G59: =SUM(G60:G77) -> 3438388.053 | H59: =SUM(H60:H77) -> 0 | I59: =SUM(I60:I77) -> 0 | J59: =SUM(J60:J77) -> 1171677.26 | K59: =SUM(K60:K77) -> 5433498.435 | L59: =SUM(L60:L77) -> 5472207.925 | M59: =SUM(M60:M77) -> 604224.2754 | N59: =SUM(N60:N77) -> 8351.5115 | O59: =SUM(O60:O77) -> 832652.5408 | P59: =SUM(P60:P77) -> 16961000
B60: 0873 | C60: IROP - Mod.obn.přístr.vyb.perinatologického centra | D60: 0 | E60: 0 | F60: 0 | G60: 0 | H60: 0 | I60: 0 | J60: 0 | K60: 0 | L60: 0 | M60: 0 | N60: 8351.5115 | O60: 0 | P60: =SUM(D60:O60) -> 8351.5115
B61: 1096 | C61: OPVaVI - NPU I (projekt ÚMTM) | D61: 0 | E61: 0 | F61: 0 | G61: 363532.6382 | H61: 22340.8203 | I61: 0 | J61: 0 | K61: 0 | L61: 0 | M61: 0 | N61: 0 | O61: 0 | P61: =SUM(D61:O61) -> 385873.4585
B62: 1704 | C62: OP VVV - Molekulární, buněčný a klinický přístup ke zdravému stárnutí | D62: 0 | E62: 0 | F62: 0 | G62: 0 | H62: 0 | I62: 0 | J62: 0 | K62: 0 | L62: 5472207.925 | M62: 0 | N62: 0 | O62: 2232328.986 | P62: 7704536.911
B63: 2103 | C63: Národní onkologický registr - NOR | D63: 0 | E63: 0 | F63: 0 | G63: 0 | H63: 0 | I63: 0 | J63: 0 | K63: 1137379.91 | L63: 0 | M63: 0 | N63: 0 | O63: 0 | P63: 1137379.91
B64: 3203 | C64: HOK: OPŽP - Novostavba pavilonu HOK | D64: 0 | E64: 0 | F64: 0 | G64: 0 | H64: 0 | I64: 0 | J64: 0 | K64: 6469.8349 | L64: 0 | M64: 0 | N64: 0 | O64: 0 | P64: 6469.8349
B65: 3396 | C65: OPVaVI - NPU I (projekt ÚMTM) | D65: 0 | E65: 0 | F65: 0 | G65: 2160839.168 | H65: 3708.6917 | I65: 0 | J65: 0 | K65: 0 | L65: 0 | M65: 0 | N65: 0 | O65: 0 | P65: 2164547.859
B66: 3503 | C66: TO - krizová připravenost | D66: 0 | E66: 0 | F66: 0 | G66: 0 | H66: 0 | I66: 0 | J66: 272080.0058 | K66: 0 | L66: 0 | M66: 0 | N66: 0 | O66: 0 | P66: 272080.0058
B67: 4496 | C67: OPVaVI - NPU I (projekt ÚMTM) | D67: 0 | E67: 0 | F67: 0 | G67: 914016.247 | H67: -26049.512 | I67: 0 | J67: 0 | K67: 0 | L67: 0 | M67: 0 | N67: 0 | O67: 0 | P67: 887966.735
B68: 5102 | C68: NTMC - Národní telemedicínské centrum - provoz | D68: 0 | E68: 0 | F68: 0 | G68: 0 | H68: 0 | I68: 0 | J68: 0 | K68: 0 | L68: 0 | M68: 604224.2754 | N68: 0 | O68: 0 | P68: 604224.2754
B69: 5106 | C69: NTMC: SHAPES | D69: 0 | E69: 0 | F69: 0 | G69: 0 | H69: 0 | I69: 0 | J69: 0 | K69: 0 | L69: 0 | M69: 0 | N69: 0 | O69: 51769.6832 | P69: 51769.6832
B70: 9029 | C70: Paliativní péče | D70: 0 | E70: 0 | F70: 0 | G70: 0 | H70: 0 | I70: 0 | J70: 0 | K70: 4029007.12 | L70: 0 | M70: 0 | N70: 0 | O70: -1397640.923 | P70: 2631366.197
B71: 9151 | C71: MA FNOL: Běh za zdraví | D71: 0 | E71: 0 | F71: 0 | G71: 0 | H71: 0 | I71: 0 | J71: 0 | K71: 131804.8754 | L71: 0 | M71: 0 | N71: 0 | O71: 0 | P71: 131804.8754
B72: 9801 | C72: Krizová připravenost - MZ | D72: 0 | E72: 0 | F72: 0 | G72: 0 | H72: 0 | I72: 0 | J72: 899597.2541 | K72: 0 | L72: 0 | M72: 0 | N72: 0 | O72: -53805.2056 | P72: 845792.0485
B73: 9819 | C73: TranMZČR: Bezpečnost a kvalita zdravotní péče | D73: 0 | E73: 0 | F73: 0 | G73: 0 | H73: 0 | I73: 0 | J73: 0 | K73: 128836.6942 | L73: 0 | M73: 0 | N73: 0 | O73: 0 | P73: 128836.6942
A79: 67101001 | B79: Transfery MZ na VaV - věcné náklady | D79: =SUM(D80:D91) -> 0 | E79: =SUM(E80:E91) -> 0 | F79: =SUM(F80:F91) -> 0 | G79: =SUM(G80:G91) -> 707431.1766 | H79: =SUM(H80:H91) -> 0 | I79: =SUM(I80:I91) -> 1053286.419 | J79: =SUM(J80:J91) -> 1856788.496 | K79: =SUM(K80:K91) -> 0 | L79: =SUM(L80:L91) -> 0 | M79: =SUM(M80:M91) -> -366816.1657 | N79: =SUM(N80:N91) -> 0 | O79: =SUM(O80:O91) -> -421689.9252 | P79: =SUM(P80:P91) -> 2829000
B80: 8508 | C80: Prof. MUDr. Miloš Táborský, CSc., FESC, MBA - I.IK | D80: 0 | E80: 0 | F80: 0 | G80: 0 | H80: 0 | I80: 0 | J80: 478607.759 | K80: 0 | L80: 0 | M80: -366816.1657 | N80: 0 | O80: 0 | P80: =SUM(D80:O80) -> 111791.5933
B81: 8509 | C81: Doc. MUDr. Daniel Šaňák, PhD. - NEUROL | D81: 0 | E81: 0 | F81: 0 | G81: 0 | H81: 0 | I81: 0 | J81: 974682.9545 | K81: 0 | L81: 0 | M81: 0 | N81: 0 | O81: -159077.743 | P81: =SUM(D81:O81) -> 815605.2115
B82: 8510 | C82: Doc. MUDr. Petr Hamal, PhD. - MIKRO | D82: 0 | E82: 0 | F82: 0 | G82: 0 | H82: 0 | I82: 0 | J82: 403497.7822 | K82: 0 | L82: 0 | M82: 0 | N82: 0 | O82: -12653.3586 | P82: 390844.4236
B83: 8511 | C83: Prof. MUDr. Radovan Pilka, PhD. - PORGYN | D83: 0 | E83: 0 | F83: 0 | G83: 707431.1766 | H83: 0 | I83: 0 | J83: 0 | K83: 0 | L83: 0 | M83: 0 | N83: 0 | O83: -89781.3483 | P83: 617649.8283
B84: 8512 | C84: Grant: MUDr. Martin Loveček, PhD. - I. CHIR | D84: 0 | E84: 0 | F84: 0 | G84: 0 | H84: 0 | I84: 164193.9027 | J84: 0 | K84: 0 | L84: 0 | M84: 0 | N84: 0 | O84: -18985.706 | P84: 145208.1967
B85: 8513 | C85: Grant: MUDr. Martin Šín, PhD., FEBO - OČNÍ | D85: 0 | E85: 0 | F85: 0 | G85: 0 | H85: 0 | I85: 534503.5557 | J85: 0 | K85: 0 | L85: 0 | M85: 0 | N85: 0 | O85: -134360.9012 | P85: 400142.6545
B86: 8514 | C86: Grant: Doc. MUDr. Miroslav Vaverka, CSc. - NEUROCH | D86: 0 | E86: 0 | F86: 0 | G86: 0 | H86: 0 | I86: 354588.9601 | J86: 0 | K86: 0 | L86: 0 | M86: 0 | N86: 0 | O86: -6830.8681 | P86: 347758.092
A93: 67101002 | B93: Transfery MZ na VaV - mzdové náklady | D93: =SUM(D94:D104) -> 0 | E93: =SUM(E94:E104) -> 0 | F93: =SUM(F94:F104) -> 0 | G93: =SUM(G94:G104) -> 829784.2513 | H93: =SUM(H94:H104) -> 0 | I93: =SUM(I94:I104) -> 956969.9709 | J93: =SUM(J94:J104) -> 2232929.932 | K93: =SUM(K94:K104) -> 0 | L93: =SUM(L94:L104) -> 0 | M93: =SUM(M94:M104) -> 0 | N93: =SUM(N94:N104) -> 0 | O93: =SUM(O94:O104) -> -145684.1543 | P93: =SUM(P94:P104) -> 3874000
B94: 8508 | C94: Prof. MUDr. Miloš Táborský, CSc., FESC, MBA - I.IK | D94: 0 | E94: 0 | F94: 0 | G94: 0 | H94: 0 | I94: 0 | J94: 349760.7289 | K94: 0 | L94: 0 | M94: 0 | N94: 0 | O94: -1215.8032 | P94: =SUM(D94:O94) -> 348544.9257
B95: 8509 | C95: Doc. MUDr. Daniel Šaňák, PhD. - NEUROL | D95: 0 | E95: 0 | F95: 0 | G95: 0 | H95: 0 | I95: 0 | J95: 1276985.653 | K95: 0 | L95: 0 | M95: 0 | N95: 0 | O95: -84258.9289 | P95: =SUM(D95:O95) -> 1192726.724
B96: 8510 | C96: Doc. MUDr. Petr Hamal, PhD. - MIKRO | D96: 0 | E96: 0 | F96: 0 | G96: 0 | H96: 0 | I96: 0 | J96: 606183.5507 | K96: 0 | L96: 0 | M96: 0 | N96: 0 | O96: -675.3254 | P96: 605508.2253
B97: 8511 | C97: Prof. MUDr. Radovan Pilka, PhD. - PORGYN | D97: 0 | E97: 0 | F97: 0 | G97: 829784.2513 | H97: 0 | I97: 0 | J97: 0 | K97: 0 | L97: 0 | M97: 0 | N97: 0 | O97: -48543.148 | P97: 781241.1033
B98: 8512 | C98: Grant: MUDr. Martin Loveček, PhD. - I. CHIR | D98: 0 | E98: 0 | F98: 0 | G98: 0 | H98: 0 | I98: 342580.8899 | J98: 0 | K98: 0 | L98: 0 | M98: 0 | N98: 0 | O98: -2160.352 | P98: 340420.5379
B99: 8513 | C99: Grant: MUDr. Martin Šín, PhD., FEBO - OČNÍ | D99: 0 | E99: 0 | F99: 0 | G99: 0 | H99: 0 | I99: 419507.7364 | J99: 0 | K99: 0 | L99: 0 | M99: 0 | N99: 0 | O99: 0 | P99: 419507.7364
B100: 8514 | C100: Grant: Doc. MUDr. Miroslav Vaverka, CSc. - NEUROCH | D100: 0 | E100: 0 | F100: 0 | G100: 0 | H100: 0 | I100: 194881.3446 | J100: 0 | K100: 0 | L100: 0 | M100: 0 | N100: 0 | O100: -8830.5968 | P100: 186050.7478
A106: 67101006 | B106: Transfery MZ na rezidenční místa | D106: =SUM(D107:D132) -> 0 | E106: =SUM(E107:E132) -> 0 | F106: =SUM(F107:F132) -> 0 | G106: =SUM(G107:G132) -> 0 | H106: =SUM(H107:H132) -> 63293.8999 | I106: =SUM(I107:I132) -> 1979545.794 | J106: =SUM(J107:J132) -> 0 | K106: =SUM(K107:K132) -> 1504875.034 | L106: =SUM(L107:L132) -> 0 | M106: =SUM(M107:M132) -> 3547714.728 | N106: =SUM(N107:N132) -> 153926.8677 | O106: =SUM(O107:O132) -> 901643.6763 | P106: =SUM(P107:P132) -> 8151000
B107: 0184 | C107: 1IK: rezidenti 2019 - nelékařské obory | D107: 0 | E107: 0 | F107: 0 | G107: 0 | H107: 0 | I107: 0 | J107: 0 | K107: 0 | L107: 0 | M107: 0 | N107: 12177.7585 | O107: -2800.8845 | P107: =SUM(D107:O107) -> 9376.874
B108: 0185 | C108: Rezidenti 2018 - nelékařské obory | D108: 0 | E108: 0 | F108: 0 | G108: 0 | H108: 0 | I108: 0 | J108: 0 | K108: 205804.119 | L108: 0 | M108: 205804.119 | N108: 0 | O108: -8755.8084 | P108: =SUM(D108:O108) -> 402852.4296
B109: 0188 | C109: Rezidenti 2017 - nelékařské obory | D109: 0 | E109: 0 | F109: 0 | G109: 0 | H109: 0 | I109: 101074.178 | J109: 0 | K109: 0 | L109: 0 | M109: 101074.178 | N109: 0 | O109: -5967.1017 | P109: 196181.2543
B110: 0286 | C110: Rezidenti 2018 - lékaři | D110: 0 | E110: 0 | F110: 0 | G110: 0 | H110: 0 | I110: 571136.8747 | J110: 0 | K110: 0 | L110: 0 | M110: 571136.8747 | N110: 0 | O110: 0 | P110: 1142273.749
B111: 0386 | C111: 3IK: Rezidenti 2019 - lékaři | D111: 0 | E111: 0 | F111: 0 | G111: 0 | H111: 0 | I111: 0 | J111: 0 | K111: 0 | L111: 0 | M111: 0 | N111: 0 | O111: 170488.6193 | P111: 170488.6193
B112: 0685 | C112: Rezidenti 2018 | D112: 0 | E112: 0 | F112: 0 | G112: 0 | H112: 0 | I112: 0 | J112: 0 | K112: 122264.6956 | L112: 0 | M112: 122264.6956 | N112: 0 | O112: 0 | P112: 244529.3912
B113: 0688 | C113: Rezidenti 2017 - nelékařské obory | D113: 0 | E113: 0 | F113: 0 | G113: 0 | H113: 0 | I113: 16318.1964 | J113: 0 | K113: 0 | L113: 0 | M113: 16318.1964 | N113: 0 | O113: 0 | P113: 32636.3928
B114: 0785 | C114: Rezidenti 2018 | D114: 0 | E114: 0 | F114: 0 | G114: 0 | H114: 0 | I114: 0 | J114: 0 | K114: 250472.1373 | L114: 0 | M114: 250472.1373 | N114: 0 | O114: -706.31 | P114: 500237.9646
B115: 0788 | C115: Rezidenti 2017 - nelékařské obory | D115: 0 | E115: 0 | F115: 0 | G115: 0 | H115: 0 | I115: 16318.1964 | J115: 0 | K115: 0 | L115: 0 | M115: 16318.1964 | N115: 0 | O115: 0 | P115: 32636.3928
B116: 0885 | C116: Rezidenti 2018 | D116: 0 | E116: 0 | F116: 0 | G116: 0 | H116: 0 | I116: 0 | J116: 0 | K116: 122264.6956 | L116: 0 | M116: 122264.6956 | N116: 0 | O116: 0 | P116: 244529.3912
B117: 0886 | C117: Rezidenti 2018 | D117: 0 | E117: 0 | F117: 0 | G117: 0 | H117: 0 | I117: 571136.8747 | J117: 0 | K117: 0 | L117: 0 | M117: 571136.8747 | N117: 0 | O117: 0 | P117: 1142273.749
B118: 0988 | C118: Rezidenti 2017 - nelékařské obory | D118: 0 | E118: 0 | F118: 0 | G118: 0 | H118: 0 | I118: 56191.8311 | J118: 0 | K118: 0 | L118: 0 | M118: 56191.8311 | N118: 0 | O118: 0 | P118: 112383.6622
B119: 1083 | C119: Rezidenti 2016 - ošetřovatelská a intenzivní péče | D119: 0 | E119: 0 | F119: 0 | G119: 0 | H119: 63293.8999 | I119: 0 | J119: 0 | K119: 0 | L119: 0 | M119: 63293.8999 | N119: 0 | O119: 0 | P119: 126587.7998
B120: 1086 | C120: DK: Rezidenti 2019 - lékaři | D120: 0 | E120: 0 | F120: 0 | G120: 0 | H120: 0 | I120: 0 | J120: 0 | K120: 0 | L120: 0 | M120: 0 | N120: 0 | O120: 664788.7088 | P120: 664788.7088
B121: 1185 | C121: Rezidenti 2018 | D121: 0 | E121: 0 | F121: 0 | G121: 0 | H121: 0 | I121: 0 | J121: 0 | K121: 143453.9954 | L121: 0 | M121: 143453.9954 | N121: 42378.5997 | O121: -718.4878 | P121: 328568.1027
B122: 1188 | C122: Rezidenti 2017 - nelékařské obory | D122: 0 | E122: 0 | F122: 0 | G122: 0 | H122: 0 | I122: 0 | J122: 0 | K122: 0 | L122: 0 | M122: 0 | N122: 75014.9925 | O122: -733.1011 | P122: 74281.8914
B123: 1388 | C123: Rezidenti 2017 - nelékařské obory | D123: 0 | E123: 0 | F123: 0 | G123: 0 | H123: 0 | I123: 59914.5719 | J123: 0 | K123: 0 | L123: 0 | M123: 59914.5719 | N123: 0 | O123: 0 | P123: 119829.1438
B124: 1685 | C124: Rezidenti 2018 | D124: 0 | E124: 0 | F124: 0 | G124: 0 | H124: 0 | I124: 0 | J124: 0 | K124: 256414.8834 | L124: 0 | M124: 256414.8834 | N124: 0 | O124: -706.31 | P124: 512123.4568
B125: 1686 | C125: PLIC: rezidenti 2019 - lékaři | D125: 0 | E125: 0 | F125: 0 | G125: 0 | H125: 0 | I125: 0 | J125: 0 | K125: 0 | L125: 0 | M125: 0 | N125: 0 | O125: 166197.1772 | P125: 166197.1772
B126: 1886 | C126: Rezidenti 2018 | D126: 0 | E126: 0 | F126: 0 | G126: 0 | H126: 0 | I126: 571136.8747 | J126: 0 | K126: 0 | L126: 0 | M126: 571136.8747 | N126: 0 | O126: 0 | P126: 1142273.749
B127: 3285 | C127: Rezidenti 2018 | D127: 0 | E127: 0 | F127: 0 | G127: 0 | H127: 0 | I127: 0 | J127: 0 | K127: 187513.1257 | L127: 0 | M127: 187513.1257 | N127: 0 | O127: -50350.1604 | P127: 324676.091
B128: 3485 | C128: Rezidenti 2018 | D128: 0 | E128: 0 | F128: 0 | G128: 0 | H128: 0 | I128: 0 | J128: 0 | K128: 94422.6862 | L128: 0 | M128: 94422.6862 | N128: 0 | O128: -24355.517 | P128: 164489.8554
B129: 5085 | C129: Rezidenti 2018 | D129: 0 | E129: 0 | F129: 0 | G129: 0 | H129: 0 | I129: 0 | J129: 0 | K129: 122264.6956 | L129: 0 | M129: 122264.6956 | N129: 0 | O129: -353.155 | P129: 244176.2362
B130: 5684 | D130: 0 | E130: 0 | F130: 0 | G130: 0 | H130: 0 | I130: 0 | J130: 0 | K130: 0 | L130: 0 | M130: 0 | N130: 24355.517 | O130: -4383.9931 | P130: 19971.5239
B131: 6088 | C131: Rezidenti 2017 - nelékařské obory | D131: 0 | E131: 0 | F131: 0 | G131: 0 | H131: 0 | I131: 16318.1964 | J131: 0 | K131: 0 | L131: 0 | M131: 16318.1964 | N131: 0 | O131: 0 | P131: 32636.3928
A134: 67101010 | B134: Transfery MZ - RIV (institucionální podpora) | D134: =SUM(D135:D163) -> 0 | E134: =SUM(E135:E163) -> 0 | F134: =SUM(F135:F163) -> 0 | G134: =SUM(G135:G163) -> 8408942.522 | H134: =SUM(H135:H163) -> 0 | I134: =SUM(I135:I163) -> 0 | J134: =SUM(J135:J163) -> 0 | K134: =SUM(K135:K163) -> 0 | L134: =SUM(L135:L163) -> 0 | M134: =SUM(M135:M163) -> 0 | N134: =SUM(N135:N163) -> 0 | O134: =SUM(O135:O163) -> -408942.5221 | P134: =SUM(P135:P163) -> 8000000
B135: 8711 | C135: RIV: doc. Mgr. Jan Bouchal, PhD. | D135: 0 | E135: 0 | F135: 0 | G135: 289763.6982 | H135: 0 | I135: 0 | J135: 0 | K135: 0 | L135: 0 | M135: 0 | N135: 0 | O135: 0 | P135: =SUM(D135:O135) -> 289763.6982
B136: 8712 | C136: RIV: prof. MUDr. Jiří Gallo, PhD. | D136: 0 | E136: 0 | F136: 0 | G136: 289763.6982 | H136: 0 | I136: 0 | J136: 0 | K136: 0 | L136: 0 | M136: 0 | N136: 0 | O136: -35634.3167 | P136: =SUM(D136:O136) -> 254129.3815
B137: 8713 | C137: RIV: MUDr. Matěj Halaj | D137: 0 | E137: 0 | F137: 0 | G137: 289763.6982 | H137: 0 | I137: 0 | J137: 0 | K137: 0 | L137: 0 | M137: 0 | N137: 0 | O137: -6261.5153 | P137: 283502.1829
B138: 8715 | C138: RIV: MUDr. Karel Huml | D138: 0 | E138: 0 | F138: 0 | G138: 434645.5473 | H138: 0 | I138: 0 | J138: 0 | K138: 0 | L138: 0 | M138: 0 | N138: 0 | O138: -29128.9594 | P138: 405516.5879
B139: 8716 | C139: RIV: MUDr. Beáta Hutyrová, PhD. | D139: 0 | E139: 0 | F139: 0 | G139: 289763.6982 | H139: 0 | I139: 0 | J139: 0 | K139: 0 | L139: 0 | M139: 34771.6438 | N139: 0 | O139: -62045.3621 | P139: 262489.9799
B140: 8719 | C140: RIV: MUDr. Hana Klosová, PhD. | D140: 0 | E140: 0 | F140: 0 | G140: 197039.3148 | H140: 0 | I140: 0 | J140: 0 | K140: 0 | L140: 0 | M140: 0 | N140: 0 | O140: -30571.2988 | P140: 166468.016
B141: 8720 | C141: RIV: MUDr. Petr Kolář, PhD. | D141: 0 | E141: 0 | F141: 0 | G141: 289763.6982 | H141: 0 | I141: 0 | J141: 0 | K141: 0 | L141: 0 | M141: 0 | N141: 0 | O141: -9231.3151 | P141: 280532.3831
B142: 8721 | C142: RIV: MUDr. Andrea Smržová | D142: 0 | E142: 0 | F142: 0 | G142: 289763.6982 | H142: 0 | I142: 0 | J142: 0 | K142: 0 | L142: 0 | M142: 0 | N142: 0 | O142: -4007.2581 | P142: 285756.4401
B143: 8724 | C143: RIV: MUDr. Vladimír Študent, PhD. | D143: 0 | E143: 0 | F143: 0 | G143: 223697.575 | H143: 0 | I143: 0 | J143: 0 | K143: 0 | L143: 0 | M143: 0 | N143: 0 | O143: -32572.5691 | P143: 191125.0059
B144: 8725 | C144: RIV: MUDr. Helena Urbánková | D144: 0 | E144: 0 | F144: 0 | G144: 289763.6982 | H144: 0 | I144: 0 | J144: 0 | K144: 0 | L144: 0 | M144: 0 | N144: 0 | O144: -40605.607 | P144: 249158.0912
B145: 8726 | C145: RIV: Mgr. Petr Vrtěl | D145: 0 | E145: 0 | F145: 0 | G145: 231810.9586 | H145: 0 | I145: 0 | J145: 0 | K145: 0 | L145: 0 | M145: 0 | N145: 0 | O145: 0 | P145: 231810.9586
B146: 8753 | C146: RIV: MUDr. Richard Salzmann, Ph.D. | D146: 0 | E146: 0 | F146: 0 | G146: 347716.4379 | H146: 0 | I146: 0 | J146: 0 | K146: 0 | L146: 0 | M146: 0 | N146: 0 | O146: -1594.8594 | P146: 346121.5785
B147: 8760 | C147: RIV: RNDr. Martin Novák, Ph.D. | D147: 0 | E147: 0 | F147: 0 | G147: 243401.5065 | H147: 0 | I147: 0 | J147: 0 | K147: 0 | L147: 0 | M147: 0 | N147: 0 | O147: -36412.3438 | P147: 206989.1627
B148: 8762 | C148: RIV - Doc. MUDr. David Karásek, Ph. D. | D148: 0 | E148: 0 | F148: 0 | G148: 347716.4379 | H148: 0 | I148: 0 | J148: 0 | K148: 0 | L148: 0 | M148: 0 | N148: 0 | O148: -11885.3535 | P148: 335831.0844
B149: 8777 | C149: RIV: Prof. MUDr. Radovan Pilka, Ph.D. | D149: 0 | E149: 0 | F149: 0 | G149: 289763.6982 | H149: 0 | I149: 0 | J149: 0 | K149: 0 | L149: 0 | M149: 0 | N149: 0 | O149: -8056.5551 | P149: 281707.1431
B150: 8780 | C150: RIV - MUDr. Eva Karásková | D150: 0 | E150: 0 | F150: 0 | G150: 347716.4379 | H150: 0 | I150: 0 | J150: 0 | K150: 0 | L150: 0 | M150: 0 | N150: 0 | O150: -1685.4743 | P150: 346030.9636
B151: 8782 | C151: RIV - RNDr. Pavlína Čapková, Ph. D. | D151: 0 | E151: 0 | F151: 0 | G151: 289763.6982 | H151: 0 | I151: 0 | J151: 0 | K151: 0 | L151: 0 | M151: 0 | N151: 0 | O151: 0 | P151: 289763.6982
B152: 8785 | C152: RIV - Doc. MUDr. Martin Hutyra, Ph. D. | D152: 0 | E152: 0 | F152: 0 | G152: 347716.4379 | H152: 0 | I152: 0 | J152: 0 | K152: 0 | L152: 0 | M152: 0 | N152: 0 | O152: -74911.8555 | P152: 272804.5824
B153: 8789 | C153: RIV - Doc. MUDr. Kateřina Menšíková, Ph. D. - MEX | D153: 0 | E153: 0 | F153: 0 | G153: 695432.8757 | H153: 0 | I153: 0 | J153: 0 | K153: 0 | L153: 0 | M153: 0 | N153: 0 | O153: -7245.4254 | P153: 688187.4503
B154: 8791 | C154: RIV - Doc. Mgr. Luděk Slavík, Ph. D. - MEX | D154: 0 | E154: 0 | F154: 0 | G154: 718613.9716 | H154: 0 | I154: 0 | J154: 0 | K154: 0 | L154: 0 | M154: 0 | N154: 0 | O154: -1572.1303 | P154: 717041.8413
B155: 8792 | C155: RIV - Prof. MUDr. Jiří Gallo, Ph. D. - MEX | D155: 0 | E155: 0 | F155: 0 | G155: 695432.8757 | H155: 0 | I155: 0 | J155: 0 | K155: 0 | L155: 0 | M155: 0 | N155: 0 | O155: -2299.5995 | P155: 693133.2762
B156: 8793 | C156: RIV: prof. MUDr. Milan Raška, PhD. - MEX | D156: 0 | E156: 0 | F156: 0 | G156: 657184.0675 | H156: 0 | I156: 0 | J156: 0 | K156: 0 | L156: 0 | M156: -34771.6438 | N156: 0 | O156: -44.1484 | P156: 622368.2753
B157: 8794 | C157: RIV: MUDr. Martin Loveček, PhD. - MEX | D157: 0 | E157: 0 | F157: 0 | G157: 312944.7941 | H157: 0 | I157: 0 | J157: 0 | K157: 0 | L157: 0 | M157: 0 | N157: 0 | O157: -13176.5753 | P157: 299768.2188
A165: 67101011 | B165: Transfery MZ - MEDEVAC (humanitární program) | D165: =SUM(D166:D168) -> 0 | E165: =SUM(E166:E168) -> 0 | F165: =SUM(F166:F168) -> 0 | G165: =SUM(G166:G168) -> 0 | H165: =SUM(H166:H168) -> 0 | I165: =SUM(I166:I168) -> 0 | J165: =SUM(J166:J168) -> 0 | K165: =SUM(K166:K168) -> 0 | L165: =SUM(L166:L168) -> 0 | M165: =SUM(M166:M168) -> 0 | N165: =SUM(N166:N168) -> 286063.7253 | O165: =SUM(O166:O168) -> 116936.2747 | P165: =SUM(P166:P168) -> 403000
B166: 9813 | C166: MEDEVAC | D166: 0 | E166: 0 | F166: 0 | G166: 0 | H166: 0 | I166: 0 | J166: 0 | K166: 0 | L166: 0 | M166: 0 | N166: 286063.7253 | O166: 116936.2747 | P166: =SUM(D166:O166) -> 403000
A170: 67102001 | B170: Transfery jiného poskytovatele - VaV věcné | D170: =SUM(D171:D204) -> 265602.5345 | E170: =SUM(E171:E204) -> 0 | F170: =SUM(F171:F204) -> 0 | G170: =SUM(G171:G204) -> 375634.2233 | H170: =SUM(H171:H204) -> 513456.8519 | I170: =SUM(I171:I204) -> 675601.1209 | J170: =SUM(J171:J204) -> 306047.3078 | K170: =SUM(K171:K204) -> 3255721.802 | L170: =SUM(L171:L204) -> 0 | M170: =SUM(M171:M204) -> 0 | N170: =SUM(N171:N204) -> 0 | O170: =SUM(O171:O204) -> -661063.8399 | P170: =SUM(P171:P204) -> 4731000
B171: 8542 | C171: Prof. MUDr. Jiří Ehrmann, Ph.D. - PATOL | D171: 0 | E171: 0 | F171: 0 | G171: 0 | H171: 0 | I171: 0 | J171: 0 | K171: 94584.1569 | L171: 0 | M171: 0 | N171: 0 | O171: -37145.4009 | P171: =SUM(D171:O171) -> 57438.756
B172: 8544 | C172: MUDr. Jana Volejníková, Ph.D. - DK | D172: 0 | E172: 0 | F172: 0 | G172: 0 | H172: 0 | I172: 0 | J172: 0 | K172: 257404.0271 | L172: 0 | M172: 0 | N172: 0 | O172: -29152.1613 | P172: =SUM(D172:O172) -> 228251.8658
B173: 8551 | C173: Doc. MUDr. Vladimír Študent, PhD. - UROL | D173: 0 | E173: 0 | F173: 0 | G173: 0 | H173: 0 | I173: 0 | J173: 0 | K173: 152010.2522 | L173: 0 | M173: 0 | N173: 0 | O173: -35619.4139 | P173: 116390.8383
B174: 8552 | C174: Doc. MUDr. Jiří Minařík, PhD. - HOK | D174: 0 | E174: 0 | F174: 0 | G174: 0 | H174: 0 | I174: 0 | J174: 0 | K174: 31077.6516 | L174: 0 | M174: 0 | N174: 0 | O174: 0 | P174: 31077.6516
B175: 8553 | C175: MUDr. Hana Študentová, Ph.D. - ONKO | D175: 0 | E175: 0 | F175: 0 | G175: 0 | H175: 0 | I175: 0 | J175: 96610.9603 | K175: 0 | L175: 0 | M175: 0 | N175: 0 | O175: -1362.1267 | P175: 95248.8336
B176: 8555 | C176: Doc. RNDr. Radek Vrtěl, PhD. - GENETIKA | D176: 0 | E176: 0 | F176: 0 | G176: 0 | H176: 0 | I176: 0 | J176: 0 | K176: 272267.2517 | L176: 0 | M176: 0 | N176: 0 | O176: -1377.4426 | P176: 270889.8091
B177: 8556 | C177: MUDr. Tomáš Veverka, PhD. - NEUROL | D177: 29868.3864 | E177: 0 | F177: 0 | G177: 0 | H177: 0 | I177: 0 | J177: 0 | K177: 239162.7968 | L177: 0 | M177: 0 | N177: 0 | O177: -14224.1263 | P177: 254807.0569
B178: 8557 | C178: MUDr. Petr Šantavý, PhD. - KARDIOCHIR | D178: 0 | E178: 0 | F178: 0 | G178: 0 | H178: 0 | I178: 0 | J178: 0 | K178: 287130.4764 | L178: 0 | M178: 0 | N178: 0 | O178: -192.4112 | P178: 286938.0652
B179: 8558 | C179: MUDr. Filip Čtvrtlík, PhD. - RTG | D179: 0 | E179: 0 | F179: 0 | G179: 0 | H179: 0 | I179: 0 | J179: 0 | K179: 224299.5721 | L179: 0 | M179: 0 | N179: 0 | O179: -38519.6749 | P179: 185779.8972
B180: 8559 | C180: MUDr. JUDr. Dušan Klos, Ph.D. - I.CHIR | D180: 0 | E180: 0 | F180: 0 | G180: 0 | H180: 0 | I180: 0 | J180: 0 | K180: 351988.184 | L180: 0 | M180: 0 | N180: 0 | O180: -1072.5708 | P180: 350915.6132
B181: 8560 | C181: Mgr. Lenka Kocourková - LEM | D181: 0 | E181: 0 | F181: 0 | G181: 0 | H181: 0 | I181: 0 | J181: 0 | K181: 217543.5609 | L181: 0 | M181: 0 | N181: 0 | O181: -641.4495 | P181: 216902.1114
B182: 8561 | C182: MUDr. Ondřej Krystyník - III. IK | D182: 0 | E182: 0 | F182: 0 | G182: 0 | H182: 0 | I182: 0 | J182: 0 | K182: 485757.2059 | L182: 0 | M182: 0 | N182: 0 | O182: -15968.0622 | P182: 469789.1437
B183: 8562 | C183: Mgr. Taťána Štosová, Ph.D. - MIKRO | D183: 0 | E183: 0 | F183: 0 | G183: 0 | H183: 0 | I183: 0 | J183: 0 | K183: 133769.0219 | L183: 0 | M183: 0 | N183: 0 | O183: -19020.4618 | P183: 114748.5601
B184: 8563 | C184: Doc. MUDr. Jan Minařík, Ph.D. - HOK | D184: 0 | E184: 0 | F184: 0 | G184: 0 | H184: 0 | I184: 0 | J184: 0 | K184: 210111.9486 | L184: 0 | M184: 0 | N184: 0 | O184: -1649.6963 | P184: 208462.2523
B185: 8564 | C185: MUDr. Jan Přeček, Ph.D. - I.IK | D185: 0 | E185: 0 | F185: 0 | G185: 41211.6684 | H185: 0 | I185: 0 | J185: 0 | K185: 0 | L185: 0 | M185: 0 | N185: 0 | O185: 0 | P185: 41211.6684
B186: 8565 | C186: Prof. MUDr. Ing. Petr Hluštík, Ph.D. - NEUROL | D186: 79805.1054 | E186: 0 | F186: 0 | G186: 0 | H186: 177007.4937 | I186: 0 | J186: 0 | K186: 0 | L186: 0 | M186: 0 | N186: 0 | O186: -105413.624 | P186: 151398.9751
B187: 8566 | C187: MUDr. Michaela Kaiserová - NEUROL | D187: 0 | E187: 0 | F187: 0 | G187: 0 | H187: 88503.7468 | I187: 0 | J187: 0 | K187: 0 | L187: 0 | M187: 0 | N187: 0 | O187: -23757.3715 | P187: 64746.3753
B188: 8567 | C188: MUDr. Jana Petřková, Ph.D. - I.IK | D188: 0 | E188: 0 | F188: 0 | G188: 0 | H188: 0 | I188: 120932.6006 | J188: 0 | K188: 0 | L188: 0 | M188: 0 | N188: 0 | O188: -821.3486 | P188: 120111.252
B189: 8568 | C189: Prof. MUDr. Dagmar Pospíšilová, Ph.D. - DK | D189: 6633.4504 | E189: 0 | F189: 0 | G189: 0 | H189: 0 | I189: 70262.5166 | J189: 0 | K189: 0 | L189: 0 | M189: 0 | N189: 0 | O189: -23592.4776 | P189: 53303.4894
B190: 8569 | C190: MUDr. Přemysl Falt, Ph.D. - II.IK | D190: 0 | E190: 0 | F190: 0 | G190: 0 | H190: 247945.6114 | I190: 0 | J190: 0 | K190: 0 | L190: 0 | M190: 0 | N190: 0 | O190: 0 | P190: 247945.6114
B191: 8570 | C191: Prof. MUDr. Bohuslav Melichar, Ph.D. - ONKO | D191: 126075.9587 | E191: 0 | F191: 0 | G191: 0 | H191: 0 | I191: 0 | J191: 196599.9262 | K191: 0 | L191: 0 | M191: 0 | N191: 0 | O191: -207979.265 | P191: 114696.6199
B192: 8571 | C192: MUDr. Tomáš Skála, Ph.D., FESC - I.IK | D192: 23219.6336 | E192: 0 | F192: 0 | G192: 334422.5549 | H192: 0 | I192: 0 | J192: 0 | K192: 0 | L192: 0 | M192: 0 | N192: 0 | O192: -22123.3356 | P192: 335518.8529
B193: 8572 | C193: Grant: Doc. MUDr. Petr Šantavý, Ph.D. - KARDIOCHIR | D193: 0 | E193: 0 | F193: 0 | G193: 0 | H193: 0 | I193: 291184.0831 | J193: 0 | K193: 0 | L193: 0 | M193: 0 | N193: 0 | O193: -0.4054 | P193: 291183.6777
B194: 8573 | C194: Grant: MUDr. Jan Přeček, PhD. - I.IK | D194: 0 | E194: 0 | F194: 0 | G194: 0 | H194: 0 | I194: 0 | J194: 12836.4213 | K194: 0 | L194: 0 | M194: 0 | N194: 0 | O194: 0 | P194: 12836.4213
B195: 8574 | C195: Grant: Doc. MUDr. Kateřina Menšíková, PhD. - NEURO | D195: 0 | E195: 0 | F195: 0 | G195: 0 | H195: 0 | I195: 193221.9206 | J195: 0 | K195: 0 | L195: 0 | M195: 0 | N195: 0 | O195: -3663.0687 | P195: 189558.8519
B196: 8575 | C196: Grant: Doc. MUDr. Miroslav Vaverka, CSc. - NEUROCH | D196: 0 | E196: 0 | F196: 0 | G196: 0 | H196: 0 | I196: 0 | J196: 0 | K196: 41211.6684 | L196: 0 | M196: 0 | N196: 0 | O196: -18916.8314 | P196: 22294.837
B197: 8576 | C197: Grant: MUDr. Vladislav Raclavský, PhD. - MIKRO | D197: 0 | E197: 0 | F197: 0 | G197: 0 | H197: 0 | I197: 0 | J197: 0 | K197: 67560.1121 | L197: 0 | M197: 0 | N197: 0 | O197: -0.9458 | P197: 67559.1663
B198: 8577 | C198: Grant: Prof. MUDr. Bohuslav Melichar, Ph.D. - ONKO | D198: 0 | E198: 0 | F198: 0 | G198: 0 | H198: 0 | I198: 0 | J198: 0 | K198: 35806.8594 | L198: 0 | M198: 0 | N198: 0 | O198: 0 | P198: 35806.8594
B199: 8578 | C199: Grant: Prof. MUDr. Mgr. Milan Raška, PhD. - IMUNO | D199: 0 | E199: 0 | F199: 0 | G199: 0 | H199: 0 | I199: 0 | J199: 0 | K199: 67560.1121 | L199: 0 | M199: 0 | N199: 0 | O199: -31753.5635 | P199: 35806.5486
B200: 8579 | C200: Grant: Prof. MUDr. Dagmar Pospíšilová, PhD. - DK | D200: 0 | E200: 0 | F200: 0 | G200: 0 | H200: 0 | I200: 0 | J200: 0 | K200: 86476.9435 | L200: 0 | M200: 0 | N200: 0 | O200: -27096.6044 | P200: 59380.3391
A206: 67102002 | B206: Transfery jiného poskytovatele - VaV mzdové | D206: =SUM(D207:D240) -> 29850.6141 | E206: =SUM(E207:E240) -> 0 | F206: =SUM(F207:F240) -> 0 | G206: =SUM(G207:G240) -> 470093.7695 | H206: =SUM(H207:H240) -> 1081057.389 | I206: =SUM(I207:I240) -> 924359.466 | J206: =SUM(J207:J240) -> 747085.0478 | K206: =SUM(K207:K240) -> 5809694.212 | L206: =SUM(L207:L240) -> 0 | M206: =SUM(M207:M240) -> 0 | N206: =SUM(N207:N240) -> 0 | O206: =SUM(O207:O240) -> -152140.4985 | P206: =SUM(P207:P240) -> 8910000
B207: 8542 | C207: Prof. MUDr. Jiří Ehrmann, Ph.D. - PATOL | D207: 0 | E207: 0 | F207: 0 | G207: 0 | H207: 0 | I207: 0 | J207: 0 | K207: 263537.4162 | L207: 0 | M207: 0 | N207: 0 | O207: -9852.01 | P207: =SUM(D207:O207) -> 253685.4062
B208: 8544 | C208: MUDr. Jana Volejníková, Ph.D. - DK | D208: 0 | E208: 0 | F208: 0 | G208: 0 | H208: 0 | I208: 0 | J208: 0 | K208: 204973.546 | L208: 0 | M208: 0 | N208: 0 | O208: -26868.154 | P208: =SUM(D208:O208) -> 178105.392
B209: 8551 | C209: Doc. MUDr. Vladimír Študent, PhD. - UROL | D209: 0 | E209: 0 | F209: 0 | G209: 0 | H209: 0 | I209: 0 | J209: 0 | K209: 337929.3596 | L209: 0 | M209: 0 | N209: 0 | O209: -1.6857 | P209: 337927.6739
B210: 8552 | C210: Doc. MUDr. Jiří Minařík, PhD. - HOK | D210: 0 | E210: 0 | F210: 0 | G210: 0 | H210: 0 | I210: 0 | J210: 0 | K210: 195476.7021 | L210: 0 | M210: 0 | N210: 0 | O210: 0 | P210: 195476.7021
B211: 8553 | C211: MUDr. Hana Študentová, Ph.D. - ONKO | D211: 0 | E211: 0 | F211: 0 | G211: 0 | H211: 0 | I211: 0 | J211: 432106.3942 | K211: 0 | L211: 0 | M211: 0 | N211: 0 | O211: -5104.9493 | P211: 427001.4449
B212: 8555 | C212: Doc. RNDr. Radek Vrtěl, PhD. - GENETIKA | D212: 0 | E212: 0 | F212: 0 | G212: 0 | H212: 0 | I212: 0 | J212: 0 | K212: 477216.4024 | L212: 0 | M212: 0 | N212: 0 | O212: 0 | P212: 477216.4024
B213: 8556 | C213: MUDr. Tomáš Veverka, PhD. - NEUROL | D213: 0 | E213: 0 | F213: 0 | G213: 0 | H213: 0 | I213: 0 | J213: 0 | K213: 565062.2078 | L213: 0 | M213: 0 | N213: 0 | O213: -25021.1603 | P213: 540041.0475
B214: 8557 | C214: MUDr. Petr Šantavý, PhD. - KARDIOCHIR | D214: 0 | E214: 0 | F214: 0 | G214: 0 | H214: 0 | I214: 0 | J214: 0 | K214: 356923.0472 | L214: 0 | M214: 0 | N214: 0 | O214: -3168.3529 | P214: 353754.6943
B215: 8558 | C215: MUDr. Filip Čtvrtlík, PhD. - RTG | D215: 0 | E215: 0 | F215: 0 | G215: 0 | H215: 0 | I215: 0 | J215: 0 | K215: 642619.7657 | L215: 0 | M215: 0 | N215: 0 | O215: 0 | P215: 642619.7657
B216: 8559 | C216: MUDr. JUDr. Dušan Klos, Ph.D. - I.CHIR | D216: 0 | E216: 0 | F216: 0 | G216: 0 | H216: 0 | I216: 0 | J216: 0 | K216: 619669.0598 | L216: 0 | M216: 0 | N216: 0 | O216: -11815.2054 | P216: 607853.8544
B217: 8560 | C217: Mgr. Lenka Kocourková - LEM | D217: 0 | E217: 0 | F217: 0 | G217: 0 | H217: 0 | I217: 0 | J217: 0 | K217: 208139.1606 | L217: 0 | M217: 0 | N217: 0 | O217: -5392.9964 | P217: 202746.1642
B218: 8561 | C218: MUDr. Ondřej Krystyník - III. IK | D218: 0 | E218: 0 | F218: 0 | G218: 0 | H218: 0 | I218: 0 | J218: 0 | K218: 349800.4143 | L218: 0 | M218: 0 | N218: 0 | O218: -254.4521 | P218: 349545.9622
B219: 8562 | C219: Mgr. Taťána Štosová, Ph.D. - MIKRO | D219: 0 | E219: 0 | F219: 0 | G219: 0 | H219: 0 | I219: 0 | J219: 0 | K219: 121876.1625 | L219: 0 | M219: 0 | N219: 0 | O219: -346.8485 | P219: 121529.314
B220: 8563 | C220: Doc. MUDr. Jan Minařík, Ph.D. - HOK | D220: 0 | E220: 0 | F220: 0 | G220: 0 | H220: 0 | I220: 0 | J220: 0 | K220: 235046.8848 | L220: 0 | M220: 0 | N220: 0 | O220: -580.8428 | P220: 234466.042
B221: 8564 | C221: MUDr. Jan Přeček, Ph.D. - I.IK | D221: 0 | E221: 0 | F221: 0 | G221: 243752.3249 | H221: 0 | I221: 0 | J221: 0 | K221: 0 | L221: 0 | M221: 0 | N221: 0 | O221: -15470.4377 | P221: 228281.8872
B222: 8565 | C222: Prof. MUDr. Ing. Petr Hluštík, Ph.D. - NEUROL | D222: 0 | E222: 0 | F222: 0 | G222: 0 | H222: 424983.7613 | I222: 0 | J222: 0 | K222: 0 | L222: 0 | M222: 0 | N222: 0 | O222: -413.5242 | P222: 424570.2371
B223: 8566 | C223: MUDr. Michaela Kaiserová - NEUROL | D223: 0 | E223: 0 | F223: 0 | G223: 0 | H223: 401241.6518 | I223: 0 | J223: 0 | K223: 0 | L223: 0 | M223: 0 | N223: 0 | O223: -69.1054 | P223: 401172.5464
B224: 8567 | C224: MUDr. Jana Petřková, Ph.D. - I.IK | D224: 0 | E224: 0 | F224: 0 | G224: 0 | H224: 0 | I224: 269077.2418 | J224: 0 | K224: 0 | L224: 0 | M224: 0 | N224: 0 | O224: -5029.4256 | P224: 264047.8162
B225: 8568 | C225: Prof. MUDr. Dagmar Pospíšilová, Ph.D. - DK | D225: 0 | E225: 0 | F225: 0 | G225: 0 | H225: 0 | I225: 150366.694 | J225: 0 | K225: 0 | L225: 0 | M225: 0 | N225: 0 | O225: -937.6867 | P225: 149429.0073
B226: 8569 | C226: MUDr. Přemysl Falt, Ph.D. - II.IK | D226: 0 | E226: 0 | F226: 0 | G226: 0 | H226: 254831.9761 | I226: 0 | J226: 0 | K226: 0 | L226: 0 | M226: 0 | N226: 0 | O226: 0 | P226: 254831.9761
B227: 8570 | C227: Prof. MUDr. Bohuslav Melichar, Ph.D. - ONKO | D227: 29850.6141 | E227: 0 | F227: 0 | G227: 0 | H227: 0 | I227: 0 | J227: 202599.335 | K227: 0 | L227: 0 | M227: 0 | N227: 0 | O227: -24319.9609 | P227: 208129.9882
B228: 8571 | C228: MUDr. Tomáš Skála, Ph.D., FESC - I.IK | D228: 0 | E228: 0 | F228: 0 | G228: 226341.4446 | H228: 0 | I228: 0 | J228: 0 | K228: 0 | L228: 0 | M228: 0 | N228: 0 | O228: -1683.6321 | P228: 224657.8125
B229: 8572 | C229: Grant: Doc. MUDr. Petr Šantavý, Ph.D. - KARDIOCHIR | D229: 0 | E229: 0 | F229: 0 | G229: 0 | H229: 0 | I229: 140869.8501 | J229: 0 | K229: 0 | L229: 0 | M229: 0 | N229: 0 | O229: -2759.8857 | P229: 138109.9644
B230: 8573 | C230: Grant: MUDr. Jan Přeček, PhD. - I.IK | D230: 0 | E230: 0 | F230: 0 | G230: 0 | H230: 0 | I230: 0 | J230: 112379.3186 | K230: 0 | L230: 0 | M230: 0 | N230: 0 | O230: -246.269 | P230: 112133.0496
B231: 8574 | C231: Grant: Doc. MUDr. Kateřina Menšíková, PhD. - NEURO | D231: 0 | E231: 0 | F231: 0 | G231: 0 | H231: 0 | I231: 364045.6801 | J231: 0 | K231: 0 | L231: 0 | M231: 0 | N231: 0 | O231: -636.518 | P231: 363409.1621
B232: 8575 | C232: Grant: Doc. MUDr. Miroslav Vaverka, CSc. - NEUROCH | D232: 0 | E232: 0 | F232: 0 | G232: 0 | H232: 0 | I232: 0 | J232: 0 | K232: 150366.694 | L232: 0 | M232: 0 | N232: 0 | O232: -6813.5185 | P232: 143553.1755
B233: 8576 | C233: Grant: MUDr. Vladislav Raclavský, PhD. - MIKRO | D233: 0 | E233: 0 | F233: 0 | G233: 0 | H233: 0 | I233: 0 | J233: 0 | K233: 407572.881 | L233: 0 | M233: 0 | N233: 0 | O233: -1172.4091 | P233: 406400.4719
B234: 8577 | C234: Grant: Prof. MUDr. Bohuslav Melichar, Ph.D. - ONKO | D234: 0 | E234: 0 | F234: 0 | G234: 0 | H234: 0 | I234: 0 | J234: 0 | K234: 239795.3067 | L234: 0 | M234: 0 | N234: 0 | O234: -819.4114 | P234: 238975.8953
B235: 8578 | C235: Grant: Prof. MUDr. Mgr. Milan Raška, PhD. - IMUNO | D235: 0 | E235: 0 | F235: 0 | G235: 0 | H235: 0 | I235: 0 | J235: 0 | K235: 244543.7286 | L235: 0 | M235: 0 | N235: 0 | O235: -2254.4716 | P235: 242289.257
B236: 8579 | C236: Grant: Prof. MUDr. Dagmar Pospíšilová, PhD. - DK | D236: 0 | E236: 0 | F236: 0 | G236: 0 | H236: 0 | I236: 0 | J236: 0 | K236: 189145.4729 | L236: 0 | M236: 0 | N236: 0 | O236: -1107.5852 | P236: 188037.8877
A242: 67102004 | B242: Transfery jiného poskytovatele - ostatní | D242: =SUM(D243:D247) -> 700416.6667 | E242: =SUM(E243:E247) -> 700416.6667 | F242: =SUM(F243:F247) -> 700416.6667 | G242: =SUM(G243:G247) -> 700416.6667 | H242: =SUM(H243:H247) -> 700416.6667 | I242: =SUM(I243:I247) -> 700416.6667 | J242: =SUM(J243:J247) -> 700416.6667 | K242: =SUM(K243:K247) -> 700416.6667 | L242: =SUM(L243:L247) -> 700416.6667 | M242: =SUM(M243:M247) -> 700416.6667 | N242: =SUM(N243:N247) -> 700416.6667 | O242: =SUM(O243:O247) -> 700416.6667 | P242: =SUM(P243:P247) -> 8405000
B243: 5106 | C243: NTMC: SHAPES | D243: 363666.6667 | E243: 363666.6667 | F243: 363666.6667 | G243: 363666.6667 | H243: 363666.6667 | I243: 363666.6667 | J243: 363666.6667 | K243: 363666.6667 | L243: 363666.6667 | M243: 363666.6667 | N243: 363666.6667 | O243: 363666.6667 | P243: =SUM(D243:O243) -> 4364000
B244: 5107 | C244: NTMC: PROFID | D244: 67083.3333 | E244: 67083.3333 | F244: 67083.3333 | G244: 67083.3333 | H244: 67083.3333 | I244: 67083.3333 | J244: 67083.3333 | K244: 67083.3333 | L244: 67083.3333 | M244: 67083.3333 | N244: 67083.3333 | O244: 67083.3333 | P244: =SUM(D244:O244) -> 804999.9996
B245: 5108 | C245: NTMC: Projekt niCE-life | D245: 172500 | E245: 172500 | F245: 172500 | G245: 172500 | H245: 172500 | I245: 172500 | J245: 172500 | K245: 172500 | L245: 172500 | M245: 172500 | N245: 172500 | O245: 172500 | P245: 2070000
B246: 5110 | C246: NTMC: Projekt X | D246: 97166.6667 | E246: 97166.6667 | F246: 97166.6667 | G246: 97166.6667 | H246: 97166.6667 | I246: 97166.6667 | J246: 97166.6667 | K246: 97166.6667 | L246: 97166.6667 | M246: 97166.6667 | N246: 97166.6667 | O246: 97166.6667 | P246: 1166000

Sheet 2_Upravený (hidden)
A1: Legenda | C1: Hodnoty v CZK | Q1: Rozdíl
A2: Účet | B2: Název účtu
B3: NS | C3: Název NS | D3: =MID(Summary!$B$2,18,4)&"01" -> 202101 | E3: =MID(Summary!$B$2,18,4)&"02" -> 202102 | F3: =MID(Summary!$B$2,18,4)&"03" -> 202103 | G3: =MID(Summary!$B$2,18,4)&"04" -> 202104 | H3: =MID(Summary!$B$2,18,4)&"05" -> 202105 | I3: =MID(Summary!$B$2,18,4)&"06" -> 202106 | J3: =MID(Summary!$B$2,18,4)&"07" -> 202107 | K3: =MID(Summary!$B$2,18,4)&"08" -> 202108 | L3: =MID(Summary!$B$2,18,4)&"09" -> 202109 | M3: =MID(Summary!$B$2,18,4)&"10" -> 202110 | N3: =MID(Summary!$B$2,18,4)&"11" -> 202111 | O3: =MID(Summary!$B$2,18,4)&"12" -> 202112 | P3: =MID(Summary!$B$2,18,4)&" celkem" -> 2021 celkem | Q3: =SUM(Q4:Q8) -> 0
A5: 64908009 | B5: Smlouva o účelově vázané úplatě | D5: =SUM(D6:D7) -> 0 | E5: 0 | F5: 0 | G5: 75568.2788 | H5: 0 | I5: 33948.8493 | J5: 0 | K5: 0 | L5: 0 | M5: 33356.6403 | N5: 0 | O5: 72126.2316 | P5: 215000 | Q5: =ROUND(P5-SUMIF('1_Původní'!A:A,'2_Upravený'!A5,'1_Původní'!P:P),0) -> 0
B6: 4803 | C6: OP - specializační vzdělávání klinických farmaceutů | D6: 0 | E6: 0 | F6: 0 | G6: 75568.2788 | H6: 0 | I6: 33948.8493 | J6: 0 | K6: 0 | L6: 0 | M6: 33356.6403 | N6: 0 | O6: 72126.2316 | P6: =SUM(D6:O6) -> 215000 | Q6: =IF(AND(ROUND(P6,0)<>0,B6=""),"Obrat bez specifikace NS","") ->  | S6: Orig | T6: =$A$5 -> 64908009
C7: =IFERROR(VLOOKUP(B7,CisNS!$A:$B,2,FALSE),"") ->  | P7: =SUM(D7:O7) -> 0 | Q7: =IF(AND(ROUND(P7,0)<>0,B7=""),"Obrat bez specifikace NS","") ->  | T7: =T6 -> 64908009 | U7: End
A9: 64924438 | B9: Výkony etické komise | D9: =SUM(D10:D11) -> 132976.4454 | E9: =SUM(E10:E11) -> 167451.8201 | F9: =SUM(F10:F11) -> 201927.1949 | G9: =SUM(G10:G11) -> 211777.3019 | H9: =SUM(H10:H11) -> 226552.4625 | I9: =SUM(I10:I11) -> 132976.4454 | J9: =SUM(J10:J11) -> 216702.3555 | K9: =SUM(K10:K11) -> 197002.1413 | L9: =SUM(L10:L11) -> 128051.3919 | M9: =SUM(M10:M11) -> 221627.409 | N9: =SUM(N10:N11) -> 251177.7302 | O9: =SUM(O10:O11) -> 211777.3019 | P9: =SUM(P10:P11) -> 2300000 | Q9: =ROUND(P9-SUMIF('1_Původní'!A:A,'2_Upravený'!A9,'1_Původní'!P:P),0) -> 0
B10: 9003 | C10: Etická komise | D10: 132976.4454 | E10: 167451.8201 | F10: 201927.1949 | G10: 211777.3019 | H10: 226552.4625 | I10: 132976.4454 | J10: 216702.3555 | K10: 197002.1413 | L10: 128051.3919 | M10: 221627.409 | N10: 251177.7302 | O10: 211777.3019 | P10: =SUM(D10:O10) -> 2300000 | Q10: =IF(AND(ROUND(P10,0)<>0,B10=""),"Obrat bez specifikace NS","") ->  | S10: Orig | T10: =$A$5 -> 64908009
C11: =IFERROR(VLOOKUP(B11,CisNS!$A:$B,2,FALSE),"") ->  | P11: 0 | T11: =T10 -> 64908009 | U11: End
A13: 64924439 | B13: Klinické hodnocení - tuzemci (81xx,9003,9028) | D13: =SUM(D14:D27) -> 885232.7404 | E13: =SUM(E14:E27) -> 3562594.571 | F13: =SUM(F14:F27) -> 4268226.55 | G13: =SUM(G14:G27) -> 4238089.12 | H13: =SUM(H14:H27) -> 717306.0398 | I13: =SUM(I14:I27) -> 1511824.494 | J13: =SUM(J14:J27) -> 2377216.63 | K13: =SUM(K14:K27) -> 6585884.692 | L13: =SUM(L14:L27) -> 532703.8139 | M13: =SUM(M14:M27) -> 1037839.029 | N13: =SUM(N14:N27) -> 4967132.579 | O13: =SUM(O14:O27) -> 4515949.74 | P13: =SUM(P14:P27) -> 35200000 | Q13: =ROUND(P13-SUMIF('1_Původní'!A:A,'2_Upravený'!A13,'1_Původní'!P:P),0) -> 0
B14: 8101 | C14: Klinická hodnocení - I. Interní klinika | D14: 0 | E14: 0 | F14: 129639.2115 | G14: 0 | H14: 0 | I14: 0 | J14: 5744.6609 | K14: 0 | L14: 0 | M14: 0 | N14: 226408.9727 | O14: 0 | P14: =SUM(D14:O14) -> 361792.8451 | Q14: =IF(AND(ROUND(P14,0)<>0,B14=""),"Obrat bez specifikace NS","") ->  | S14: Orig | T14: =$A$13 -> 64924439
B15: 8103 | C15: Klinická hodnocení - III. Interní klinika | D15: 0 | E15: 0 | F15: 0 | G15: 0 | H15: 0 | I15: 0 | J15: 30283.304 | K15: 0 | L15: 0 | M15: 0 | N15: 21980.1437 | O15: 0 | P15: =SUM(D15:O15) -> 52263.4477 | Q15: =IF(AND(ROUND(P15,0)<>0,B15=""),"Obrat bez specifikace NS","") ->  | S15: Orig | T15: =$A$13 -> 64924439
B16: 8108 | C16: Klinická hodnocení - Porodnicko-gynekologická klinika | D16: 0 | E16: 0 | F16: 0 | G16: 0 | H16: 0 | I16: 0 | J16: 0 | K16: 17581.4361 | L16: 0 | M16: 0 | N16: 0 | O16: 0 | P16: 17581.4361 | S16: Orig | T16: 64924439
B17: 8112 | C17: Klinická hodnocení - Urologická klinika | D17: 0 | E17: 27662.388 | F17: 0 | G17: 0 | H17: 0 | I17: 0 | J17: 15097.3527 | K17: 0 | L17: 0 | M17: 0 | N17: 0 | O17: 0 | P17: 42759.7407 | S17: Orig | T17: 64924439
B18: 8114 | C18: Klinická hodnocení - Oční klinika | D18: 0 | E18: 93049.4821 | F18: 0 | G18: 49657.9144 | H18: 0 | I18: 0 | J18: 0 | K18: 0 | L18: 0 | M18: 0 | N18: 110076.2138 | O18: 0 | P18: 252783.6103 | S18: Orig | T18: 64924439
B19: 8116 | C19: Klinická hodnocení - Klinika plicních nemocí a tuberkulózy | D19: 28262.3335 | E19: 147491.5293 | F19: 0 | G19: 119281.0156 | H19: 0 | I19: 26378.7398 | J19: 0 | K19: 7621.5784 | L19: 281574.9407 | M19: 1098.763 | N19: 46721.1336 | O19: 11684.6994 | P19: 670114.7333 | S19: Orig | T19: 64924439
B20: 8117 | C20: Klinická hodnocení - Neurologická klinika | D20: 17382.5565 | E20: 0 | F20: 25872.0391 | G20: 84926.2748 | H20: 11163.1741 | I20: 199898.7581 | J20: 46700.442 | K20: 0 | L20: 0 | M20: 11856.4273 | N20: 9636.3261 | O20: 283711.1732 | P20: 691147.1712 | S20: Orig | T20: 64924439
B21: 8120 | C21: Klinická hodnocení - Klinika chorob kožních a pohlavních | D21: 0 | E21: 0 | F21: 0 | G21: 0 | H21: 93138.2273 | I21: 0 | J21: 0 | K21: 0 | L21: 0 | M21: 56225.6709 | N21: 300407.5435 | O21: 0 | P21: 449771.4417 | S21: Orig | T21: 64924439
B22: 8121 | C22: Klinická hodnocení - Onkologická klinika | D22: 595677.3409 | E22: 1483246.951 | F22: 1090108.246 | G22: 3307623.02 | H22: 487584.8443 | I22: 786879.2676 | J22: 2070674.291 | K22: 4175938.48 | L22: 21038.598 | M22: 532766.6144 | N22: 1439158.042 | O22: 3568455.394 | P22: 19559151.09 | S22: Orig | T22: 64924439
B23: 8127 | C23: Klinická hodnocení - Klinika TVL a kardiovask rehabilitace | D23: 0 | E23: 0 | F23: 0 | G23: 0 | H23: 0 | I23: 0 | J23: 0 | K23: 0 | L23: 0 | M23: 0 | N23: 47604.6926 | O23: 0 | P23: 47604.6926 | S23: Orig | T23: 64924439
B24: 8132 | C24: Klinická hodnocení - Hemato-onkologická klinika | D24: 80433.2829 | E24: 1488142.056 | F24: 2748247.951 | G24: 214623.8638 | H24: 0 | I24: 236146.943 | J24: 4257.9892 | K24: 1566035.94 | L24: 107772.181 | M24: 332973.6376 | N24: 2301436.807 | O24: 13184.8702 | P24: 9093255.522 | S24: Orig | T24: 64924439
B25: 8148 | C25: Klinická hodnocení - Lékárna | D25: 100690.7685 | E25: 281144.5256 | F25: 253430.283 | G25: 336404.1152 | H25: 125419.7941 | I25: 178805.5079 | J25: 162723.1683 | K25: 797778.4386 | L25: 80460.4554 | M25: 61060.277 | N25: 463702.7034 | O25: 617984.7835 | P25: 3459604.821 | S25: Orig | T25: 64924439
B26: 9028 | C26: Oddělení vědy a výzkumu | D26: 62786.4581 | E26: 41857.6388 | F26: 20928.8194 | G26: 125572.9163 | H26: 0 | I26: 83715.2775 | J26: 41735.4214 | K26: 20928.8194 | L26: 41857.6388 | M26: 41857.6388 | N26: 0 | O26: 20928.8194 | P26: 502169.4479 | S26: Orig | T26: 64924439
C27: =IFERROR(VLOOKUP(B27,CisNS!$A:$B,2,FALSE),"") ->  | P27: 0 | T27: =T14 -> 64924439 | U27: End
A29: 64924440 | B29: Klinické hodnocení - EU (81xx,9003,9028) | D29: =SUM(D30:D42) -> 459477.4456 | E29: =SUM(E30:E42) -> 446036.9295 | F29: =SUM(F30:F42) -> 169885.6551 | G29: =SUM(G30:G42) -> 1063846 | H29: =SUM(H30:H42) -> 374526.6662 | I29: =SUM(I30:I42) -> 1430224.96 | J29: =SUM(J30:J42) -> 450770.1808 | K29: =SUM(K30:K42) -> 443883.7048 | L29: =SUM(L30:L42) -> 260460.1064 | M29: =SUM(M30:M42) -> 161126.2113 | N29: =SUM(N30:N42) -> 163552.2702 | O29: =SUM(O30:O42) -> 916209.8412 | P29: =SUM(P30:P42) -> 6339999.971 | Q29: =ROUND(P29-SUMIF('1_Původní'!A:A,'2_Upravený'!A29,'1_Původní'!P:P),0) -> 0
B30: 8101 | C30: Klinická hodnocení - I. Interní klinika | D30: 0 | E30: 0 | F30: 0 | G30: 0 | H30: 0 | I30: 10196.123 | J30: 0 | K30: 0 | L30: 64640.956 | M30: 0 | N30: 0 | O30: 0 | P30: =SUM(D30:O30) -> 74837.079 | Q30: =IF(AND(ROUND(P30,0)<>0,B30=""),"Obrat bez specifikace NS","") ->  | S30: Orig | T30: =$A$29 -> 64924440
B31: 8103 | C31: Klinická hodnocení - III. Interní klinika | D31: 0 | E31: 0 | F31: 0 | G31: 0 | H31: 0 | I31: 3652.3418 | J31: 0 | K31: 0 | L31: 0 | M31: 0 | N31: 0 | O31: 0 | P31: =SUM(D31:O31) -> 3652.3418 | Q31: =IF(AND(ROUND(P31,0)<>0,B31=""),"Obrat bez specifikace NS","") ->  | S31: Orig | T31: =$A$29 -> 64924440
B32: 8105 | C32: Klinická hodnocení - II. Chirurgická klinika | D32: 0 | E32: 0 | F32: 0 | G32: 0 | H32: 67407.0573 | I32: 0 | J32: 0 | K32: 31044.4753 | L32: 73532.787 | M32: 0 | N32: 29959.614 | O32: 0 | P32: 201943.9336 | S32: Orig | T32: 64924440
B33: 8110 | C33: Klinická hodnocení - Dětská klinika | D33: 0 | E33: 0 | F33: 0 | G33: 30025.0179 | H33: 8609.2152 | I33: 0 | J33: 0 | K33: 18437.4798 | L33: 0 | M33: 0 | N33: 76507.8342 | O33: 11783.4548 | P33: 145363.0019 | S33: Orig | T33: 64924440
B34: 8112 | C34: Klinická hodnocení - Urologická klinika | D34: 0 | E34: 0 | F34: 0 | G34: 2893.0127 | H34: 0 | I34: 0 | J34: 0 | K34: 0 | L34: 0 | M34: 0 | N34: 0 | O34: 0 | P34: 2893.0127 | S34: Orig | T34: 64924440
B35: 8114 | C35: Klinická hodnocení - Oční klinika | D35: 0 | E35: 5621.8949 | F35: 0 | G35: 0 | H35: 0 | I35: 0 | J35: 0 | K35: 0 | L35: 67875.271 | M35: 34421.0109 | N35: 0 | O35: 0 | P35: 107918.1768 | S35: Orig | T35: 64924440
B36: 8116 | C36: Klinická hodnocení - Klinika plicních nemocí a tuberkulózy | D36: 0 | E36: 0 | F36: 0 | G36: 0 | H36: 22535.3018 | I36: 6145.8266 | J36: 282622.3135 | K36: 7458.95 | L36: 0 | M36: 0 | N36: 26496.8218 | O36: 72435.2653 | P36: 417694.479 | S36: Orig | T36: 64924440
B37: 8117 | C37: Klinická hodnocení - Neurologická klinika | D37: 8813.6377 | E37: 0 | F37: 0 | G37: 0 | H37: 0 | I37: 0 | J37: 0 | K37: 0 | L37: 0 | M37: 0 | N37: 0 | O37: 0 | P37: 8813.6377 | S37: Orig | T37: 64924440
B38: 8121 | C38: Klinická hodnocení - Onkologická klinika | D38: 314656.8077 | E38: 182689.0958 | F38: 0 | G38: 692663.8434 | H38: 193735.9241 | I38: 1005060.812 | J38: 0 | K38: 190813.6082 | L38: 0 | M38: 0 | N38: 0 | O38: 436159.1603 | P38: 3015779.252 | S38: Orig | T38: 64924440
B39: 8132 | C39: Klinická hodnocení - Hemato-onkologická klinika | D39: 25605 | E39: 9913.5686 | F39: 122249.6236 | G39: 132866.2993 | H39: 3317.0501 | I39: 86548.0498 | J39: 109727.76 | K39: 119881 | L39: 35289.6989 | M39: 126454.4568 | N39: 0 | O39: 145040.7393 | P39: 916893.2464 | S39: Orig | T39: 64924440
B40: 8148 | C40: Klinická hodnocení - Lékárna | D40: 55089.5609 | E40: 229374.8904 | F40: 13249.4987 | G40: 168714.3527 | H40: 60466.7351 | I40: 259520.3296 | J40: 3247.0307 | K40: 57810.7117 | L40: 450.6919 | M40: 250.7436 | N40: 12110.7877 | O40: 195639.9934 | P40: 1055925.326 | S40: Orig | T40: 64924440
B41: 9028 | C41: Oddělení vědy a výzkumu | D41: 55312.4393 | E41: 18437.4798 | F41: 34386.5328 | G41: 36683.474 | H41: 18455.3826 | I41: 59101.4766 | J41: 55173.0766 | K41: 18437.4798 | L41: 18670.7016 | M41: 0 | N41: 18477.2125 | O41: 55151.2281 | P41: 388286.4837 | S41: Orig | T41: 64924440
C42: =IFERROR(VLOOKUP(B42,CisNS!$A:$B,2,FALSE),"") ->  | P42: 0 | T42: =T30 -> 64924440 | U42: End
A44: 64924441 | B44: Klinické hodnocení - 3.země (81xx,9003,9028) | D44: =SUM(D45:D57) -> 309381.076 | E44: =SUM(E45:E57) -> 457797.4039 | F44: =SUM(F45:F57) -> 1030136.688 | G44: =SUM(G45:G57) -> 217622.8382 | H44: =SUM(H45:H57) -> 578617.1828 | I44: =SUM(I45:I57) -> 415146.3407 | J44: =SUM(J45:J57) -> 1005090.333 | K44: =SUM(K45:K57) -> 613466.2107 | L44: =SUM(L45:L57) -> 378758.9323 | M44: =SUM(M45:M57) -> 185755.9162 | N44: =SUM(N45:N57) -> 1035337.96 | O44: =SUM(O45:O57) -> 672889.1184 | P44: =SUM(P45:P57) -> 6900000 | Q44: =ROUND(P44-SUMIF('1_Původní'!A:A,'2_Upravený'!A44,'1_Původní'!P:P),0) -> 0
B45: 8101 | C45: Klinická hodnocení - I. Interní klinika | D45: 12693.0144 | E45: 0 | F45: 482382.5442 | G45: 0 | H45: 0 | I45: 33026.7169 | J45: 5390.887 | K45: 0 | L45: 11210.4902 | M45: 0 | N45: 0 | O45: 21962.0542 | P45: =SUM(D45:O45) -> 566665.7069 | Q45: =IF(AND(ROUND(P45,0)<>0,B45=""),"Obrat bez specifikace NS","") ->  | S45: Orig | T45: =$A$44 -> 64924441
B46: 8103 | C46: Klinická hodnocení - III. Interní klinika | D46: 0 | E46: 15368.4206 | F46: 0 | G46: 0 | H46: 0 | I46: 0 | J46: 16382.0054 | K46: 121680.6977 | L46: 0 | M46: 25808.0623 | N46: 21382.8619 | O46: 0 | P46: =SUM(D46:O46) -> 200622.0479 | Q46: =IF(AND(ROUND(P46,0)<>0,B46=""),"Obrat bez specifikace NS","") ->  | S46: Orig | T46: =$A$44 -> 64924441
B47: 8108 | C47: Klinická hodnocení - Porodnicko-gynekologická klinika | D47: 0 | E47: 0 | F47: 0 | G47: 0 | H47: 0 | I47: 5583.7976 | J47: 0 | K47: 0 | L47: 0 | M47: 0 | N47: 0 | O47: 0 | P47: 5583.7976 | S47: Orig | T47: 64924441
B48: 8116 | C48: Klinická hodnocení - Klinika plicních nemocí a tuberkulózy | D48: 156967.2149 | E48: 0 | F48: 193645.52 | G48: 0 | H48: 0 | I48: 0 | J48: 0 | K48: 0 | L48: 291970.5615 | M48: 0 | N48: 0 | O48: 169652.2286 | P48: 812235.525 | S48: Orig | T48: 64924441
B49: 8117 | C49: Klinická hodnocení - Neurologická klinika | D49: 51911.6132 | E49: 0 | F49: 36560.6963 | G49: 217114.7313 | H49: 0 | I49: 52952.1977 | J49: 49899.1837 | K49: 0 | L49: 0 | M49: 122810.8636 | N49: 0 | O49: 0 | P49: 531249.2858 | S49: Orig | T49: 64924441
B50: 8120 | C50: Klinická hodnocení - Klinika chorob kožních a pohlavních | D50: 0 | E50: 0 | F50: 0 | G50: 0 | H50: 102224.9005 | I50: 0 | J50: 0 | K50: 0 | L50: 0 | M50: 0 | N50: 0 | O50: 0 | P50: 102224.9005 | S50: Orig | T50: 64924441
B51: 8121 | C51: Klinická hodnocení - Onkologická klinika | D51: 7058.0518 | E51: 371309.5957 | F51: 7086.5681 | G51: 63.7791 | H51: 393108.2903 | I51: 43121.8025 | J51: 401196.8212 | K51: 455302.7193 | L51: 0 | M51: 13802.5655 | N51: 463824.9553 | O51: 0 | P51: 2155875.149 | S51: Orig | T51: 64924441
B52: 8132 | C52: Klinická hodnocení - Hemato-onkologická klinika | D52: 0 | E52: 30281.6143 | F52: 219513.0385 | G52: 444.3278 | H52: 0 | I52: 156712.4599 | J52: 387346.1805 | K52: 19439.6469 | L52: 0 | M52: 0 | N52: 434633.1701 | O52: 328861.3856 | P52: 1577231.824 | S52: Orig | T52: 64924441
B53: 8134 | C53: Klinická hodnocení - Radiologická klinika | D53: 0 | E53: 0 | F53: 0 | G53: 0 | H53: 0 | I53: 63714.3774 | J53: 0 | K53: 0 | L53: 0 | M53: 0 | N53: 0 | O53: 0 | P53: 63714.3774 | S53: Orig | T53: 64924441
B54: 8148 | C54: Klinická hodnocení - Lékárna | D54: 19994.504 | E54: 19742.5836 | F54: 23157.1047 | G54: 0 | H54: 26624.7538 | I54: 17515.5799 | J54: 96403.9721 | K54: 17043.1468 | L54: 26405.6229 | M54: 2047.3804 | N54: 94400.1387 | O54: 131153.7456 | P54: 474488.5325 | S54: Orig | T54: 64924441
B55: 8150 | C55: Klinická hodnocení - Kardiochirurgická klinika | D55: 39496.9733 | E55: 0 | F55: 3933.4705 | G55: 0 | H55: 0 | I55: 0 | J55: 27258.6686 | K55: 0 | L55: 6652.8489 | M55: 0 | N55: 0 | O55: 0 | P55: 77341.9613 | S55: Orig | T55: 64924441
B56: 9028 | C56: Oddělení vědy a výzkumu | D56: 21259.7044 | E56: 21095.1897 | F56: 63857.7458 | G56: 0 | H56: 56659.2382 | I56: 42519.4088 | J56: 21212.6142 | K56: 0 | L56: 42519.4088 | M56: 21287.0444 | N56: 21096.8338 | O56: 21259.7044 | P56: 332766.8925 | S56: Orig | T56: 64924441
C57: =IFERROR(VLOOKUP(B57,CisNS!$A:$B,2,FALSE),"") ->  | P57: 0 | T57: =T45 -> 64924441 | U57: End
A59: 67101000 | B59: Transfery MZ - ostatní | D59: =SUM(D60:D77) -> 1524833.333 | E59: =SUM(E60:E77) -> 1524833.333 | F59: =SUM(F60:F77) -> 1289833.333 | G59: =SUM(G60:G77) -> 1289833.333 | H59: =SUM(H60:H77) -> 1289833.333 | I59: =SUM(I60:I77) -> 1289833.333 | J59: =SUM(J60:J77) -> 1767833.333 | K59: =SUM(K60:K77) -> 1824833.333 | L59: =SUM(L60:L77) -> 1289833.333 | M59: =SUM(M60:M77) -> 1289833.333 | N59: =SUM(N60:N77) -> 1289833.333 | O59: =SUM(O60:O77) -> 1289833.333 | P59: =SUM(P60:P77) -> 16961000 | Q59: =ROUND(P59-SUMIF('1_Původní'!A:A,'2_Upravený'!A59,'1_Původní'!P:P),0) -> 0
B60: 0873 | C60: IROP - Mod.obn.přístr.vyb.perinatologického centra | D60: 0 | E60: 0 | F60: 0 | G60: 0 | H60: 0 | I60: 0 | J60: 0 | K60: 0 | L60: 0 | M60: 0 | N60: 0 | O60: 0 | P60: =SUM(D60:O60) -> 0 | Q60: =IF(AND(ROUND(P60,0)<>0,B60=""),"Obrat bez specifikace NS","") ->  | S60: Orig | T60: =$A$59 -> 67101000
B61: 1096 | C61: OPVaVI - NPU I (projekt ÚMTM) | D61: 0 | E61: 0 | F61: 0 | G61: 0 | H61: 0 | I61: 0 | J61: 0 | K61: 0 | L61: 0 | M61: 0 | N61: 0 | O61: 0 | P61: =SUM(D61:O61) -> 0 | Q61: =IF(AND(ROUND(P61,0)<>0,B61=""),"Obrat bez specifikace NS","") ->  | S61: Orig | T61: =$A$59 -> 67101000
B62: 1704 | C62: OP VVV - Molekulární, buněčný a klinický přístup ke zdravému stárnutí | D62: 1210000 | E62: 1210000 | F62: 1210000 | G62: 1210000 | H62: 1210000 | I62: 1210000 | J62: 1210000 | K62: 1210000 | L62: 1210000 | M62: 1210000 | N62: 1210000 | O62: 1210000 | P62: 14520000 | S62: Orig | T62: 67101000
B63: 2103 | C63: Národní onkologický registr - NOR | D63: 0 | E63: 0 | F63: 0 | G63: 0 | H63: 0 | I63: 0 | J63: 0 | K63: 535000 | L63: 0 | M63: 0 | N63: 0 | O63: 0 | P63: 535000 | S63: Orig | T63: 67101000
B64: 3203 | C64: HOK: OPŽP - Novostavba pavilonu HOK | D64: 0 | E64: 0 | F64: 0 | G64: 0 | H64: 0 | I64: 0 | J64: 0 | K64: 0 | L64: 0 | M64: 0 | N64: 0 | O64: 0 | P64: 0 | S64: Orig | T64: 67101000
B65: 3396 | C65: OPVaVI - NPU I (projekt ÚMTM) | D65: 0 | E65: 0 | F65: 0 | G65: 0 | H65: 0 | I65: 0 | J65: 0 | K65: 0 | L65: 0 | M65: 0 | N65: 0 | O65: 0 | P65: 0 | S65: Orig | T65: 67101000
B66: 3503 | C66: TO - krizová připravenost | D66: 0 | E66: 0 | F66: 0 | G66: 0 | H66: 0 | I66: 0 | J66: 130000 | K66: 0 | L66: 0 | M66: 0 | N66: 0 | O66: 0 | P66: 130000 | S66: Orig | T66: 67101000
B67: 4496 | C67: OPVaVI - NPU I (projekt ÚMTM) | D67: 0 | E67: 0 | F67: 0 | G67: 0 | H67: 0 | I67: 0 | J67: 0 | K67: 0 | L67: 0 | M67: 0 | N67: 0 | O67: 0 | P67: 0 | S67: Orig | T67: 67101000
B68: 5102 | C68: NTMC - Národní telemedicínské centrum - provoz | D68: 0 | E68: 0 | F68: 0 | G68: 0 | H68: 0 | I68: 0 | J68: 0 | K68: 0 | L68: 0 | M68: 0 | N68: 0 | O68: 0 | P68: 0 | S68: Orig | T68: 67101000
B69: 5106 | C69: NTMC: SHAPES | D69: 0 | E69: 0 | F69: 0 | G69: 0 | H69: 0 | I69: 0 | J69: 0 | K69: 0 | L69: 0 | M69: 0 | N69: 0 | O69: 0 | P69: 0 | S69: Orig | T69: 67101000
B70: 9029 | C70: Paliativní péče | D70: 235000 | E70: 235000 | F70: 0 | G70: 0 | H70: 0 | I70: 0 | J70: 0 | K70: 0 | L70: 0 | M70: 0 | N70: 0 | O70: 0 | P70: 470000 | S70: Orig | T70: 67101000
B71: 9151 | C71: MA FNOL: Běh za zdraví | D71: 0 | E71: 0 | F71: 0 | G71: 0 | H71: 0 | I71: 0 | J71: 0 | K71: 0 | L71: 0 | M71: 0 | N71: 0 | O71: 0 | P71: 0 | S71: Orig | T71: 67101000
B72: 9801 | C72: Krizová připravenost - MZ | D72: 0 | E72: 0 | F72: 0 | G72: 0 | H72: 0 | I72: 0 | J72: 348000 | K72: 0 | L72: 0 | M72: 0 | N72: 0 | O72: 0 | P72: 348000 | S72: Orig | T72: 67101000
B73: 9819 | C73: TranMZČR: Bezpečnost a kvalita zdravotní péče | D73: 0 | E73: 0 | F73: 0 | G73: 0 | H73: 0 | I73: 0 | J73: 0 | K73: 0 | L73: 0 | M73: 0 | N73: 0 | O73: 0 | P73: 0 | S73: Orig | T73: 67101000
B74: 5110 | C74: =IFERROR(VLOOKUP(B74,CisNS!$A:$B,2,FALSE),"") -> NTMC: Projekt X | D74: 79833.33333 | E74: 79833.33333 | F74: 79833.33333 | G74: 79833.33333 | H74: 79833.33333 | I74: 79833.33333 | J74: 79833.33333 | K74: 79833.33333 | L74: 79833.33333 | M74: 79833.33333 | N74: 79833.33333 | O74: 79833.33333 | P74: =SUM(D74:O74) -> 958000 | Q74: =IF(AND(ROUND(P74,0)<>0,B74=""),"Obrat bez specifikace NS","") ->  | T74: 67101000
C75: =IFERROR(VLOOKUP(B75,CisNS!$A:$B,2,FALSE),"") ->  | D75: 0 | E75: 0 | F75: 0 | G75: 0 | H75: 0 | I75: 0 | J75: 0 | K75: 0 | L75: 0 | M75: 0 | N75: 0 | O75: 0 | P75: =SUM(D75:O75) -> 0 | Q75: =IF(AND(ROUND(P75,0)<>0,B75=""),"Obrat bez specifikace NS","") ->  | T75: 67101000
C76: =IFERROR(VLOOKUP(B76,CisNS!$A:$B,2,FALSE),"") ->  | P76: =SUM(D76:O76) -> 0 | Q76: =IF(AND(ROUND(P76,0)<>0,B76=""),"Obrat bez specifikace NS","") ->  | T76: 67101000
C77: =IFERROR(VLOOKUP(B77,CisNS!$A:$B,2,FALSE),"") ->  | P77: 0 | T77: =T60 -> 67101000 | U77: End
A79: 67101001 | B79: Transfery MZ na VaV - věcné náklady | D79: =SUM(D80:D91) -> 0 | E79: =SUM(E80:E91) -> 1071000 | F79: =SUM(F80:F91) -> 0 | G79: =SUM(G80:G91) -> 0 | H79: =SUM(H80:H91) -> 1078000 | I79: =SUM(I80:I91) -> 680000 | J79: =SUM(J80:J91) -> 0 | K79: =SUM(K80:K91) -> 0 | L79: =SUM(L80:L91) -> 0 | M79: =SUM(M80:M91) -> 0 | N79: =SUM(N80:N91) -> 0 | O79: =SUM(O80:O91) -> 0 | P79: =SUM(P80:P91) -> 2829000 | Q79: =ROUND(P79-SUMIF('1_Původní'!A:A,'2_Upravený'!A79,'1_Původní'!P:P),0) -> 0
B80: 8508 | C80: Prof. MUDr. Miloš Táborský, CSc., FESC, MBA - I.IK | D80: 0 | E80: 0 | F80: 0 | G80: 0 | H80: 0 | I80: 0 | J80: 0 | K80: 0 | L80: 0 | M80: 0 | N80: 0 | O80: 0 | P80: =SUM(D80:O80) -> 0 | Q80: =IF(AND(ROUND(P80,0)<>0,B80=""),"Obrat bez specifikace NS","") ->  | S80: Orig | T80: =$A$79 -> 67101001
B81: 8509 | C81: Doc. MUDr. Daniel Šaňák, PhD. - NEUROL | D81: 0 | E81: 0 | F81: 0 | G81: 0 | H81: 0 | I81: 0 | J81: 0 | K81: , | L81: 0 | M81: 0 | N81: 0 | O81: 0 | P81: =SUM(D81:O81) -> 0 | Q81: =IF(AND(ROUND(P81,0)<>0,B81=""),"Obrat bez specifikace NS","") ->  | S81: Orig | T81: =$A$79 -> 67101001
B82: 8510 | C82: Doc. MUDr. Petr Hamal, PhD. - MIKRO | D82: 0 | E82: 0 | F82: 0 | G82: 0 | H82: 0 | I82: 0 | J82: 0 | K82: 0 | L82: 0 | M82: 0 | N82: 0 | O82: 0 | P82: 0 | S82: Orig | T82: 67101001
B83: 8511 | C83: Prof. MUDr. Radovan Pilka, PhD. - PORGYN | D83: 0 | E83: 0 | F83: 0 | G83: 0 | H83: 0 | I83: 405000 | J83: 0 | K83: 0 | L83: 0 | M83: 0 | N83: 0 | O83: 0 | P83: 405000 | S83: Orig | T83: 67101001
B84: 8512 | C84: Grant: MUDr. Martin Loveček, PhD. - I. CHIR | D84: 0 | E84: 0 | F84: 0 | G84: 0 | H84: 213000 | I84: 0 | J84: 0 | K84: 0 | L84: 0 | M84: 0 | N84: 0 | O84: 0 | P84: 213000 | S84: Orig | T84: 67101001
B85: 8513 | C85: Grant: MUDr. Martin Šín, PhD., FEBO - OČNÍ | D85: 0 | E85: 0 | F85: 0 | G85: 0 | H85: 354000 | I85: 0 | J85: 0 | K85: 0 | L85: 0 | M85: 0 | N85: 0 | O85: 0 | P85: 354000 | S85: Orig | T85: 67101001
B86: 8514 | C86: Grant: Doc. MUDr. Miroslav Vaverka, CSc. - NEUROCH | D86: 0 | E86: 0 | F86: 0 | G86: 0 | H86: 0 | I86: 275000 | J86: 0 | K86: 0 | L86: 0 | M86: 0 | N86: 0 | O86: 0 | P86: 275000 | S86: Orig | T86: 67101001
B87: 8515 | C87: =IFERROR(VLOOKUP(B87,CisNS!$A:$B,2,FALSE),"") -> Grant: Doc. Dr. Ing. Eva Kriegová - IMUNO | D87: 0 | E87: 0 | F87: 0 | G87: 0 | H87: 300000 | I87: 0 | J87: 0 | K87: 0 | L87: 0 | M87: 0 | N87: 0 | O87: 0 | P87: =SUM(D87:O87) -> 300000 | Q87: =IF(AND(ROUND(P87,0)<>0,B87=""),"Obrat bez specifikace NS","") ->  | T87: 67101001
B88: 8516 | C88: =IFERROR(VLOOKUP(B88,CisNS!$A:$B,2,FALSE),"") -> Grant: Prof. RNDr. Tomáš Adam, PhD. - OKB | D88: 0 | E88: 0 | F88: 0 | G88: 0 | H88: 211000 | I88: 0 | J88: 0 | K88: 0 | L88: 0 | M88: 0 | N88: 0 | O88: 0 | P88: =SUM(D88:O88) -> 211000 | Q88: =IF(AND(ROUND(P88,0)<>0,B88=""),"Obrat bez specifikace NS","") ->  | T88: 67101001
B89: 8517 | C89: =IFERROR(VLOOKUP(B89,CisNS!$A:$B,2,FALSE),"") -> Grant: Ing. David Kula, PhD., MBA - I.IK | D89: 0 | E89: 1071000 | F89: 0 | G89: 0 | H89: 0 | I89: 0 | J89: 0 | K89: 0 | L89: 0 | M89: 0 | N89: 0 | O89: 0 | P89: =SUM(D89:O89) -> 1071000 | Q89: =IF(AND(ROUND(P89,0)<>0,B89=""),"Obrat bez specifikace NS","") ->  | T89: 67101001
C90: =IFERROR(VLOOKUP(B90,CisNS!$A:$B,2,FALSE),"") ->  | P90: =SUM(D90:O90) -> 0 | Q90: =IF(AND(ROUND(P90,0)<>0,B90=""),"Obrat bez specifikace NS","") ->  | T90: 67101001
C91: =IFERROR(VLOOKUP(B91,CisNS!$A:$B,2,FALSE),"") ->  | P91: 0 | T91: =T80 -> 67101001 | U91: End
A93: 67101002 | B93: Transfery MZ na VaV - mzdové náklady | D93: =SUM(D94:D104) -> 0 | E93: =SUM(E94:E104) -> 0 | F93: =SUM(F94:F104) -> 558000 | G93: =SUM(G94:G104) -> 0 | H93: =SUM(H94:H104) -> 2221000 | I93: =SUM(I94:I104) -> 1095000 | J93: =SUM(J94:J104) -> 0 | K93: =SUM(K94:K104) -> 0 | L93: =SUM(L94:L104) -> 0 | M93: =SUM(M94:M104) -> 0 | N93: =SUM(N94:N104) -> 0 | O93: =SUM(O94:O104) -> 0 | P93: =SUM(P94:P104) -> 3874000 | Q93: =ROUND(P93-SUMIF('1_Původní'!A:A,'2_Upravený'!A93,'1_Původní'!P:P),0) -> 0
B94: 8508 | C94: Prof. MUDr. Miloš Táborský, CSc., FESC, MBA - I.IK | D94: 0 | E94: 0 | F94: 0 | G94: 0 | H94: 0 | I94: 0 | J94: 0 | K94: 0 | L94: 0 | M94: 0 | N94: 0 | O94: 0 | P94: =SUM(D94:O94) -> 0 | Q94: =IF(AND(ROUND(P94,0)<>0,B94=""),"Obrat bez specifikace NS","") ->  | S94: Orig | T94: =$A$93 -> 67101002
B95: 8509 | C95: Doc. MUDr. Daniel Šaňák, PhD. - NEUROL | D95: 0 | E95: 0 | F95: 0 | G95: 0 | H95: 0 | I95: 0 | J95: 0 | K95: 0 | L95: 0 | M95: 0 | N95: 0 | O95: 0 | P95: =SUM(D95:O95) -> 0 | Q95: =IF(AND(ROUND(P95,0)<>0,B95=""),"Obrat bez specifikace NS","") ->  | S95: Orig | T95: =$A$93 -> 67101002
B96: 8510 | C96: Doc. MUDr. Petr Hamal, PhD. - MIKRO | D96: 0 | E96: 0 | F96: 0 | G96: 0 | H96: 0 | I96: 0 | J96: 0 | K96: 0 | L96: 0 | M96: 0 | N96: 0 | O96: 0 | P96: 0 | S96: Orig | T96: 67101002
B97: 8511 | C97: Prof. MUDr. Radovan Pilka, PhD. - PORGYN | D97: 0 | E97: 0 | F97: 0 | G97: 0 | H97: 0 | I97: 809000 | J97: 0 | K97: 0 | L97: 0 | M97: 0 | N97: 0 | O97: 0 | P97: 809000 | S97: Orig | T97: 67101002
B98: 8512 | C98: Grant: MUDr. Martin Loveček, PhD. - I. CHIR | D98: 0 | E98: 0 | F98: 0 | G98: 0 | H98: 502000 | I98: 0 | J98: 0 | K98: 0 | L98: 0 | M98: 0 | N98: 0 | O98: 0 | P98: 502000 | S98: Orig | T98: 67101002
B99: 8513 | C99: Grant: MUDr. Martin Šín, PhD., FEBO - OČNÍ | D99: 0 | E99: 0 | F99: 0 | G99: 0 | H99: 616000 | I99: 0 | J99: 0 | K99: 0 | L99: 0 | M99: 0 | N99: 0 | O99: 0 | P99: 616000 | S99: Orig | T99: 67101002
B100: 8514 | C100: Grant: Doc. MUDr. Miroslav Vaverka, CSc. - NEUROCH | D100: 0 | E100: 0 | F100: 0 | G100: 0 | H100: 0 | I100: 286000 | J100: 0 | K100: 0 | L100: 0 | M100: 0 | N100: 0 | O100: 0 | P100: 286000 | S100: Orig | T100: 67101002
B101: 8515 | C101: =IFERROR(VLOOKUP(B101,CisNS!$A:$B,2,FALSE),"") -> Grant: Doc. Dr. Ing. Eva Kriegová - IMUNO | E101: 0 | F101: 0 | G101: 0 | H101: 620000 | I101: 0 | J101: 0 | K101: 0 | L101: 0 | M101: 0 | N101: 0 | O101: 0 | P101: =SUM(D101:O101) -> 620000 | Q101: =IF(AND(ROUND(P101,0)<>0,B101=""),"Obrat bez specifikace NS","") ->  | T101: 67101002
B102: 8516 | C102: =IFERROR(VLOOKUP(B102,CisNS!$A:$B,2,FALSE),"") -> Grant: Prof. RNDr. Tomáš Adam, PhD. - OKB | E102: 0 | F102: 0 | G102: 0 | H102: 483000 | I102: 0 | J102: 0 | K102: 0 | L102: 0 | M102: 0 | N102: 0 | O102: 0 | P102: =SUM(D102:O102) -> 483000 | Q102: =IF(AND(ROUND(P102,0)<>0,B102=""),"Obrat bez specifikace NS","") ->  | T102: 67101002
B103: 8517 | C103: =IFERROR(VLOOKUP(B103,CisNS!$A:$B,2,FALSE),"") -> Grant: Ing. David Kula, PhD., MBA - I.IK | E103: 0 | F103: 558000 | G103: 0 | H103: 0 | I103: 0 | J103: 0 | K103: 0 | L103: 0 | M103: 0 | N103: 0 | O103: 0 | P103: =SUM(D103:O103) -> 558000 | Q103: =IF(AND(ROUND(P103,0)<>0,B103=""),"Obrat bez specifikace NS","") ->  | T103: 67101002
C104: =IFERROR(VLOOKUP(B104,CisNS!$A:$B,2,FALSE),"") ->  | P104: 0 | T104: =T94 -> 67101002 | U104: End
A106: 67101006 | B106: Transfery MZ na rezidenční místa | D106: =SUM(D107:D132) -> 0 | E106: =SUM(E107:E132) -> 0 | F106: =SUM(F107:F132) -> 0 | G106: =SUM(G107:G132) -> 0 | H106: =SUM(H107:H132) -> 63293.8999 | I106: =SUM(I107:I132) -> 1979545.794 | J106: =SUM(J107:J132) -> 0 | K106: =SUM(K107:K132) -> 1504875.034 | L106: =SUM(L107:L132) -> 0 | M106: =SUM(M107:M132) -> 3547714.728 | N106: =SUM(N107:N132) -> 153926.8677 | O106: =SUM(O107:O132) -> 901643.6763 | P106: =SUM(P107:P132) -> 8151000 | Q106: =ROUND(P106-SUMIF('1_Původní'!A:A,'2_Upravený'!A106,'1_Původní'!P:P),0) -> 0
B107: 0184 | C107: 1IK: rezidenti 2019 - nelékařské obory | D107: 0 | E107: 0 | F107: 0 | G107: 0 | H107: 0 | I107: 0 | J107: 0 | K107: 0 | L107: 0 | M107: 0 | N107: 12177.7585 | O107: -2800.8845 | P107: =SUM(D107:O107) -> 9376.874 | Q107: =IF(AND(ROUND(P107,0)<>0,B107=""),"Obrat bez specifikace NS","") ->  | S107: Orig | T107: =$A$106 -> 67101006
B108: 0185 | C108: Rezidenti 2018 - nelékařské obory | D108: 0 | E108: 0 | F108: 0 | G108: 0 | H108: 0 | I108: 0 | J108: 0 | K108: 205804.119 | L108: 0 | M108: 205804.119 | N108: 0 | O108: -8755.8084 | P108: =SUM(D108:O108) -> 402852.4296 | Q108: =IF(AND(ROUND(P108,0)<>0,B108=""),"Obrat bez specifikace NS","") ->  | S108: Orig | T108: =$A$106 -> 67101006
B109: 0188 | C109: Rezidenti 2017 - nelékařské obory | D109: 0 | E109: 0 | F109: 0 | G109: 0 | H109: 0 | I109: 101074.178 | J109: 0 | K109: 0 | L109: 0 | M109: 101074.178 | N109: 0 | O109: -5967.1017 | P109: 196181.2543 | S109: Orig | T109: 67101006
B110: 0286 | C110: Rezidenti 2018 - lékaři | D110: 0 | E110: 0 | F110: 0 | G110: 0 | H110: 0 | I110: 571136.8747 | J110: 0 | K110: 0 | L110: 0 | M110: 571136.8747 | N110: 0 | O110: 0 | P110: 1142273.749 | S110: Orig | T110: 67101006
B111: 0386 | C111: 3IK: Rezidenti 2019 - lékaři | D111: 0 | E111: 0 | F111: 0 | G111: 0 | H111: 0 | I111: 0 | J111: 0 | K111: 0 | L111: 0 | M111: 0 | N111: 0 | O111: 170488.6193 | P111: 170488.6193 | S111: Orig | T111: 67101006
B112: 0685 | C112: Rezidenti 2018 | D112: 0 | E112: 0 | F112: 0 | G112: 0 | H112: 0 | I112: 0 | J112: 0 | K112: 122264.6956 | L112: 0 | M112: 122264.6956 | N112: 0 | O112: 0 | P112: 244529.3912 | S112: Orig | T112: 67101006
B113: 0688 | C113: Rezidenti 2017 - nelékařské obory | D113: 0 | E113: 0 | F113: 0 | G113: 0 | H113: 0 | I113: 16318.1964 | J113: 0 | K113: 0 | L113: 0 | M113: 16318.1964 | N113: 0 | O113: 0 | P113: 32636.3928 | S113: Orig | T113: 67101006
B114: 0785 | C114: Rezidenti 2018 | D114: 0 | E114: 0 | F114: 0 | G114: 0 | H114: 0 | I114: 0 | J114: 0 | K114: 250472.1373 | L114: 0 | M114: 250472.1373 | N114: 0 | O114: -706.31 | P114: 500237.9646 | S114: Orig | T114: 67101006
B115: 0788 | C115: Rezidenti 2017 - nelékařské obory | D115: 0 | E115: 0 | F115: 0 | G115: 0 | H115: 0 | I115: 16318.1964 | J115: 0 | K115: 0 | L115: 0 | M115: 16318.1964 | N115: 0 | O115: 0 | P115: 32636.3928 | S115: Orig | T115: 67101006
B116: 0885 | C116: Rezidenti 2018 | D116: 0 | E116: 0 | F116: 0 | G116: 0 | H116: 0 | I116: 0 | J116: 0 | K116: 122264.6956 | L116: 0 | M116: 122264.6956 | N116: 0 | O116: 0 | P116: 244529.3912 | S116: Orig | T116: 67101006
B117: 0886 | C117: Rezidenti 2018 | D117: 0 | E117: 0 | F117: 0 | G117: 0 | H117: 0 | I117: 571136.8747 | J117: 0 | K117: 0 | L117: 0 | M117: 571136.8747 | N117: 0 | O117: 0 | P117: 1142273.749 | S117: Orig | T117: 67101006
B118: 0988 | C118: Rezidenti 2017 - nelékařské obory | D118: 0 | E118: 0 | F118: 0 | G118: 0 | H118: 0 | I118: 56191.8311 | J118: 0 | K118: 0 | L118: 0 | M118: 56191.8311 | N118: 0 | O118: 0 | P118: 112383.6622 | S118: Orig | T118: 67101006
B119: 1083 | C119: Rezidenti 2016 - ošetřovatelská a intenzivní péče | D119: 0 | E119: 0 | F119: 0 | G119: 0 | H119: 63293.8999 | I119: 0 | J119: 0 | K119: 0 | L119: 0 | M119: 63293.8999 | N119: 0 | O119: 0 | P119: 126587.7998 | S119: Orig | T119: 67101006
B120: 1086 | C120: DK: Rezidenti 2019 - lékaři | D120: 0 | E120: 0 | F120: 0 | G120: 0 | H120: 0 | I120: 0 | J120: 0 | K120: 0 | L120: 0 | M120: 0 | N120: 0 | O120: 664788.7088 | P120: 664788.7088 | S120: Orig | T120: 67101006
B121: 1185 | C121: Rezidenti 2018 | D121: 0 | E121: 0 | F121: 0 | G121: 0 | H121: 0 | I121: 0 | J121: 0 | K121: 143453.9954 | L121: 0 | M121: 143453.9954 | N121: 42378.5997 | O121: -718.4878 | P121: 328568.1027 | S121: Orig | T121: 67101006
B122: 1188 | C122: Rezidenti 2017 - nelékařské obory | D122: 0 | E122: 0 | F122: 0 | G122: 0 | H122: 0 | I122: 0 | J122: 0 | K122: 0 | L122: 0 | M122: 0 | N122: 75014.9925 | O122: -733.1011 | P122: 74281.8914 | S122: Orig | T122: 67101006
B123: 1388 | C123: Rezidenti 2017 - nelékařské obory | D123: 0 | E123: 0 | F123: 0 | G123: 0 | H123: 0 | I123: 59914.5719 | J123: 0 | K123: 0 | L123: 0 | M123: 59914.5719 | N123: 0 | O123: 0 | P123: 119829.1438 | S123: Orig | T123: 67101006
B124: 1685 | C124: Rezidenti 2018 | D124: 0 | E124: 0 | F124: 0 | G124: 0 | H124: 0 | I124: 0 | J124: 0 | K124: 256414.8834 | L124: 0 | M124: 256414.8834 | N124: 0 | O124: -706.31 | P124: 512123.4568 | S124: Orig | T124: 67101006
B125: 1686 | C125: PLIC: rezidenti 2019 - lékaři | D125: 0 | E125: 0 | F125: 0 | G125: 0 | H125: 0 | I125: 0 | J125: 0 | K125: 0 | L125: 0 | M125: 0 | N125: 0 | O125: 166197.1772 | P125: 166197.1772 | S125: Orig | T125: 67101006
B126: 1886 | C126: Rezidenti 2018 | D126: 0 | E126: 0 | F126: 0 | G126: 0 | H126: 0 | I126: 571136.8747 | J126: 0 | K126: 0 | L126: 0 | M126: 571136.8747 | N126: 0 | O126: 0 | P126: 1142273.749 | S126: Orig | T126: 67101006
B127: 3285 | C127: Rezidenti 2018 | D127: 0 | E127: 0 | F127: 0 | G127: 0 | H127: 0 | I127: 0 | J127: 0 | K127: 187513.1257 | L127: 0 | M127: 187513.1257 | N127: 0 | O127: -50350.1604 | P127: 324676.091 | S127: Orig | T127: 67101006
B128: 3485 | C128: Rezidenti 2018 | D128: 0 | E128: 0 | F128: 0 | G128: 0 | H128: 0 | I128: 0 | J128: 0 | K128: 94422.6862 | L128: 0 | M128: 94422.6862 | N128: 0 | O128: -24355.517 | P128: 164489.8554 | S128: Orig | T128: 67101006
B129: 5085 | C129: Rezidenti 2018 | D129: 0 | E129: 0 | F129: 0 | G129: 0 | H129: 0 | I129: 0 | J129: 0 | K129: 122264.6956 | L129: 0 | M129: 122264.6956 | N129: 0 | O129: -353.155 | P129: 244176.2362 | S129: Orig | T129: 67101006
B130: 5684 | D130: 0 | E130: 0 | F130: 0 | G130: 0 | H130: 0 | I130: 0 | J130: 0 | K130: 0 | L130: 0 | M130: 0 | N130: 24355.517 | O130: -4383.9931 | P130: 19971.5239 | S130: Orig | T130: 67101006
B131: 6088 | C131: Rezidenti 2017 - nelékařské obory | D131: 0 | E131: 0 | F131: 0 | G131: 0 | H131: 0 | I131: 16318.1964 | J131: 0 | K131: 0 | L131: 0 | M131: 16318.1964 | N131: 0 | O131: 0 | P131: 32636.3928 | S131: Orig | T131: 67101006
C132: =IFERROR(VLOOKUP(B132,CisNS!$A:$B,2,FALSE),"") ->  | P132: 0 | T132: =T107 -> 67101006 | U132: End
A134: 67101010 | B134: Transfery MZ - RIV (institucionální podpora) | D134: =SUM(D135:D163) -> 0 | E134: =SUM(E135:E163) -> 0 | F134: =SUM(F135:F163) -> 0 | G134: =SUM(G135:G163) -> 8000000 | H134: =SUM(H135:H163) -> 0 | I134: =SUM(I135:I163) -> 0 | J134: =SUM(J135:J163) -> 0 | K134: =SUM(K135:K163) -> 0 | L134: =SUM(L135:L163) -> 0 | M134: =SUM(M135:M163) -> 0 | N134: =SUM(N135:N163) -> 0 | O134: =SUM(O135:O163) -> 0 | P134: =SUM(P135:P163) -> 8000000 | Q134: =ROUND(P134-SUMIF('1_Původní'!A:A,'2_Upravený'!A134,'1_Původní'!P:P),0) -> 0
B135: 8711 | C135: RIV: doc. Mgr. Jan Bouchal, PhD. | D135: 0 | E135: 0 | F135: 0 | G135: 0 | H135: 0 | I135: 0 | J135: 0 | K135: 0 | L135: 0 | M135: 0 | N135: 0 | O135: 0 | P135: =SUM(D135:O135) -> 0 | Q135: =IF(AND(ROUND(P135,0)<>0,B135=""),"Obrat bez specifikace NS","") ->  | S135: Orig | T135: =$A$134 -> 67101010
B136: 8712 | C136: RIV: prof. MUDr. Jiří Gallo, PhD. | D136: 0 | E136: 0 | F136: 0 | G136: 0 | H136: 0 | I136: 0 | J136: 0 | K136: 0 | L136: 0 | M136: 0 | N136: 0 | O136: 0 | P136: =SUM(D136:O136) -> 0 | Q136: =IF(AND(ROUND(P136,0)<>0,B136=""),"Obrat bez specifikace NS","") ->  | S136: Orig | T136: =$A$134 -> 67101010
B137: 8713 | C137: RIV: MUDr. Matěj Halaj | D137: 0 | E137: 0 | F137: 0 | G137: 0 | H137: 0 | I137: 0 | J137: 0 | K137: 0 | L137: 0 | M137: 0 | N137: 0 | O137: 0 | P137: 0 | S137: Orig | T137: 67101010
B138: 8715 | C138: RIV: MUDr. Karel Huml | D138: 0 | E138: 0 | F138: 0 | G138: 200000 | H138: 0 | I138: 0 | J138: 0 | K138: 0 | L138: 0 | M138: 0 | N138: 0 | O138: 0 | P138: 200000 | S138: Orig | T138: 67101010
B139: 8716 | C139: RIV: MUDr. Beáta Hutyrová, PhD. | D139: 0 | E139: 0 | F139: 0 | G139: 300000 | H139: 0 | I139: 0 | J139: 0 | K139: 0 | L139: 0 | M139: 0 | N139: 0 | O139: 0 | P139: 300000 | S139: Orig | T139: 67101010
B140: 8719 | C140: RIV: MUDr. Hana Klosová, PhD. | D140: 0 | E140: 0 | F140: 0 | G140: 300000 | H140: 0 | I140: 0 | J140: 0 | K140: 0 | L140: 0 | M140: 0 | N140: 0 | O140: 0 | P140: 300000 | S140: Orig | T140: 67101010
B141: 8720 | C141: RIV: MUDr. Petr Kolář, PhD. | D141: 0 | E141: 0 | F141: 0 | G141: 300000 | H141: 0 | I141: 0 | J141: 0 | K141: 0 | L141: 0 | M141: 0 | N141: 0 | O141: 0 | P141: 300000 | S141: Orig | T141: 67101010
B142: 8721 | C142: RIV: MUDr. Andrea Smržová | D142: 0 | E142: 0 | F142: 0 | G142: 300000 | H142: 0 | I142: 0 | J142: 0 | K142: 0 | L142: 0 | M142: 0 | N142: 0 | O142: 0 | P142: 300000 | S142: Orig | T142: 67101010
B143: 8724 | C143: RIV: MUDr. Vladimír Študent, PhD. | D143: 0 | E143: 0 | F143: 0 | G143: 300000 | H143: 0 | I143: 0 | J143: 0 | K143: 0 | L143: 0 | M143: 0 | N143: 0 | O143: 0 | P143: 300000 | S143: Orig | T143: 67101010
B144: 8725 | C144: RIV: MUDr. Helena Urbánková | D144: 0 | E144: 0 | F144: 0 | G144: 300000 | H144: 0 | I144: 0 | J144: 0 | K144: 0 | L144: 0 | M144: 0 | N144: 0 | O144: 0 | P144: 300000 | S144: Orig | T144: 67101010
B145: 8726 | C145: RIV: Mgr. Petr Vrtěl | D145: 0 | E145: 0 | F145: 0 | G145: 300000 | H145: 0 | I145: 0 | J145: 0 | K145: 0 | L145: 0 | M145: 0 | N145: 0 | O145: 0 | P145: 300000 | S145: Orig | T145: 67101010
B146: 8753 | C146: RIV: MUDr. Richard Salzmann, Ph.D. | D146: 0 | E146: 0 | F146: 0 | G146: 300000 | H146: 0 | I146: 0 | J146: 0 | K146: 0 | L146: 0 | M146: 0 | N146: 0 | O146: 0 | P146: 300000 | S146: Orig | T146: 67101010
B147: 8760 | C147: RIV: RNDr. Martin Novák, Ph.D. | D147: 0 | E147: 0 | F147: 0 | G147: 300000 | H147: 0 | I147: 0 | J147: 0 | K147: 0 | L147: 0 | M147: 0 | N147: 0 | O147: 0 | P147: 300000 | S147: Orig | T147: 67101010
B148: 8762 | C148: RIV - Doc. MUDr. David Karásek, Ph. D. | D148: 0 | E148: 0 | F148: 0 | G148: 300000 | H148: 0 | I148: 0 | J148: 0 | K148: 0 | L148: 0 | M148: 0 | N148: 0 | O148: 0 | P148: 300000 | S148: Orig | T148: 67101010
B149: 8777 | C149: RIV: Prof. MUDr. Radovan Pilka, Ph.D. | D149: 0 | E149: 0 | F149: 0 | G149: 300000 | H149: 0 | I149: 0 | J149: 0 | K149: 0 | L149: 0 | M149: 0 | N149: 0 | O149: 0 | P149: 300000 | S149: Orig | T149: 67101010
B150: 8780 | C150: RIV - MUDr. Eva Karásková | D150: 0 | E150: 0 | F150: 0 | G150: 300000 | H150: 0 | I150: 0 | J150: 0 | K150: 0 | L150: 0 | M150: 0 | N150: 0 | O150: 0 | P150: 300000 | S150: Orig | T150: 67101010
B151: 8782 | C151: RIV - RNDr. Pavlína Čapková, Ph. D. | D151: 0 | E151: 0 | F151: 0 | G151: 300000 | H151: 0 | I151: 0 | J151: 0 | K151: 0 | L151: 0 | M151: 0 | N151: 0 | O151: 0 | P151: 300000 | S151: Orig | T151: 67101010
B152: 8785 | C152: RIV - Doc. MUDr. Martin Hutyra, Ph. D. | D152: 0 | E152: 0 | F152: 0 | G152: 300000 | H152: 0 | I152: 0 | J152: 0 | K152: 0 | L152: 0 | M152: 0 | N152: 0 | O152: 0 | P152: 300000 | S152: Orig | T152: 67101010
B153: 8789 | C153: RIV - Doc. MUDr. Kateřina Menšíková, Ph. D. - MEX | D153: 0 | E153: 0 | F153: 0 | G153: 0 | H153: 0 | I153: 0 | J153: 0 | K153: 0 | L153: 0 | M153: 0 | N153: 0 | O153: 0 | P153: 0 | S153: Orig | T153: 67101010
B154: 8791 | C154: RIV - Doc. Mgr. Luděk Slavík, Ph. D. - MEX | D154: 0 | E154: 0 | F154: 0 | G154: 0 | H154: 0 | I154: 0 | J154: 0 | K154: 0 | L154: 0 | M154: 0 | N154: 0 | O154: 0 | P154: 0 | S154: Orig | T154: 67101010
B155: 8792 | C155: RIV - Prof. MUDr. Jiří Gallo, Ph. D. - MEX | D155: 0 | E155: 0 | F155: 0 | G155: 0 | H155: 0 | I155: 0 | J155: 0 | K155: 0 | L155: 0 | M155: 0 | N155: 0 | O155: 0 | P155: 0 | S155: Orig | T155: 67101010
B156: 8793 | C156: RIV: prof. MUDr. Milan Raška, PhD. - MEX | D156: 0 | E156: 0 | F156: 0 | G156: 0 | H156: 0 | I156: 0 | J156: 0 | K156: 0 | L156: 0 | M156: 0 | N156: 0 | O156: 0 | P156: 0 | S156: Orig | T156: 67101010
B157: 8794 | C157: RIV: MUDr. Martin Loveček, PhD. - MEX | D157: 0 | E157: 0 | F157: 0 | G157: 600000 | H157: 0 | I157: 0 | J157: 0 | K157: 0 | L157: 0 | M157: 0 | N157: 0 | O157: 0 | P157: 600000 | S157: Orig | T157: 67101010
B158: 8795 | C158: =IFERROR(VLOOKUP(B158,CisNS!$A:$B,2,FALSE),"") -> RIV: doc. MUDr. Martin Vrba , PhD. - MEX | D158: 0 | E158: 0 | F158: 0 | G158: 600000 | H158: 0 | I158: 0 | J158: 0 | K158: 0 | L158: 0 | M158: 0 | N158: 0 | O158: 0 | P158: =SUM(D158:O158) -> 600000 | Q158: =IF(AND(ROUND(P158,0)<>0,B158=""),"Obrat bez specifikace NS","") ->  | T158: 67101010
B159: 8796 | C159: =IFERROR(VLOOKUP(B159,CisNS!$A:$B,2,FALSE),"") -> RIV: doc. MUDr. Přemysl Falt, PhD. - MEX | D159: 0 | E159: 0 | F159: 0 | G159: 600000 | H159: 0 | I159: 0 | J159: 0 | K159: 0 | L159: 0 | M159: 0 | N159: 0 | O159: 0 | P159: =SUM(D159:O159) -> 600000 | Q159: =IF(AND(ROUND(P159,0)<>0,B159=""),"Obrat bez specifikace NS","") ->  | T159: 67101010
B160: 8797 | C160: =IFERROR(VLOOKUP(B160,CisNS!$A:$B,2,FALSE),"") -> RIV: prof. MUDr. Jiří Gallo, PhD. - MEX | D160: 0 | E160: 0 | F160: 0 | G160: 600000 | H160: 0 | I160: 0 | J160: 0 | K160: 0 | L160: 0 | M160: 0 | N160: 0 | O160: 0 | P160: =SUM(D160:O160) -> 600000 | Q160: =IF(AND(ROUND(P160,0)<>0,B160=""),"Obrat bez specifikace NS","") ->  | T160: 67101010
B161: 8798 | C161: =IFERROR(VLOOKUP(B161,CisNS!$A:$B,2,FALSE),"") -> RIV: prof. MUDr. Miloš Táborský, PhD. - MEX | D161: 0 | E161: 0 | F161: 0 | G161: 600000 | H161: 0 | I161: 0 | J161: 0 | K161: 0 | L161: 0 | M161: 0 | N161: 0 | O161: 0 | P161: =SUM(D161:O161) -> 600000 | Q161: =IF(AND(ROUND(P161,0)<>0,B161=""),"Obrat bez specifikace NS","") ->  | T161: 67101010
B162: 8799 | C162: =IFERROR(VLOOKUP(B162,CisNS!$A:$B,2,FALSE),"") -> RIV: doc. MUDr. Radek Vodička, PhD. - MEX | D162: 0 | E162: 0 | F162: 0 | G162: 600000 | H162: 0 | I162: 0 | J162: 0 | K162: 0 | L162: 0 | M162: 0 | N162: 0 | O162: 0 | P162: =SUM(D162:O162) -> 600000 | Q162: =IF(AND(ROUND(P162,0)<>0,B162=""),"Obrat bez specifikace NS","") ->  | T162: 67101010
C163: =IFERROR(VLOOKUP(B163,CisNS!$A:$B,2,FALSE),"") ->  | P163: 0 | T163: =T135 -> 67101010 | U163: End
A165: 67101011 | B165: Transfery MZ - MEDEVAC (humanitární program) | D165: =SUM(D166:D168) -> 0 | E165: =SUM(E166:E168) -> 0 | F165: =SUM(F166:F168) -> 0 | G165: =SUM(G166:G168) -> 0 | H165: =SUM(H166:H168) -> 0 | I165: =SUM(I166:I168) -> 0 | J165: =SUM(J166:J168) -> 0 | K165: =SUM(K166:K168) -> 0 | L165: =SUM(L166:L168) -> 0 | M165: =SUM(M166:M168) -> 0 | N165: =SUM(N166:N168) -> 403000 | O165: =SUM(O166:O168) -> 0 | P165: =SUM(P166:P168) -> 403000 | Q165: =ROUND(P165-SUMIF('1_Původní'!A:A,'2_Upravený'!A165,'1_Původní'!P:P),0) -> 0
B166: 9813 | C166: MEDEVAC | D166: 0 | E166: 0 | F166: 0 | G166: 0 | H166: 0 | I166: 0 | J166: 0 | K166: 0 | L166: 0 | M166: 0 | N166: 0 | O166: 0 | P166: =SUM(D166:O166) -> 0 | Q166: =IF(AND(ROUND(P166,0)<>0,B166=""),"Obrat bez specifikace NS","") ->  | S166: Orig | T166: =$A$5 -> 64908009
B167: 9810 | C167: =IFERROR(VLOOKUP(B167,CisNS!$A:$B,2,FALSE),"") -> TranMZČR: Zabezpečení svoláv. a varovného sys.-MZ | N167: 403000 | P167: =SUM(D167:O167) -> 403000 | Q167: =IF(AND(ROUND(P167,0)<>0,B167=""),"Obrat bez specifikace NS","") ->  | T167: 64908009
C168: =IFERROR(VLOOKUP(B168,CisNS!$A:$B,2,FALSE),"") ->  | P168: 0 | T168: =T166 -> 64908009 | U168: End
A170: 67102001 | B170: Transfery jiného poskytovatele - VaV věcné | D170: =SUM(D171:D204) -> 0 | E170: =SUM(E171:E204) -> 0 | F170: =SUM(F171:F204) -> 0 | G170: =SUM(G171:G204) -> 372000 | H170: =SUM(H171:H204) -> 1776000 | I170: =SUM(I171:I204) -> 2583000 | J170: =SUM(J171:J204) -> 0 | K170: =SUM(K171:K204) -> 0 | L170: =SUM(L171:L204) -> 0 | M170: =SUM(M171:M204) -> 0 | N170: =SUM(N171:N204) -> 0 | O170: =SUM(O171:O204) -> -0.4054 | P170: =SUM(P171:P204) -> 4730999.595 | Q170: =ROUND(P170-SUMIF('1_Původní'!A:A,'2_Upravený'!A170,'1_Původní'!P:P),0) -> 0
B171: 8542 | C171: Prof. MUDr. Jiří Ehrmann, Ph.D. - PATOL | D171: 0 | E171: 0 | F171: 0 | G171: 0 | H171: 0 | I171: 0 | J171: 0 | K171: 0 | L171: 0 | M171: 0 | N171: 0 | O171: 0 | P171: =SUM(D171:O171) -> 0 | Q171: =IF(AND(ROUND(P171,0)<>0,B171=""),"Obrat bez specifikace NS","") ->  | S171: Orig | T171: =$A$170 -> 67102001
B172: 8544 | C172: MUDr. Jana Volejníková, Ph.D. - DK | D172: 0 | E172: 0 | F172: 0 | G172: 0 | H172: 0 | I172: 0 | J172: 0 | K172: 0 | L172: 0 | M172: 0 | N172: 0 | O172: 0 | P172: =SUM(D172:O172) -> 0 | Q172: =IF(AND(ROUND(P172,0)<>0,B172=""),"Obrat bez specifikace NS","") ->  | S172: Orig | T172: =$A$170 -> 67102001
B173: 8551 | C173: Doc. MUDr. Vladimír Študent, PhD. - UROL | D173: 0 | E173: 0 | F173: 0 | G173: 0 | H173: 0 | I173: 0 | J173: 0 | K173: 0 | L173: 0 | M173: 0 | N173: 0 | O173: 0 | P173: 0 | S173: Orig | T173: 67102001
B174: 8552 | C174: Doc. MUDr. Jiří Minařík, PhD. - HOK | D174: 0 | E174: 0 | F174: 0 | G174: 0 | H174: 0 | I174: 0 | J174: 0 | K174: 0 | L174: 0 | M174: 0 | N174: 0 | O174: 0 | P174: 0 | S174: Orig | T174: 67102001
B175: 8553 | C175: MUDr. Hana Študentová, Ph.D. - ONKO | D175: 0 | E175: 0 | F175: 0 | G175: 0 | H175: 0 | I175: 0 | J175: 0 | K175: 0 | L175: 0 | M175: 0 | N175: 0 | O175: 0 | P175: 0 | S175: Orig | T175: 67102001
B176: 8555 | C176: Doc. RNDr. Radek Vrtěl, PhD. - GENETIKA | D176: 0 | E176: 0 | F176: 0 | G176: 0 | H176: 0 | I176: 0 | J176: 0 | K176: 0 | L176: 0 | M176: 0 | N176: 0 | O176: 0 | P176: 0 | S176: Orig | T176: 67102001
B177: 8556 | C177: MUDr. Tomáš Veverka, PhD. - NEUROL | D177: 0 | E177: 0 | F177: 0 | G177: 0 | H177: 0 | I177: 0 | J177: 0 | K177: 0 | L177: 0 | M177: 0 | N177: 0 | O177: 0 | P177: =SUM(D177:O177) -> 0 | S177: Orig | T177: 67102001
B178: 8557 | C178: MUDr. Petr Šantavý, PhD. - KARDIOCHIR | D178: 0 | E178: 0 | F178: 0 | G178: 0 | H178: 0 | I178: 0 | J178: 0 | K178: 0 | L178: 0 | M178: 0 | N178: 0 | O178: 0 | P178: 0 | S178: Orig | T178: 67102001
B179: 8558 | C179: MUDr. Filip Čtvrtlík, PhD. - RTG | D179: 0 | E179: 0 | F179: 0 | G179: 0 | H179: 0 | I179: 0 | J179: 0 | K179: 0 | L179: 0 | M179: 0 | N179: 0 | O179: 0 | P179: 0 | S179: Orig | T179: 67102001
B180: 8559 | C180: MUDr. JUDr. Dušan Klos, Ph.D. - I.CHIR | D180: 0 | E180: 0 | F180: 0 | G180: 0 | H180: 0 | I180: 521000 | J180: 0 | K180: 0 | L180: 0 | M180: 0 | N180: 0 | O180: 0 | P180: 521000 | S180: Orig | T180: 67102001
B181: 8560 | C181: Mgr. Lenka Kocourková - LEM | D181: 0 | E181: 0 | F181: 0 | G181: 0 | H181: 0 | I181: 212000 | J181: 0 | K181: 0 | L181: 0 | M181: 0 | N181: 0 | O181: 0 | P181: 212000 | S181: Orig | T181: 67102001
B182: 8561 | C182: MUDr. Ondřej Krystyník - III. IK | D182: 0 | E182: 0 | F182: 0 | G182: 0 | H182: 0 | I182: 729000 | J182: 0 | K182: 0 | L182: 0 | M182: 0 | N182: 0 | O182: 0 | P182: 729000 | S182: Orig | T182: 67102001
B183: 8562 | C183: Mgr. Taťána Štosová, Ph.D. - MIKRO | D183: 0 | E183: 0 | F183: 0 | G183: 0 | H183: 0 | I183: 98000 | J183: 0 | K183: 0 | L183: 0 | M183: 0 | N183: 0 | O183: 0 | P183: 98000 | S183: Orig | T183: 67102001
B184: 8563 | C184: Doc. MUDr. Jan Minařík, Ph.D. - HOK | D184: 0 | E184: 0 | F184: 0 | G184: 0 | H184: 0 | I184: 311000 | J184: 0 | K184: 0 | L184: 0 | M184: 0 | N184: 0 | O184: 0 | P184: 311000 | S184: Orig | T184: 67102001
B185: 8564 | C185: MUDr. Jan Přeček, Ph.D. - I.IK | D185: 0 | E185: 0 | F185: 0 | G185: 0 | H185: 0 | I185: 61000 | J185: 0 | K185: 0 | L185: 0 | M185: 0 | N185: 0 | O185: 0 | P185: 61000 | S185: Orig | T185: 67102001
B186: 8565 | C186: Prof. MUDr. Ing. Petr Hluštík, Ph.D. - NEUROL | D186: 0 | E186: 0 | F186: 0 | G186: 0 | H186: 230000 | I186: 0 | J186: 0 | K186: 0 | L186: 0 | M186: 0 | N186: 0 | O186: 0 | P186: 230000 | S186: Orig | T186: 67102001
B187: 8566 | C187: MUDr. Michaela Kaiserová - NEUROL | D187: 0 | E187: 0 | F187: 0 | G187: 0 | H187: 131000 | I187: 0 | J187: 0 | K187: 0 | L187: 0 | M187: 0 | N187: 0 | O187: 0 | P187: 131000 | S187: Orig | T187: 67102001
B188: 8567 | C188: MUDr. Jana Petřková, Ph.D. - I.IK | D188: 0 | E188: 0 | F188: 0 | G188: 0 | H188: 91000 | I188: 0 | J188: 0 | K188: 0 | L188: 0 | M188: 0 | N188: 0 | O188: 0 | P188: 91000 | S188: Orig | T188: 67102001
B189: 8568 | C189: Prof. MUDr. Dagmar Pospíšilová, Ph.D. - DK | D189: 0 | E189: 0 | F189: 0 | G189: 0 | H189: 0 | I189: 124000 | J189: 0 | K189: 0 | L189: 0 | M189: 0 | N189: 0 | O189: 0 | P189: 124000 | S189: Orig | T189: 67102001
B190: 8569 | C190: MUDr. Přemysl Falt, Ph.D. - II.IK | D190: 0 | E190: 0 | F190: 0 | G190: 0 | H190: 0 | I190: 136000 | J190: 0 | K190: 0 | L190: 0 | M190: 0 | N190: 0 | O190: 0 | P190: 136000 | S190: Orig | T190: 67102001
B191: 8570 | C191: Prof. MUDr. Bohuslav Melichar, Ph.D. - ONKO | D191: 0 | E191: 0 | F191: 0 | G191: 0 | H191: 0 | I191: 0 | J191: 0 | K191: 0 | L191: 0 | M191: 0 | N191: 0 | O191: 0 | P191: 0 | S191: Orig | T191: 67102001
B192: 8571 | C192: MUDr. Tomáš Skála, Ph.D., FESC - I.IK | D192: 0 | E192: 0 | F192: 0 | G192: 0 | H192: 79000 | I192: 0 | J192: 0 | K192: 0 | L192: 0 | M192: 0 | N192: 0 | O192: 0 | P192: 79000 | S192: Orig | T192: 67102001
B193: 8572 | C193: Grant: Doc. MUDr. Petr Šantavý, Ph.D. - KARDIOCHIR | D193: 0 | E193: 0 | F193: 0 | G193: 0 | H193: 337000 | I193: 0 | J193: 0 | K193: 0 | L193: 0 | M193: 0 | N193: 0 | O193: -0.4054 | P193: 336999.5946 | S193: Orig | T193: 67102001
B194: 8573 | C194: Grant: MUDr. Jan Přeček, PhD. - I.IK | D194: 0 | E194: 0 | F194: 0 | G194: 0 | H194: 29000 | I194: 0 | J194: 0 | K194: 0 | L194: 0 | M194: 0 | N194: 0 | O194: 0 | P194: 29000 | S194: Orig | T194: 67102001
B195: 8574 | C195: Grant: Doc. MUDr. Kateřina Menšíková, PhD. - NEURO | D195: 0 | E195: 0 | F195: 0 | G195: 0 | H195: 506000 | I195: 0 | J195: 0 | K195: 0 | L195: 0 | M195: 0 | N195: 0 | O195: 0 | P195: 506000 | S195: Orig | T195: 67102001
B196: 8575 | C196: Grant: Doc. MUDr. Miroslav Vaverka, CSc. - NEUROCH | D196: 0 | E196: 0 | F196: 0 | G196: 0 | H196: 0 | I196: 80000 | J196: 0 | K196: 0 | L196: 0 | M196: 0 | N196: 0 | O196: 0 | P196: 80000 | S196: Orig | T196: 67102001
B197: 8576 | C197: Grant: MUDr. Vladislav Raclavský, PhD. - MIKRO | D197: 0 | E197: 0 | F197: 0 | G197: 0 | H197: 0 | I197: 211000 | J197: 0 | K197: 0 | L197: 0 | M197: 0 | N197: 0 | O197: 0 | P197: 211000 | S197: Orig | T197: 67102001
B198: 8577 | C198: Grant: Prof. MUDr. Bohuslav Melichar, Ph.D. - ONKO | D198: 0 | E198: 0 | F198: 0 | G198: 0 | H198: 0 | I198: 100000 | J198: 0 | K198: 0 | L198: 0 | M198: 0 | N198: 0 | O198: 0 | P198: 100000 | S198: Orig | T198: 67102001
B199: 8578 | C199: Grant: Prof. MUDr. Mgr. Milan Raška, PhD. - IMUNO | D199: 0 | E199: 0 | F199: 0 | G199: 0 | H199: 130000 | I199: 0 | J199: 0 | K199: 0 | L199: 0 | M199: 0 | N199: 0 | O199: 0 | P199: 130000 | S199: Orig | T199: 67102001
B200: 8579 | C200: Grant: Prof. MUDr. Dagmar Pospíšilová, PhD. - DK | D200: 0 | E200: 0 | F200: 0 | G200: 0 | H200: 243000 | I200: 0 | J200: 0 | K200: 0 | L200: 0 | M200: 0 | N200: 0 | O200: 0 | P200: 243000 | S200: Orig | T200: 67102001
B201: 8580 | C201: =IFERROR(VLOOKUP(B201,CisNS!$A:$B,2,FALSE),"") -> Grant: Doc. MUDr. Martin Doležel, PhD. - ONKOL | D201: 0 | E201: 0 | F201: 0 | G201: 162000 | H201: 0 | I201: 0 | J201: 0 | K201: 0 | L201: 0 | M201: 0 | N201: 0 | O201: 0 | P201: =SUM(D201:O201) -> 162000 | Q201: =IF(AND(ROUND(P201,0)<>0,B201=""),"Obrat bez specifikace NS","") ->  | T201: 67102001
B202: 8581 | C202: =IFERROR(VLOOKUP(B202,CisNS!$A:$B,2,FALSE),"") -> Grant: Doc. MUDr. Ondřej Urban, PhD. - II. IK | D202: 0 | E202: 0 | F202: 0 | G202: 153000 | H202: 0 | I202: 0 | J202: 0 | K202: 0 | L202: 0 | M202: 0 | N202: 0 | O202: 0 | P202: =SUM(D202:O202) -> 153000 | Q202: =IF(AND(ROUND(P202,0)<>0,B202=""),"Obrat bez specifikace NS","") ->  | T202: 67102001
B203: 8582 | C203: =IFERROR(VLOOKUP(B203,CisNS!$A:$B,2,FALSE),"") -> Grant: MUDr. Tomáš Skála, PhD. FESC - I. IK | D203: 0 | E203: 0 | F203: 0 | G203: 57000 | H203: 0 | I203: 0 | J203: 0 | K203: 0 | L203: 0 | M203: 0 | N203: 0 | O203: 0 | P203: =SUM(D203:O203) -> 57000 | Q203: =IF(AND(ROUND(P203,0)<>0,B203=""),"Obrat bez specifikace NS","") ->  | T203: 67102001
C204: =IFERROR(VLOOKUP(B204,CisNS!$A:$B,2,FALSE),"") ->  | P204: 0 | T204: =T171 -> 67102001 | U204: End
A206: 67102002 | B206: Transfery jiného poskytovatele - VaV mzdové | D206: =SUM(D207:D240) -> 0 | E206: =SUM(E207:E240) -> 0 | F206: =SUM(F207:F240) -> 0 | G206: =SUM(G207:G240) -> 1161000 | H206: =SUM(H207:H240) -> 3515000 | I206: =SUM(I207:I240) -> 4234000 | J206: =SUM(J207:J240) -> 0 | K206: =SUM(K207:K240) -> 0 | L206: =SUM(L207:L240) -> 0 | M206: =SUM(M207:M240) -> 0 | N206: =SUM(N207:N240) -> 0 | O206: =SUM(O207:O240) -> 0 | P206: =SUM(P207:P240) -> 8910000 | Q206: =ROUND(P206-SUMIF('1_Původní'!A:A,'2_Upravený'!A206,'1_Původní'!P:P),0) -> 0
B207: 8542 | C207: Prof. MUDr. Jiří Ehrmann, Ph.D. - PATOL | D207: 0 | E207: 0 | F207: 0 | G207: 0 | H207: 0 | I207: 0 | J207: 0 | K207: 0 | L207: 0 | M207: 0 | N207: 0 | O207: 0 | P207: =SUM(D207:O207) -> 0 | Q207: =IF(AND(ROUND(P207,0)<>0,B207=""),"Obrat bez specifikace NS","") ->  | S207: Orig | T207: =$A$206 -> 67102002
B208: 8544 | C208: MUDr. Jana Volejníková, Ph.D. - DK | D208: 0 | E208: 0 | F208: 0 | G208: 0 | H208: 0 | I208: 0 | J208: 0 | K208: 0 | L208: 0 | M208: 0 | N208: 0 | O208: 0 | P208: =SUM(D208:O208) -> 0 | Q208: =IF(AND(ROUND(P208,0)<>0,B208=""),"Obrat bez specifikace NS","") ->  | S208: Orig | T208: =$A$206 -> 67102002
B209: 8551 | C209: Doc. MUDr. Vladimír Študent, PhD. - UROL | D209: 0 | E209: 0 | F209: 0 | G209: 0 | H209: 0 | I209: 0 | J209: 0 | K209: 0 | L209: 0 | M209: 0 | N209: 0 | O209: 0 | P209: 0 | S209: Orig | T209: 67102002
B210: 8552 | C210: Doc. MUDr. Jiří Minařík, PhD. - HOK | D210: 0 | E210: 0 | F210: 0 | G210: 0 | H210: 0 | I210: 0 | J210: 0 | K210: 0 | L210: 0 | M210: 0 | N210: 0 | O210: 0 | P210: 0 | S210: Orig | T210: 67102002
B211: 8553 | C211: MUDr. Hana Študentová, Ph.D. - ONKO | D211: 0 | E211: 0 | F211: 0 | G211: 0 | H211: 0 | I211: 0 | J211: 0 | K211: 0 | L211: 0 | M211: 0 | N211: 0 | O211: 0 | P211: 0 | S211: Orig | T211: 67102002
B212: 8555 | C212: Doc. RNDr. Radek Vrtěl, PhD. - GENETIKA | D212: 0 | E212: 0 | F212: 0 | G212: 0 | H212: 0 | I212: 0 | J212: 0 | K212: 0 | L212: 0 | M212: 0 | N212: 0 | O212: 0 | P212: 0 | S212: Orig | T212: 67102002
B213: 8556 | C213: MUDr. Tomáš Veverka, PhD. - NEUROL | D213: 0 | E213: 0 | F213: 0 | G213: 0 | H213: 0 | I213: 0 | J213: 0 | K213: 0 | L213: 0 | M213: 0 | N213: 0 | O213: 0 | P213: 0 | S213: Orig | T213: 67102002
... 33 more rows

Sheet 3_Rozdíly (hidden)
A1: Legenda | C1: Hodnoty v CZK
A2: Účet | B2: Název účtu
B3: NS | C3: Název NS | D3: =MID(Summary!$B$2,18,4)&"01" -> 202101 | E3: =MID(Summary!$B$2,18,4)&"02" -> 202102 | F3: =MID(Summary!$B$2,18,4)&"03" -> 202103 | G3: =MID(Summary!$B$2,18,4)&"04" -> 202104 | H3: =MID(Summary!$B$2,18,4)&"05" -> 202105 | I3: =MID(Summary!$B$2,18,4)&"06" -> 202106 | J3: =MID(Summary!$B$2,18,4)&"07" -> 202107 | K3: =MID(Summary!$B$2,18,4)&"08" -> 202108 | L3: =MID(Summary!$B$2,18,4)&"09" -> 202109 | M3: =MID(Summary!$B$2,18,4)&"10" -> 202110 | N3: =MID(Summary!$B$2,18,4)&"11" -> 202111 | O3: =MID(Summary!$B$2,18,4)&"12" -> 202112 | P3: =MID(Summary!$B$2,18,4)&" celkem" -> 2021 celkem
A5: 64908009 | B5: Smlouva o účelově vázané úplatě | D5: =SUM(D7:D7) -> 0 | E5: 0 | F5: 0 | G5: 0 | H5: 0 | I5: 0 | J5: 0 | K5: 0 | L5: 0 | M5: 0 | N5: 0 | O5: 0 | P5: 0
B6: =IF('2_Upravený'!B6="","",'2_Upravený'!B6) -> 4803 | C6: =IF('2_Upravený'!C6="","",'2_Upravený'!C6) -> OP - specializační vzdělávání klinických farmaceutů | D6: ='2_Upravený'!D6-'1_Původní'!D6 -> 0 | E6: ='2_Upravený'!E6-'1_Původní'!E6 -> 0 | F6: ='2_Upravený'!F6-'1_Původní'!F6 -> 0 | G6: ='2_Upravený'!G6-'1_Původní'!G6 -> 0 | H6: ='2_Upravený'!H6-'1_Původní'!H6 -> 0 | I6: ='2_Upravený'!I6-'1_Původní'!I6 -> 0 | J6: ='2_Upravený'!J6-'1_Původní'!J6 -> 0 | K6: ='2_Upravený'!K6-'1_Původní'!K6 -> 0 | L6: ='2_Upravený'!L6-'1_Původní'!L6 -> 0 | M6: ='2_Upravený'!M6-'1_Původní'!M6 -> 0 | N6: ='2_Upravený'!N6-'1_Původní'!N6 -> 0 | O6: ='2_Upravený'!O6-'1_Původní'!O6 -> 0 | P6: =SUM(D6:O6) -> 0
B7: =IF('2_Upravený'!B7="","",'2_Upravený'!B7) ->  | C7: =IF('2_Upravený'!C7="","",'2_Upravený'!C7) ->  | D7: ='2_Upravený'!D7-'1_Původní'!D7 -> 0 | E7: ='2_Upravený'!E7-'1_Původní'!E7 -> 0 | F7: ='2_Upravený'!F7-'1_Původní'!F7 -> 0 | G7: ='2_Upravený'!G7-'1_Původní'!G7 -> 0 | H7: ='2_Upravený'!H7-'1_Původní'!H7 -> 0 | I7: ='2_Upravený'!I7-'1_Původní'!I7 -> 0 | J7: ='2_Upravený'!J7-'1_Původní'!J7 -> 0 | K7: ='2_Upravený'!K7-'1_Původní'!K7 -> 0 | L7: ='2_Upravený'!L7-'1_Původní'!L7 -> 0 | M7: ='2_Upravený'!M7-'1_Původní'!M7 -> 0 | N7: ='2_Upravený'!N7-'1_Původní'!N7 -> 0 | O7: ='2_Upravený'!O7-'1_Původní'!O7 -> 0 | P7: =SUM(D7:O7) -> 0
A9: 64924438 | B9: Výkony etické komise | D9: =SUM(D11:D11) -> 0 | E9: 0 | F9: 0 | G9: 0 | H9: 0 | I9: 0 | J9: 0 | K9: 0 | L9: 0 | M9: 0 | N9: 0 | O9: 0 | P9: 0
B10: =IF('2_Upravený'!B10="","",'2_Upravený'!B10) -> 9003 | C10: =IF('2_Upravený'!C10="","",'2_Upravený'!C10) -> Etická komise | D10: ='2_Upravený'!D10-'1_Původní'!D10 -> 0 | E10: ='2_Upravený'!E10-'1_Původní'!E10 -> 0 | F10: ='2_Upravený'!F10-'1_Původní'!F10 -> 0 | G10: ='2_Upravený'!G10-'1_Původní'!G10 -> 0 | H10: ='2_Upravený'!H10-'1_Původní'!H10 -> 0 | I10: ='2_Upravený'!I10-'1_Původní'!I10 -> 0 | J10: ='2_Upravený'!J10-'1_Původní'!J10 -> 0 | K10: ='2_Upravený'!K10-'1_Původní'!K10 -> 0 | L10: ='2_Upravený'!L10-'1_Původní'!L10 -> 0 | M10: ='2_Upravený'!M10-'1_Původní'!M10 -> 0 | N10: ='2_Upravený'!N10-'1_Původní'!N10 -> 0 | O10: ='2_Upravený'!O10-'1_Původní'!O10 -> 0 | P10: =SUM(D10:O10) -> 0
B11: =IF('2_Upravený'!B11="","",'2_Upravený'!B11) ->  | C11: =IF('2_Upravený'!C11="","",'2_Upravený'!C11) ->  | D11: ='2_Upravený'!D11-'1_Původní'!D11 -> 0 | E11: ='2_Upravený'!E11-'1_Původní'!E11 -> 0 | F11: ='2_Upravený'!F11-'1_Původní'!F11 -> 0 | G11: ='2_Upravený'!G11-'1_Původní'!G11 -> 0 | H11: ='2_Upravený'!H11-'1_Původní'!H11 -> 0 | I11: ='2_Upravený'!I11-'1_Původní'!I11 -> 0 | J11: ='2_Upravený'!J11-'1_Původní'!J11 -> 0 | K11: ='2_Upravený'!K11-'1_Původní'!K11 -> 0 | L11: ='2_Upravený'!L11-'1_Původní'!L11 -> 0 | M11: ='2_Upravený'!M11-'1_Původní'!M11 -> 0 | N11: ='2_Upravený'!N11-'1_Původní'!N11 -> 0 | O11: ='2_Upravený'!O11-'1_Původní'!O11 -> 0 | P11: 0
A13: 64924439 | B13: Klinické hodnocení - tuzemci (81xx,9003,9028) | D13: =SUM(D27:D27) -> 0 | E13: 0 | F13: 0 | G13: 0 | H13: 0 | I13: 0 | J13: 0 | K13: 0 | L13: 0 | M13: 0 | N13: 0 | O13: 0 | P13: 0
B14: =IF('2_Upravený'!B14="","",'2_Upravený'!B14) -> 8101 | C14: =IF('2_Upravený'!C14="","",'2_Upravený'!C14) -> Klinická hodnocení - I. Interní klinika | D14: ='2_Upravený'!D14-'1_Původní'!D14 -> 0 | E14: ='2_Upravený'!E14-'1_Původní'!E14 -> 0 | F14: ='2_Upravený'!F14-'1_Původní'!F14 -> 0 | G14: ='2_Upravený'!G14-'1_Původní'!G14 -> 0 | H14: ='2_Upravený'!H14-'1_Původní'!H14 -> 0 | I14: ='2_Upravený'!I14-'1_Původní'!I14 -> 0 | J14: ='2_Upravený'!J14-'1_Původní'!J14 -> 0 | K14: ='2_Upravený'!K14-'1_Původní'!K14 -> 0 | L14: ='2_Upravený'!L14-'1_Původní'!L14 -> 0 | M14: ='2_Upravený'!M14-'1_Původní'!M14 -> 0 | N14: ='2_Upravený'!N14-'1_Původní'!N14 -> 0 | O14: ='2_Upravený'!O14-'1_Původní'!O14 -> 0 | P14: =SUM(D14:O14) -> 0
B15: =IF('2_Upravený'!B15="","",'2_Upravený'!B15) -> 8103 | C15: =IF('2_Upravený'!C15="","",'2_Upravený'!C15) -> Klinická hodnocení - III. Interní klinika | D15: ='2_Upravený'!D15-'1_Původní'!D15 -> 0 | E15: ='2_Upravený'!E15-'1_Původní'!E15 -> 0 | F15: ='2_Upravený'!F15-'1_Původní'!F15 -> 0 | G15: ='2_Upravený'!G15-'1_Původní'!G15 -> 0 | H15: ='2_Upravený'!H15-'1_Původní'!H15 -> 0 | I15: ='2_Upravený'!I15-'1_Původní'!I15 -> 0 | J15: ='2_Upravený'!J15-'1_Původní'!J15 -> 0 | K15: ='2_Upravený'!K15-'1_Původní'!K15 -> 0 | L15: ='2_Upravený'!L15-'1_Původní'!L15 -> 0 | M15: ='2_Upravený'!M15-'1_Původní'!M15 -> 0 | N15: ='2_Upravený'!N15-'1_Původní'!N15 -> 0 | O15: ='2_Upravený'!O15-'1_Původní'!O15 -> 0 | P15: =SUM(D15:O15) -> 0
B16: =IF('2_Upravený'!B16="","",'2_Upravený'!B16) -> 8108 | C16: =IF('2_Upravený'!C16="","",'2_Upravený'!C16) -> Klinická hodnocení - Porodnicko-gynekologická klinika | D16: ='2_Upravený'!D16-'1_Původní'!D16 -> 0 | E16: ='2_Upravený'!E16-'1_Původní'!E16 -> 0 | F16: ='2_Upravený'!F16-'1_Původní'!F16 -> 0 | G16: ='2_Upravený'!G16-'1_Původní'!G16 -> 0 | H16: ='2_Upravený'!H16-'1_Původní'!H16 -> 0 | I16: ='2_Upravený'!I16-'1_Původní'!I16 -> 0 | J16: ='2_Upravený'!J16-'1_Původní'!J16 -> 0 | K16: ='2_Upravený'!K16-'1_Původní'!K16 -> 0 | L16: ='2_Upravený'!L16-'1_Původní'!L16 -> 0 | M16: ='2_Upravený'!M16-'1_Původní'!M16 -> 0 | N16: ='2_Upravený'!N16-'1_Původní'!N16 -> 0 | O16: ='2_Upravený'!O16-'1_Původní'!O16 -> 0 | P16: 0
B17: =IF('2_Upravený'!B17="","",'2_Upravený'!B17) -> 8112 | C17: =IF('2_Upravený'!C17="","",'2_Upravený'!C17) -> Klinická hodnocení - Urologická klinika | D17: ='2_Upravený'!D17-'1_Původní'!D17 -> 0 | E17: ='2_Upravený'!E17-'1_Původní'!E17 -> 0 | F17: ='2_Upravený'!F17-'1_Původní'!F17 -> 0 | G17: ='2_Upravený'!G17-'1_Původní'!G17 -> 0 | H17: ='2_Upravený'!H17-'1_Původní'!H17 -> 0 | I17: ='2_Upravený'!I17-'1_Původní'!I17 -> 0 | J17: ='2_Upravený'!J17-'1_Původní'!J17 -> 0 | K17: ='2_Upravený'!K17-'1_Původní'!K17 -> 0 | L17: ='2_Upravený'!L17-'1_Původní'!L17 -> 0 | M17: ='2_Upravený'!M17-'1_Původní'!M17 -> 0 | N17: ='2_Upravený'!N17-'1_Původní'!N17 -> 0 | O17: ='2_Upravený'!O17-'1_Původní'!O17 -> 0 | P17: 0
B18: =IF('2_Upravený'!B18="","",'2_Upravený'!B18) -> 8114 | C18: =IF('2_Upravený'!C18="","",'2_Upravený'!C18) -> Klinická hodnocení - Oční klinika | D18: ='2_Upravený'!D18-'1_Původní'!D18 -> 0 | E18: ='2_Upravený'!E18-'1_Původní'!E18 -> 0 | F18: ='2_Upravený'!F18-'1_Původní'!F18 -> 0 | G18: ='2_Upravený'!G18-'1_Původní'!G18 -> 0 | H18: ='2_Upravený'!H18-'1_Původní'!H18 -> 0 | I18: ='2_Upravený'!I18-'1_Původní'!I18 -> 0 | J18: ='2_Upravený'!J18-'1_Původní'!J18 -> 0 | K18: ='2_Upravený'!K18-'1_Původní'!K18 -> 0 | L18: ='2_Upravený'!L18-'1_Původní'!L18 -> 0 | M18: ='2_Upravený'!M18-'1_Původní'!M18 -> 0 | N18: ='2_Upravený'!N18-'1_Původní'!N18 -> 0 | O18: ='2_Upravený'!O18-'1_Původní'!O18 -> 0 | P18: 0
B19: =IF('2_Upravený'!B19="","",'2_Upravený'!B19) -> 8116 | C19: =IF('2_Upravený'!C19="","",'2_Upravený'!C19) -> Klinická hodnocení - Klinika plicních nemocí a tuberkulózy | D19: ='2_Upravený'!D19-'1_Původní'!D19 -> 0 | E19: ='2_Upravený'!E19-'1_Původní'!E19 -> 0 | F19: ='2_Upravený'!F19-'1_Původní'!F19 -> 0 | G19: ='2_Upravený'!G19-'1_Původní'!G19 -> 0 | H19: ='2_Upravený'!H19-'1_Původní'!H19 -> 0 | I19: ='2_Upravený'!I19-'1_Původní'!I19 -> 0 | J19: ='2_Upravený'!J19-'1_Původní'!J19 -> 0 | K19: ='2_Upravený'!K19-'1_Původní'!K19 -> 0 | L19: ='2_Upravený'!L19-'1_Původní'!L19 -> 0 | M19: ='2_Upravený'!M19-'1_Původní'!M19 -> 0 | N19: ='2_Upravený'!N19-'1_Původní'!N19 -> 0 | O19: ='2_Upravený'!O19-'1_Původní'!O19 -> 0 | P19: 0
B20: =IF('2_Upravený'!B20="","",'2_Upravený'!B20) -> 8117 | C20: =IF('2_Upravený'!C20="","",'2_Upravený'!C20) -> Klinická hodnocení - Neurologická klinika | D20: ='2_Upravený'!D20-'1_Původní'!D20 -> 0 | E20: ='2_Upravený'!E20-'1_Původní'!E20 -> 0 | F20: ='2_Upravený'!F20-'1_Původní'!F20 -> 0 | G20: ='2_Upravený'!G20-'1_Původní'!G20 -> 0 | H20: ='2_Upravený'!H20-'1_Původní'!H20 -> 0 | I20: ='2_Upravený'!I20-'1_Původní'!I20 -> 0 | J20: ='2_Upravený'!J20-'1_Původní'!J20 -> 0 | K20: ='2_Upravený'!K20-'1_Původní'!K20 -> 0 | L20: ='2_Upravený'!L20-'1_Původní'!L20 -> 0 | M20: ='2_Upravený'!M20-'1_Původní'!M20 -> 0 | N20: ='2_Upravený'!N20-'1_Původní'!N20 -> 0 | O20: ='2_Upravený'!O20-'1_Původní'!O20 -> 0 | P20: 0
B21: =IF('2_Upravený'!B21="","",'2_Upravený'!B21) -> 8120 | C21: =IF('2_Upravený'!C21="","",'2_Upravený'!C21) -> Klinická hodnocení - Klinika chorob kožních a pohlavních | D21: ='2_Upravený'!D21-'1_Původní'!D21 -> 0 | E21: ='2_Upravený'!E21-'1_Původní'!E21 -> 0 | F21: ='2_Upravený'!F21-'1_Původní'!F21 -> 0 | G21: ='2_Upravený'!G21-'1_Původní'!G21 -> 0 | H21: ='2_Upravený'!H21-'1_Původní'!H21 -> 0 | I21: ='2_Upravený'!I21-'1_Původní'!I21 -> 0 | J21: ='2_Upravený'!J21-'1_Původní'!J21 -> 0 | K21: ='2_Upravený'!K21-'1_Původní'!K21 -> 0 | L21: ='2_Upravený'!L21-'1_Původní'!L21 -> 0 | M21: ='2_Upravený'!M21-'1_Původní'!M21 -> 0 | N21: ='2_Upravený'!N21-'1_Původní'!N21 -> 0 | O21: ='2_Upravený'!O21-'1_Původní'!O21 -> 0 | P21: 0
B22: =IF('2_Upravený'!B22="","",'2_Upravený'!B22) -> 8121 | C22: =IF('2_Upravený'!C22="","",'2_Upravený'!C22) -> Klinická hodnocení - Onkologická klinika | D22: ='2_Upravený'!D22-'1_Původní'!D22 -> 0 | E22: ='2_Upravený'!E22-'1_Původní'!E22 -> 0 | F22: ='2_Upravený'!F22-'1_Původní'!F22 -> 0 | G22: ='2_Upravený'!G22-'1_Původní'!G22 -> 0 | H22: ='2_Upravený'!H22-'1_Původní'!H22 -> 0 | I22: ='2_Upravený'!I22-'1_Původní'!I22 -> 0 | J22: ='2_Upravený'!J22-'1_Původní'!J22 -> 0 | K22: ='2_Upravený'!K22-'1_Původní'!K22 -> 0 | L22: ='2_Upravený'!L22-'1_Původní'!L22 -> 0 | M22: ='2_Upravený'!M22-'1_Původní'!M22 -> 0 | N22: ='2_Upravený'!N22-'1_Původní'!N22 -> 0 | O22: ='2_Upravený'!O22-'1_Původní'!O22 -> 0 | P22: 0
B23: =IF('2_Upravený'!B23="","",'2_Upravený'!B23) -> 8127 | C23: =IF('2_Upravený'!C23="","",'2_Upravený'!C23) -> Klinická hodnocení - Klinika TVL a kardiovask rehabilitace | D23: ='2_Upravený'!D23-'1_Původní'!D23 -> 0 | E23: ='2_Upravený'!E23-'1_Původní'!E23 -> 0 | F23: ='2_Upravený'!F23-'1_Původní'!F23 -> 0 | G23: ='2_Upravený'!G23-'1_Původní'!G23 -> 0 | H23: ='2_Upravený'!H23-'1_Původní'!H23 -> 0 | I23: ='2_Upravený'!I23-'1_Původní'!I23 -> 0 | J23: ='2_Upravený'!J23-'1_Původní'!J23 -> 0 | K23: ='2_Upravený'!K23-'1_Původní'!K23 -> 0 | L23: ='2_Upravený'!L23-'1_Původní'!L23 -> 0 | M23: ='2_Upravený'!M23-'1_Původní'!M23 -> 0 | N23: ='2_Upravený'!N23-'1_Původní'!N23 -> 0 | O23: ='2_Upravený'!O23-'1_Původní'!O23 -> 0 | P23: 0
B24: =IF('2_Upravený'!B24="","",'2_Upravený'!B24) -> 8132 | C24: =IF('2_Upravený'!C24="","",'2_Upravený'!C24) -> Klinická hodnocení - Hemato-onkologická klinika | D24: ='2_Upravený'!D24-'1_Původní'!D24 -> 0 | E24: ='2_Upravený'!E24-'1_Původní'!E24 -> 0 | F24: ='2_Upravený'!F24-'1_Původní'!F24 -> 0 | G24: ='2_Upravený'!G24-'1_Původní'!G24 -> 0 | H24: ='2_Upravený'!H24-'1_Původní'!H24 -> 0 | I24: ='2_Upravený'!I24-'1_Původní'!I24 -> 0 | J24: ='2_Upravený'!J24-'1_Původní'!J24 -> 0 | K24: ='2_Upravený'!K24-'1_Původní'!K24 -> 0 | L24: ='2_Upravený'!L24-'1_Původní'!L24 -> 0 | M24: ='2_Upravený'!M24-'1_Původní'!M24 -> 0 | N24: ='2_Upravený'!N24-'1_Původní'!N24 -> 0 | O24: ='2_Upravený'!O24-'1_Původní'!O24 -> 0 | P24: 0
B25: =IF('2_Upravený'!B25="","",'2_Upravený'!B25) -> 8148 | C25: =IF('2_Upravený'!C25="","",'2_Upravený'!C25) -> Klinická hodnocení - Lékárna | D25: ='2_Upravený'!D25-'1_Původní'!D25 -> 0 | E25: ='2_Upravený'!E25-'1_Původní'!E25 -> 0 | F25: ='2_Upravený'!F25-'1_Původní'!F25 -> 0 | G25: ='2_Upravený'!G25-'1_Původní'!G25 -> 0 | H25: ='2_Upravený'!H25-'1_Původní'!H25 -> 0 | I25: ='2_Upravený'!I25-'1_Původní'!I25 -> 0 | J25: ='2_Upravený'!J25-'1_Původní'!J25 -> 0 | K25: ='2_Upravený'!K25-'1_Původní'!K25 -> 0 | L25: ='2_Upravený'!L25-'1_Původní'!L25 -> 0 | M25: ='2_Upravený'!M25-'1_Původní'!M25 -> 0 | N25: ='2_Upravený'!N25-'1_Původní'!N25 -> 0 | O25: ='2_Upravený'!O25-'1_Původní'!O25 -> 0 | P25: 0
B26: =IF('2_Upravený'!B26="","",'2_Upravený'!B26) -> 9028 | C26: =IF('2_Upravený'!C26="","",'2_Upravený'!C26) -> Oddělení vědy a výzkumu | D26: ='2_Upravený'!D26-'1_Původní'!D26 -> 0 | E26: ='2_Upravený'!E26-'1_Původní'!E26 -> 0 | F26: ='2_Upravený'!F26-'1_Původní'!F26 -> 0 | G26: ='2_Upravený'!G26-'1_Původní'!G26 -> 0 | H26: ='2_Upravený'!H26-'1_Původní'!H26 -> 0 | I26: ='2_Upravený'!I26-'1_Původní'!I26 -> 0 | J26: ='2_Upravený'!J26-'1_Původní'!J26 -> 0 | K26: ='2_Upravený'!K26-'1_Původní'!K26 -> 0 | L26: ='2_Upravený'!L26-'1_Původní'!L26 -> 0 | M26: ='2_Upravený'!M26-'1_Původní'!M26 -> 0 | N26: ='2_Upravený'!N26-'1_Původní'!N26 -> 0 | O26: ='2_Upravený'!O26-'1_Původní'!O26 -> 0 | P26: 0
B27: =IF('2_Upravený'!B27="","",'2_Upravený'!B27) ->  | C27: =IF('2_Upravený'!C27="","",'2_Upravený'!C27) ->  | D27: ='2_Upravený'!D27-'1_Původní'!D27 -> 0 | E27: ='2_Upravený'!E27-'1_Původní'!E27 -> 0 | F27: ='2_Upravený'!F27-'1_Původní'!F27 -> 0 | G27: ='2_Upravený'!G27-'1_Původní'!G27 -> 0 | H27: ='2_Upravený'!H27-'1_Původní'!H27 -> 0 | I27: ='2_Upravený'!I27-'1_Původní'!I27 -> 0 | J27: ='2_Upravený'!J27-'1_Původní'!J27 -> 0 | K27: ='2_Upravený'!K27-'1_Původní'!K27 -> 0 | L27: ='2_Upravený'!L27-'1_Původní'!L27 -> 0 | M27: ='2_Upravený'!M27-'1_Původní'!M27 -> 0 | N27: ='2_Upravený'!N27-'1_Původní'!N27 -> 0 | O27: ='2_Upravený'!O27-'1_Původní'!O27 -> 0 | P27: 0
A29: 64924440 | B29: Klinické hodnocení - EU (81xx,9003,9028) | D29: =SUM(D42:D42) -> 0 | E29: 0 | F29: 0 | G29: 0 | H29: 0 | I29: 0 | J29: 0 | K29: 0 | L29: 0 | M29: 0 | N29: 0 | O29: 0 | P29: 0
B30: =IF('2_Upravený'!B30="","",'2_Upravený'!B30) -> 8101 | C30: =IF('2_Upravený'!C30="","",'2_Upravený'!C30) -> Klinická hodnocení - I. Interní klinika | D30: ='2_Upravený'!D30-'1_Původní'!D30 -> 0 | E30: ='2_Upravený'!E30-'1_Původní'!E30 -> 0 | F30: ='2_Upravený'!F30-'1_Původní'!F30 -> 0 | G30: ='2_Upravený'!G30-'1_Původní'!G30 -> 0 | H30: ='2_Upravený'!H30-'1_Původní'!H30 -> 0 | I30: ='2_Upravený'!I30-'1_Původní'!I30 -> 0 | J30: ='2_Upravený'!J30-'1_Původní'!J30 -> 0 | K30: ='2_Upravený'!K30-'1_Původní'!K30 -> 0 | L30: ='2_Upravený'!L30-'1_Původní'!L30 -> 0 | M30: ='2_Upravený'!M30-'1_Původní'!M30 -> 0 | N30: ='2_Upravený'!N30-'1_Původní'!N30 -> 0 | O30: ='2_Upravený'!O30-'1_Původní'!O30 -> 0 | P30: =SUM(D30:O30) -> 0
B31: =IF('2_Upravený'!B31="","",'2_Upravený'!B31) -> 8103 | C31: =IF('2_Upravený'!C31="","",'2_Upravený'!C31) -> Klinická hodnocení - III. Interní klinika | D31: ='2_Upravený'!D31-'1_Původní'!D31 -> 0 | E31: ='2_Upravený'!E31-'1_Původní'!E31 -> 0 | F31: ='2_Upravený'!F31-'1_Původní'!F31 -> 0 | G31: ='2_Upravený'!G31-'1_Původní'!G31 -> 0 | H31: ='2_Upravený'!H31-'1_Původní'!H31 -> 0 | I31: ='2_Upravený'!I31-'1_Původní'!I31 -> 0 | J31: ='2_Upravený'!J31-'1_Původní'!J31 -> 0 | K31: ='2_Upravený'!K31-'1_Původní'!K31 -> 0 | L31: ='2_Upravený'!L31-'1_Původní'!L31 -> 0 | M31: ='2_Upravený'!M31-'1_Původní'!M31 -> 0 | N31: ='2_Upravený'!N31-'1_Původní'!N31 -> 0 | O31: ='2_Upravený'!O31-'1_Původní'!O31 -> 0 | P31: =SUM(D31:O31) -> 0
B32: =IF('2_Upravený'!B32="","",'2_Upravený'!B32) -> 8105 | C32: =IF('2_Upravený'!C32="","",'2_Upravený'!C32) -> Klinická hodnocení - II. Chirurgická klinika | D32: ='2_Upravený'!D32-'1_Původní'!D32 -> 0 | E32: ='2_Upravený'!E32-'1_Původní'!E32 -> 0 | F32: ='2_Upravený'!F32-'1_Původní'!F32 -> 0 | G32: ='2_Upravený'!G32-'1_Původní'!G32 -> 0 | H32: ='2_Upravený'!H32-'1_Původní'!H32 -> 0 | I32: ='2_Upravený'!I32-'1_Původní'!I32 -> 0 | J32: ='2_Upravený'!J32-'1_Původní'!J32 -> 0 | K32: ='2_Upravený'!K32-'1_Původní'!K32 -> 0 | L32: ='2_Upravený'!L32-'1_Původní'!L32 -> 0 | M32: ='2_Upravený'!M32-'1_Původní'!M32 -> 0 | N32: ='2_Upravený'!N32-'1_Původní'!N32 -> 0 | O32: ='2_Upravený'!O32-'1_Původní'!O32 -> 0 | P32: 0
B33: =IF('2_Upravený'!B33="","",'2_Upravený'!B33) -> 8110 | C33: =IF('2_Upravený'!C33="","",'2_Upravený'!C33) -> Klinická hodnocení - Dětská klinika | D33: ='2_Upravený'!D33-'1_Původní'!D33 -> 0 | E33: ='2_Upravený'!E33-'1_Původní'!E33 -> 0 | F33: ='2_Upravený'!F33-'1_Původní'!F33 -> 0 | G33: ='2_Upravený'!G33-'1_Původní'!G33 -> 0 | H33: ='2_Upravený'!H33-'1_Původní'!H33 -> 0 | I33: ='2_Upravený'!I33-'1_Původní'!I33 -> 0 | J33: ='2_Upravený'!J33-'1_Původní'!J33 -> 0 | K33: ='2_Upravený'!K33-'1_Původní'!K33 -> 0 | L33: ='2_Upravený'!L33-'1_Původní'!L33 -> 0 | M33: ='2_Upravený'!M33-'1_Původní'!M33 -> 0 | N33: ='2_Upravený'!N33-'1_Původní'!N33 -> 0 | O33: ='2_Upravený'!O33-'1_Původní'!O33 -> 0 | P33: 0
B34: =IF('2_Upravený'!B34="","",'2_Upravený'!B34) -> 8112 | C34: =IF('2_Upravený'!C34="","",'2_Upravený'!C34) -> Klinická hodnocení - Urologická klinika | D34: ='2_Upravený'!D34-'1_Původní'!D34 -> 0 | E34: ='2_Upravený'!E34-'1_Původní'!E34 -> 0 | F34: ='2_Upravený'!F34-'1_Původní'!F34 -> 0 | G34: ='2_Upravený'!G34-'1_Původní'!G34 -> 0 | H34: ='2_Upravený'!H34-'1_Původní'!H34 -> 0 | I34: ='2_Upravený'!I34-'1_Původní'!I34 -> 0 | J34: ='2_Upravený'!J34-'1_Původní'!J34 -> 0 | K34: ='2_Upravený'!K34-'1_Původní'!K34 -> 0 | L34: ='2_Upravený'!L34-'1_Původní'!L34 -> 0 | M34: ='2_Upravený'!M34-'1_Původní'!M34 -> 0 | N34: ='2_Upravený'!N34-'1_Původní'!N34 -> 0 | O34: ='2_Upravený'!O34-'1_Původní'!O34 -> 0 | P34: 0
B35: =IF('2_Upravený'!B35="","",'2_Upravený'!B35) -> 8114 | C35: =IF('2_Upravený'!C35="","",'2_Upravený'!C35) -> Klinická hodnocení - Oční klinika | D35: ='2_Upravený'!D35-'1_Původní'!D35 -> 0 | E35: ='2_Upravený'!E35-'1_Původní'!E35 -> 0 | F35: ='2_Upravený'!F35-'1_Původní'!F35 -> 0 | G35: ='2_Upravený'!G35-'1_Původní'!G35 -> 0 | H35: ='2_Upravený'!H35-'1_Původní'!H35 -> 0 | I35: ='2_Upravený'!I35-'1_Původní'!I35 -> 0 | J35: ='2_Upravený'!J35-'1_Původní'!J35 -> 0 | K35: ='2_Upravený'!K35-'1_Původní'!K35 -> 0 | L35: ='2_Upravený'!L35-'1_Původní'!L35 -> 0 | M35: ='2_Upravený'!M35-'1_Původní'!M35 -> 0 | N35: ='2_Upravený'!N35-'1_Původní'!N35 -> 0 | O35: ='2_Upravený'!O35-'1_Původní'!O35 -> 0 | P35: 0
B36: =IF('2_Upravený'!B36="","",'2_Upravený'!B36) -> 8116 | C36: =IF('2_Upravený'!C36="","",'2_Upravený'!C36) -> Klinická hodnocení - Klinika plicních nemocí a tuberkulózy | D36: ='2_Upravený'!D36-'1_Původní'!D36 -> 0 | E36: ='2_Upravený'!E36-'1_Původní'!E36 -> 0 | F36: ='2_Upravený'!F36-'1_Původní'!F36 -> 0 | G36: ='2_Upravený'!G36-'1_Původní'!G36 -> 0 | H36: ='2_Upravený'!H36-'1_Původní'!H36 -> 0 | I36: ='2_Upravený'!I36-'1_Původní'!I36 -> 0 | J36: ='2_Upravený'!J36-'1_Původní'!J36 -> 0 | K36: ='2_Upravený'!K36-'1_Původní'!K36 -> 0 | L36: ='2_Upravený'!L36-'1_Původní'!L36 -> 0 | M36: ='2_Upravený'!M36-'1_Původní'!M36 -> 0 | N36: ='2_Upravený'!N36-'1_Původní'!N36 -> 0 | O36: ='2_Upravený'!O36-'1_Původní'!O36 -> 0 | P36: 0
B37: =IF('2_Upravený'!B37="","",'2_Upravený'!B37) -> 8117 | C37: =IF('2_Upravený'!C37="","",'2_Upravený'!C37) -> Klinická hodnocení - Neurologická klinika | D37: ='2_Upravený'!D37-'1_Původní'!D37 -> 0 | E37: ='2_Upravený'!E37-'1_Původní'!E37 -> 0 | F37: ='2_Upravený'!F37-'1_Původní'!F37 -> 0 | G37: ='2_Upravený'!G37-'1_Původní'!G37 -> 0 | H37: ='2_Upravený'!H37-'1_Původní'!H37 -> 0 | I37: ='2_Upravený'!I37-'1_Původní'!I37 -> 0 | J37: ='2_Upravený'!J37-'1_Původní'!J37 -> 0 | K37: ='2_Upravený'!K37-'1_Původní'!K37 -> 0 | L37: ='2_Upravený'!L37-'1_Původní'!L37 -> 0 | M37: ='2_Upravený'!M37-'1_Původní'!M37 -> 0 | N37: ='2_Upravený'!N37-'1_Původní'!N37 -> 0 | O37: ='2_Upravený'!O37-'1_Původní'!O37 -> 0 | P37: 0
B38: =IF('2_Upravený'!B38="","",'2_Upravený'!B38) -> 8121 | C38: =IF('2_Upravený'!C38="","",'2_Upravený'!C38) -> Klinická hodnocení - Onkologická klinika | D38: ='2_Upravený'!D38-'1_Původní'!D38 -> 0 | E38: ='2_Upravený'!E38-'1_Původní'!E38 -> 0 | F38: ='2_Upravený'!F38-'1_Původní'!F38 -> 0 | G38: ='2_Upravený'!G38-'1_Původní'!G38 -> 0 | H38: ='2_Upravený'!H38-'1_Původní'!H38 -> 0 | I38: ='2_Upravený'!I38-'1_Původní'!I38 -> 0 | J38: ='2_Upravený'!J38-'1_Původní'!J38 -> 0 | K38: ='2_Upravený'!K38-'1_Původní'!K38 -> 0 | L38: ='2_Upravený'!L38-'1_Původní'!L38 -> 0 | M38: ='2_Upravený'!M38-'1_Původní'!M38 -> 0 | N38: ='2_Upravený'!N38-'1_Původní'!N38 -> 0 | O38: ='2_Upravený'!O38-'1_Původní'!O38 -> 0 | P38: 0
B39: =IF('2_Upravený'!B39="","",'2_Upravený'!B39) -> 8132 | C39: =IF('2_Upravený'!C39="","",'2_Upravený'!C39) -> Klinická hodnocení - Hemato-onkologická klinika | D39: ='2_Upravený'!D39-'1_Původní'!D39 -> 163409.5017 | E39: ='2_Upravený'!E39-'1_Původní'!E39 -> 0 | F39: ='2_Upravený'!F39-'1_Původní'!F39 -> 0 | G39: ='2_Upravený'!G39-'1_Původní'!G39 -> 0 | H39: ='2_Upravený'!H39-'1_Původní'!H39 -> 0 | I39: ='2_Upravený'!I39-'1_Původní'!I39 -> 0 | J39: ='2_Upravený'!J39-'1_Původní'!J39 -> 0 | K39: ='2_Upravený'!K39-'1_Původní'!K39 -> -163409.5308 | L39: ='2_Upravený'!L39-'1_Původní'!L39 -> 0 | M39: ='2_Upravený'!M39-'1_Původní'!M39 -> 0 | N39: ='2_Upravený'!N39-'1_Původní'!N39 -> 0 | O39: ='2_Upravený'!O39-'1_Původní'!O39 -> 0 | P39: -0.02910000001
B40: =IF('2_Upravený'!B40="","",'2_Upravený'!B40) -> 8148 | C40: =IF('2_Upravený'!C40="","",'2_Upravený'!C40) -> Klinická hodnocení - Lékárna | D40: ='2_Upravený'!D40-'1_Původní'!D40 -> 0 | E40: ='2_Upravený'!E40-'1_Původní'!E40 -> 0 | F40: ='2_Upravený'!F40-'1_Původní'!F40 -> 0 | G40: ='2_Upravený'!G40-'1_Původní'!G40 -> 0 | H40: ='2_Upravený'!H40-'1_Původní'!H40 -> 0 | I40: ='2_Upravený'!I40-'1_Původní'!I40 -> 0 | J40: ='2_Upravený'!J40-'1_Původní'!J40 -> 0 | K40: ='2_Upravený'!K40-'1_Původní'!K40 -> 0 | L40: ='2_Upravený'!L40-'1_Původní'!L40 -> 0 | M40: ='2_Upravený'!M40-'1_Původní'!M40 -> 0 | N40: ='2_Upravený'!N40-'1_Původní'!N40 -> 0 | O40: ='2_Upravený'!O40-'1_Původní'!O40 -> 0 | P40: 0
B41: =IF('2_Upravený'!B41="","",'2_Upravený'!B41) -> 9028 | C41: =IF('2_Upravený'!C41="","",'2_Upravený'!C41) -> Oddělení vědy a výzkumu | D41: ='2_Upravený'!D41-'1_Původní'!D41 -> 0 | E41: ='2_Upravený'!E41-'1_Původní'!E41 -> 0 | F41: ='2_Upravený'!F41-'1_Původní'!F41 -> 0 | G41: ='2_Upravený'!G41-'1_Původní'!G41 -> 0 | H41: ='2_Upravený'!H41-'1_Původní'!H41 -> 0 | I41: ='2_Upravený'!I41-'1_Původní'!I41 -> 0 | J41: ='2_Upravený'!J41-'1_Původní'!J41 -> 0 | K41: ='2_Upravený'!K41-'1_Původní'!K41 -> 0 | L41: ='2_Upravený'!L41-'1_Původní'!L41 -> 0 | M41: ='2_Upravený'!M41-'1_Původní'!M41 -> 0 | N41: ='2_Upravený'!N41-'1_Původní'!N41 -> 0 | O41: ='2_Upravený'!O41-'1_Původní'!O41 -> 0 | P41: 0
B42: =IF('2_Upravený'!B42="","",'2_Upravený'!B42) ->  | C42: =IF('2_Upravený'!C42="","",'2_Upravený'!C42) ->  | D42: ='2_Upravený'!D42-'1_Původní'!D42 -> 0 | E42: ='2_Upravený'!E42-'1_Původní'!E42 -> 0 | F42: ='2_Upravený'!F42-'1_Původní'!F42 -> 0 | G42: ='2_Upravený'!G42-'1_Původní'!G42 -> 0 | H42: ='2_Upravený'!H42-'1_Původní'!H42 -> 0 | I42: ='2_Upravený'!I42-'1_Původní'!I42 -> 0 | J42: ='2_Upravený'!J42-'1_Původní'!J42 -> 0 | K42: ='2_Upravený'!K42-'1_Původní'!K42 -> 0 | L42: ='2_Upravený'!L42-'1_Původní'!L42 -> 0 | M42: ='2_Upravený'!M42-'1_Původní'!M42 -> 0 | N42: ='2_Upravený'!N42-'1_Původní'!N42 -> 0 | O42: ='2_Upravený'!O42-'1_Původní'!O42 -> 0 | P42: 0
A44: 64924441 | B44: Klinické hodnocení - 3.země (81xx,9003,9028) | D44: =SUM(D57:D57) -> 0 | E44: 0 | F44: 0 | G44: 0 | H44: 0 | I44: 0 | J44: 0 | K44: 0 | L44: 0 | M44: 0 | N44: 0 | O44: 0 | P44: 0
B45: =IF('2_Upravený'!B45="","",'2_Upravený'!B45) -> 8101 | C45: =IF('2_Upravený'!C45="","",'2_Upravený'!C45) -> Klinická hodnocení - I. Interní klinika | D45: ='2_Upravený'!D45-'1_Původní'!D45 -> 0 | E45: ='2_Upravený'!E45-'1_Původní'!E45 -> 0 | F45: ='2_Upravený'!F45-'1_Původní'!F45 -> 0 | G45: ='2_Upravený'!G45-'1_Původní'!G45 -> 0 | H45: ='2_Upravený'!H45-'1_Původní'!H45 -> 0 | I45: ='2_Upravený'!I45-'1_Původní'!I45 -> 0 | J45: ='2_Upravený'!J45-'1_Původní'!J45 -> 0 | K45: ='2_Upravený'!K45-'1_Původní'!K45 -> 0 | L45: ='2_Upravený'!L45-'1_Původní'!L45 -> 0 | M45: ='2_Upravený'!M45-'1_Původní'!M45 -> 0 | N45: ='2_Upravený'!N45-'1_Původní'!N45 -> 0 | O45: ='2_Upravený'!O45-'1_Původní'!O45 -> 0 | P45: =SUM(D45:O45) -> 0
B46: =IF('2_Upravený'!B46="","",'2_Upravený'!B46) -> 8103 | C46: =IF('2_Upravený'!C46="","",'2_Upravený'!C46) -> Klinická hodnocení - III. Interní klinika | D46: ='2_Upravený'!D46-'1_Původní'!D46 -> 0 | E46: ='2_Upravený'!E46-'1_Původní'!E46 -> 0 | F46: ='2_Upravený'!F46-'1_Původní'!F46 -> 0 | G46: ='2_Upravený'!G46-'1_Původní'!G46 -> 0 | H46: ='2_Upravený'!H46-'1_Původní'!H46 -> 0 | I46: ='2_Upravený'!I46-'1_Původní'!I46 -> 0 | J46: ='2_Upravený'!J46-'1_Původní'!J46 -> 0 | K46: ='2_Upravený'!K46-'1_Původní'!K46 -> 0 | L46: ='2_Upravený'!L46-'1_Původní'!L46 -> 0 | M46: ='2_Upravený'!M46-'1_Původní'!M46 -> 0 | N46: ='2_Upravený'!N46-'1_Původní'!N46 -> 0 | O46: ='2_Upravený'!O46-'1_Původní'!O46 -> 0 | P46: =SUM(D46:O46) -> 0
B47: =IF('2_Upravený'!B47="","",'2_Upravený'!B47) -> 8108 | C47: =IF('2_Upravený'!C47="","",'2_Upravený'!C47) -> Klinická hodnocení - Porodnicko-gynekologická klinika | D47: ='2_Upravený'!D47-'1_Původní'!D47 -> 0 | E47: ='2_Upravený'!E47-'1_Původní'!E47 -> 0 | F47: ='2_Upravený'!F47-'1_Původní'!F47 -> 0 | G47: ='2_Upravený'!G47-'1_Původní'!G47 -> 0 | H47: ='2_Upravený'!H47-'1_Původní'!H47 -> 0 | I47: ='2_Upravený'!I47-'1_Původní'!I47 -> 0 | J47: ='2_Upravený'!J47-'1_Původní'!J47 -> 0 | K47: ='2_Upravený'!K47-'1_Původní'!K47 -> 0 | L47: ='2_Upravený'!L47-'1_Původní'!L47 -> 0 | M47: ='2_Upravený'!M47-'1_Původní'!M47 -> 0 | N47: ='2_Upravený'!N47-'1_Původní'!N47 -> 0 | O47: ='2_Upravený'!O47-'1_Původní'!O47 -> 0 | P47: 0
B48: =IF('2_Upravený'!B48="","",'2_Upravený'!B48) -> 8116 | C48: =IF('2_Upravený'!C48="","",'2_Upravený'!C48) -> Klinická hodnocení - Klinika plicních nemocí a tuberkulózy | D48: ='2_Upravený'!D48-'1_Původní'!D48 -> 0 | E48: ='2_Upravený'!E48-'1_Původní'!E48 -> 0 | F48: ='2_Upravený'!F48-'1_Původní'!F48 -> 0 | G48: ='2_Upravený'!G48-'1_Původní'!G48 -> 0 | H48: ='2_Upravený'!H48-'1_Původní'!H48 -> 0 | I48: ='2_Upravený'!I48-'1_Původní'!I48 -> 0 | J48: ='2_Upravený'!J48-'1_Původní'!J48 -> 0 | K48: ='2_Upravený'!K48-'1_Původní'!K48 -> 0 | L48: ='2_Upravený'!L48-'1_Původní'!L48 -> 0 | M48: ='2_Upravený'!M48-'1_Původní'!M48 -> 0 | N48: ='2_Upravený'!N48-'1_Původní'!N48 -> 0 | O48: ='2_Upravený'!O48-'1_Původní'!O48 -> 0 | P48: 0
B49: =IF('2_Upravený'!B49="","",'2_Upravený'!B49) -> 8117 | C49: =IF('2_Upravený'!C49="","",'2_Upravený'!C49) -> Klinická hodnocení - Neurologická klinika | D49: ='2_Upravený'!D49-'1_Původní'!D49 -> 0 | E49: ='2_Upravený'!E49-'1_Původní'!E49 -> 0 | F49: ='2_Upravený'!F49-'1_Původní'!F49 -> 0 | G49: ='2_Upravený'!G49-'1_Původní'!G49 -> 0 | H49: ='2_Upravený'!H49-'1_Původní'!H49 -> 0 | I49: ='2_Upravený'!I49-'1_Původní'!I49 -> 0 | J49: ='2_Upravený'!J49-'1_Původní'!J49 -> 0 | K49: ='2_Upravený'!K49-'1_Původní'!K49 -> 0 | L49: ='2_Upravený'!L49-'1_Původní'!L49 -> 0 | M49: ='2_Upravený'!M49-'1_Původní'!M49 -> 0 | N49: ='2_Upravený'!N49-'1_Původní'!N49 -> 0 | O49: ='2_Upravený'!O49-'1_Původní'!O49 -> 0 | P49: 0
B50: =IF('2_Upravený'!B50="","",'2_Upravený'!B50) -> 8120 | C50: =IF('2_Upravený'!C50="","",'2_Upravený'!C50) -> Klinická hodnocení - Klinika chorob kožních a pohlavních | D50: ='2_Upravený'!D50-'1_Původní'!D50 -> 0 | E50: ='2_Upravený'!E50-'1_Původní'!E50 -> 0 | F50: ='2_Upravený'!F50-'1_Původní'!F50 -> 0 | G50: ='2_Upravený'!G50-'1_Původní'!G50 -> 0 | H50: ='2_Upravený'!H50-'1_Původní'!H50 -> 0 | I50: ='2_Upravený'!I50-'1_Původní'!I50 -> 0 | J50: ='2_Upravený'!J50-'1_Původní'!J50 -> 0 | K50: ='2_Upravený'!K50-'1_Původní'!K50 -> 0 | L50: ='2_Upravený'!L50-'1_Původní'!L50 -> 0 | M50: ='2_Upravený'!M50-'1_Původní'!M50 -> 0 | N50: ='2_Upravený'!N50-'1_Původní'!N50 -> 0 | O50: ='2_Upravený'!O50-'1_Původní'!O50 -> 0 | P50: 0
B51: =IF('2_Upravený'!B51="","",'2_Upravený'!B51) -> 8121 | C51: =IF('2_Upravený'!C51="","",'2_Upravený'!C51) -> Klinická hodnocení - Onkologická klinika | D51: ='2_Upravený'!D51-'1_Původní'!D51 -> 0 | E51: ='2_Upravený'!E51-'1_Původní'!E51 -> 0 | F51: ='2_Upravený'!F51-'1_Původní'!F51 -> 0 | G51: ='2_Upravený'!G51-'1_Původní'!G51 -> 0 | H51: ='2_Upravený'!H51-'1_Původní'!H51 -> 0 | I51: ='2_Upravený'!I51-'1_Původní'!I51 -> 0 | J51: ='2_Upravený'!J51-'1_Původní'!J51 -> 0 | K51: ='2_Upravený'!K51-'1_Původní'!K51 -> 0 | L51: ='2_Upravený'!L51-'1_Původní'!L51 -> 0 | M51: ='2_Upravený'!M51-'1_Původní'!M51 -> 0 | N51: ='2_Upravený'!N51-'1_Původní'!N51 -> 0 | O51: ='2_Upravený'!O51-'1_Původní'!O51 -> 0 | P51: 0
B52: =IF('2_Upravený'!B52="","",'2_Upravený'!B52) -> 8132 | C52: =IF('2_Upravený'!C52="","",'2_Upravený'!C52) -> Klinická hodnocení - Hemato-onkologická klinika | D52: ='2_Upravený'!D52-'1_Původní'!D52 -> 0 | E52: ='2_Upravený'!E52-'1_Původní'!E52 -> 0 | F52: ='2_Upravený'!F52-'1_Původní'!F52 -> 0 | G52: ='2_Upravený'!G52-'1_Původní'!G52 -> 0 | H52: ='2_Upravený'!H52-'1_Původní'!H52 -> 0 | I52: ='2_Upravený'!I52-'1_Původní'!I52 -> 0 | J52: ='2_Upravený'!J52-'1_Původní'!J52 -> 0 | K52: ='2_Upravený'!K52-'1_Původní'!K52 -> 0 | L52: ='2_Upravený'!L52-'1_Původní'!L52 -> 0 | M52: ='2_Upravený'!M52-'1_Původní'!M52 -> 0 | N52: ='2_Upravený'!N52-'1_Původní'!N52 -> 0 | O52: ='2_Upravený'!O52-'1_Původní'!O52 -> 0 | P52: 0
B53: =IF('2_Upravený'!B53="","",'2_Upravený'!B53) -> 8134 | C53: =IF('2_Upravený'!C53="","",'2_Upravený'!C53) -> Klinická hodnocení - Radiologická klinika | D53: ='2_Upravený'!D53-'1_Původní'!D53 -> 0 | E53: ='2_Upravený'!E53-'1_Původní'!E53 -> 0 | F53: ='2_Upravený'!F53-'1_Původní'!F53 -> 0 | G53: ='2_Upravený'!G53-'1_Původní'!G53 -> 0 | H53: ='2_Upravený'!H53-'1_Původní'!H53 -> 0 | I53: ='2_Upravený'!I53-'1_Původní'!I53 -> 0 | J53: ='2_Upravený'!J53-'1_Původní'!J53 -> 0 | K53: ='2_Upravený'!K53-'1_Původní'!K53 -> 0 | L53: ='2_Upravený'!L53-'1_Původní'!L53 -> 0 | M53: ='2_Upravený'!M53-'1_Původní'!M53 -> 0 | N53: ='2_Upravený'!N53-'1_Původní'!N53 -> 0 | O53: ='2_Upravený'!O53-'1_Původní'!O53 -> 0 | P53: 0
B54: =IF('2_Upravený'!B54="","",'2_Upravený'!B54) -> 8148 | C54: =IF('2_Upravený'!C54="","",'2_Upravený'!C54) -> Klinická hodnocení - Lékárna | D54: ='2_Upravený'!D54-'1_Původní'!D54 -> 0 | E54: ='2_Upravený'!E54-'1_Původní'!E54 -> 0 | F54: ='2_Upravený'!F54-'1_Původní'!F54 -> 0 | G54: ='2_Upravený'!G54-'1_Původní'!G54 -> 0 | H54: ='2_Upravený'!H54-'1_Původní'!H54 -> 0 | I54: ='2_Upravený'!I54-'1_Původní'!I54 -> 0 | J54: ='2_Upravený'!J54-'1_Původní'!J54 -> 0 | K54: ='2_Upravený'!K54-'1_Původní'!K54 -> 0 | L54: ='2_Upravený'!L54-'1_Původní'!L54 -> 0 | M54: ='2_Upravený'!M54-'1_Původní'!M54 -> 0 | N54: ='2_Upravený'!N54-'1_Původní'!N54 -> 0 | O54: ='2_Upravený'!O54-'1_Původní'!O54 -> 0 | P54: 0
B55: =IF('2_Upravený'!B55="","",'2_Upravený'!B55) -> 8150 | C55: =IF('2_Upravený'!C55="","",'2_Upravený'!C55) -> Klinická hodnocení - Kardiochirurgická klinika | D55: ='2_Upravený'!D55-'1_Původní'!D55 -> 0 | E55: ='2_Upravený'!E55-'1_Původní'!E55 -> 0 | F55: ='2_Upravený'!F55-'1_Původní'!F55 -> 0 | G55: ='2_Upravený'!G55-'1_Původní'!G55 -> 0 | H55: ='2_Upravený'!H55-'1_Původní'!H55 -> 0 | I55: ='2_Upravený'!I55-'1_Původní'!I55 -> 0 | J55: ='2_Upravený'!J55-'1_Původní'!J55 -> 0 | K55: ='2_Upravený'!K55-'1_Původní'!K55 -> 0 | L55: ='2_Upravený'!L55-'1_Původní'!L55 -> 0 | M55: ='2_Upravený'!M55-'1_Původní'!M55 -> 0 | N55: ='2_Upravený'!N55-'1_Původní'!N55 -> 0 | O55: ='2_Upravený'!O55-'1_Původní'!O55 -> 0 | P55: 0
B56: =IF('2_Upravený'!B56="","",'2_Upravený'!B56) -> 9028 | C56: =IF('2_Upravený'!C56="","",'2_Upravený'!C56) -> Oddělení vědy a výzkumu | D56: ='2_Upravený'!D56-'1_Původní'!D56 -> 0 | E56: ='2_Upravený'!E56-'1_Původní'!E56 -> 0 | F56: ='2_Upravený'!F56-'1_Původní'!F56 -> 0 | G56: ='2_Upravený'!G56-'1_Původní'!G56 -> 0 | H56: ='2_Upravený'!H56-'1_Původní'!H56 -> 0 | I56: ='2_Upravený'!I56-'1_Původní'!I56 -> 0 | J56: ='2_Upravený'!J56-'1_Původní'!J56 -> 0 | K56: ='2_Upravený'!K56-'1_Původní'!K56 -> 0 | L56: ='2_Upravený'!L56-'1_Původní'!L56 -> 0 | M56: ='2_Upravený'!M56-'1_Původní'!M56 -> 0 | N56: ='2_Upravený'!N56-'1_Původní'!N56 -> 0 | O56: ='2_Upravený'!O56-'1_Původní'!O56 -> 0 | P56: 0
B57: =IF('2_Upravený'!B57="","",'2_Upravený'!B57) ->  | C57: =IF('2_Upravený'!C57="","",'2_Upravený'!C57) ->  | D57: ='2_Upravený'!D57-'1_Původní'!D57 -> 0 | E57: ='2_Upravený'!E57-'1_Původní'!E57 -> 0 | F57: ='2_Upravený'!F57-'1_Původní'!F57 -> 0 | G57: ='2_Upravený'!G57-'1_Původní'!G57 -> 0 | H57: ='2_Upravený'!H57-'1_Původní'!H57 -> 0 | I57: ='2_Upravený'!I57-'1_Původní'!I57 -> 0 | J57: ='2_Upravený'!J57-'1_Původní'!J57 -> 0 | K57: ='2_Upravený'!K57-'1_Původní'!K57 -> 0 | L57: ='2_Upravený'!L57-'1_Původní'!L57 -> 0 | M57: ='2_Upravený'!M57-'1_Původní'!M57 -> 0 | N57: ='2_Upravený'!N57-'1_Původní'!N57 -> 0 | O57: ='2_Upravený'!O57-'1_Původní'!O57 -> 0 | P57: 0
A59: 67101000 | B59: Transfery MZ - ostatní | D59: =SUM(D77:D77) -> 0 | E59: 0 | F59: 0 | G59: 0 | H59: 0 | I59: 0 | J59: 0 | K59: 0 | L59: 0 | M59: 0 | N59: 0 | O59: 0 | P59: 0
B60: =IF('2_Upravený'!B60="","",'2_Upravený'!B60) -> 0873 | C60: =IF('2_Upravený'!C60="","",'2_Upravený'!C60) -> IROP - Mod.obn.přístr.vyb.perinatologického centra | D60: ='2_Upravený'!D60-'1_Původní'!D60 -> 0 | E60: ='2_Upravený'!E60-'1_Původní'!E60 -> 0 | F60: ='2_Upravený'!F60-'1_Původní'!F60 -> 0 | G60: ='2_Upravený'!G60-'1_Původní'!G60 -> 0 | H60: ='2_Upravený'!H60-'1_Původní'!H60 -> 0 | I60: ='2_Upravený'!I60-'1_Původní'!I60 -> 0 | J60: ='2_Upravený'!J60-'1_Původní'!J60 -> 0 | K60: ='2_Upravený'!K60-'1_Původní'!K60 -> 0 | L60: ='2_Upravený'!L60-'1_Původní'!L60 -> 0 | M60: ='2_Upravený'!M60-'1_Původní'!M60 -> 0 | N60: ='2_Upravený'!N60-'1_Původní'!N60 -> -8351.5115 | O60: ='2_Upravený'!O60-'1_Původní'!O60 -> 0 | P60: =SUM(D60:O60) -> -8351.5115
B61: =IF('2_Upravený'!B61="","",'2_Upravený'!B61) -> 1096 | C61: =IF('2_Upravený'!C61="","",'2_Upravený'!C61) -> OPVaVI - NPU I (projekt ÚMTM) | D61: ='2_Upravený'!D61-'1_Původní'!D61 -> 0 | E61: ='2_Upravený'!E61-'1_Původní'!E61 -> 0 | F61: ='2_Upravený'!F61-'1_Původní'!F61 -> 0 | G61: ='2_Upravený'!G61-'1_Původní'!G61 -> -363532.6382 | H61: ='2_Upravený'!H61-'1_Původní'!H61 -> -22340.8203 | I61: ='2_Upravený'!I61-'1_Původní'!I61 -> 0 | J61: ='2_Upravený'!J61-'1_Původní'!J61 -> 0 | K61: ='2_Upravený'!K61-'1_Původní'!K61 -> 0 | L61: ='2_Upravený'!L61-'1_Původní'!L61 -> 0 | M61: ='2_Upravený'!M61-'1_Původní'!M61 -> 0 | N61: ='2_Upravený'!N61-'1_Původní'!N61 -> 0 | O61: ='2_Upravený'!O61-'1_Původní'!O61 -> 0 | P61: =SUM(D61:O61) -> -385873.4585
B62: =IF('2_Upravený'!B62="","",'2_Upravený'!B62) -> 1704 | C62: =IF('2_Upravený'!C62="","",'2_Upravený'!C62) -> OP VVV - Molekulární, buněčný a klinický přístup ke zdravému stárnutí | D62: ='2_Upravený'!D62-'1_Původní'!D62 -> 1210000 | E62: ='2_Upravený'!E62-'1_Původní'!E62 -> 1210000 | F62: ='2_Upravený'!F62-'1_Původní'!F62 -> 1210000 | G62: ='2_Upravený'!G62-'1_Původní'!G62 -> 1210000 | H62: ='2_Upravený'!H62-'1_Původní'!H62 -> 1210000 | I62: ='2_Upravený'!I62-'1_Původní'!I62 -> 1210000 | J62: ='2_Upravený'!J62-'1_Původní'!J62 -> 1210000 | K62: ='2_Upravený'!K62-'1_Původní'!K62 -> 1210000 | L62: ='2_Upravený'!L62-'1_Původní'!L62 -> -4262207.925 | M62: ='2_Upravený'!M62-'1_Původní'!M62 -> 1210000 | N62: ='2_Upravený'!N62-'1_Původní'!N62 -> 1210000 | O62: ='2_Upravený'!O62-'1_Původní'!O62 -> -1022328.986 | P62: 6815463.089
B63: =IF('2_Upravený'!B63="","",'2_Upravený'!B63) -> 2103 | C63: =IF('2_Upravený'!C63="","",'2_Upravený'!C63) -> Národní onkologický registr - NOR | D63: ='2_Upravený'!D63-'1_Původní'!D63 -> 0 | E63: ='2_Upravený'!E63-'1_Původní'!E63 -> 0 | F63: ='2_Upravený'!F63-'1_Původní'!F63 -> 0 | G63: ='2_Upravený'!G63-'1_Původní'!G63 -> 0 | H63: ='2_Upravený'!H63-'1_Původní'!H63 -> 0 | I63: ='2_Upravený'!I63-'1_Původní'!I63 -> 0 | J63: ='2_Upravený'!J63-'1_Původní'!J63 -> 0 | K63: ='2_Upravený'!K63-'1_Původní'!K63 -> -602379.9105 | L63: ='2_Upravený'!L63-'1_Původní'!L63 -> 0 | M63: ='2_Upravený'!M63-'1_Původní'!M63 -> 0 | N63: ='2_Upravený'!N63-'1_Původní'!N63 -> 0 | O63: ='2_Upravený'!O63-'1_Původní'!O63 -> 0 | P63: -602379.9105
B64: =IF('2_Upravený'!B64="","",'2_Upravený'!B64) -> 3203 | C64: =IF('2_Upravený'!C64="","",'2_Upravený'!C64) -> HOK: OPŽP - Novostavba pavilonu HOK | D64: ='2_Upravený'!D64-'1_Původní'!D64 -> 0 | E64: ='2_Upravený'!E64-'1_Původní'!E64 -> 0 | F64: ='2_Upravený'!F64-'1_Původní'!F64 -> 0 | G64: ='2_Upravený'!G64-'1_Původní'!G64 -> 0 | H64: ='2_Upravený'!H64-'1_Původní'!H64 -> 0 | I64: ='2_Upravený'!I64-'1_Původní'!I64 -> 0 | J64: ='2_Upravený'!J64-'1_Původní'!J64 -> 0 | K64: ='2_Upravený'!K64-'1_Původní'!K64 -> -6469.8349 | L64: ='2_Upravený'!L64-'1_Původní'!L64 -> 0 | M64: ='2_Upravený'!M64-'1_Původní'!M64 -> 0 | N64: ='2_Upravený'!N64-'1_Původní'!N64 -> 0 | O64: ='2_Upravený'!O64-'1_Původní'!O64 -> 0 | P64: -6469.8349
B65: =IF('2_Upravený'!B65="","",'2_Upravený'!B65) -> 3396 | C65: =IF('2_Upravený'!C65="","",'2_Upravený'!C65) -> OPVaVI - NPU I (projekt ÚMTM) | D65: ='2_Upravený'!D65-'1_Původní'!D65 -> 0 | E65: ='2_Upravený'!E65-'1_Původní'!E65 -> 0 | F65: ='2_Upravený'!F65-'1_Původní'!F65 -> 0 | G65: ='2_Upravený'!G65-'1_Původní'!G65 -> -2160839.168 | H65: ='2_Upravený'!H65-'1_Původní'!H65 -> -3708.6917 | I65: ='2_Upravený'!I65-'1_Původní'!I65 -> 0 | J65: ='2_Upravený'!J65-'1_Původní'!J65 -> 0 | K65: ='2_Upravený'!K65-'1_Původní'!K65 -> 0 | L65: ='2_Upravený'!L65-'1_Původní'!L65 -> 0 | M65: ='2_Upravený'!M65-'1_Původní'!M65 -> 0 | N65: ='2_Upravený'!N65-'1_Původní'!N65 -> 0 | O65: ='2_Upravený'!O65-'1_Původní'!O65 -> 0 | P65: -2164547.859
B66: =IF('2_Upravený'!B66="","",'2_Upravený'!B66) -> 3503 | C66: =IF('2_Upravený'!C66="","",'2_Upravený'!C66) -> TO - krizová připravenost | D66: ='2_Upravený'!D66-'1_Původní'!D66 -> 0 | E66: ='2_Upravený'!E66-'1_Původní'!E66 -> 0 | F66: ='2_Upravený'!F66-'1_Původní'!F66 -> 0 | G66: ='2_Upravený'!G66-'1_Původní'!G66 -> 0 | H66: ='2_Upravený'!H66-'1_Původní'!H66 -> 0 | I66: ='2_Upravený'!I66-'1_Původní'!I66 -> 0 | J66: ='2_Upravený'!J66-'1_Původní'!J66 -> -142080.0058 | K66: ='2_Upravený'!K66-'1_Původní'!K66 -> 0 | L66: ='2_Upravený'!L66-'1_Původní'!L66 -> 0 | M66: ='2_Upravený'!M66-'1_Původní'!M66 -> 0 | N66: ='2_Upravený'!N66-'1_Původní'!N66 -> 0 | O66: ='2_Upravený'!O66-'1_Původní'!O66 -> 0 | P66: -142080.0058
B67: =IF('2_Upravený'!B67="","",'2_Upravený'!B67) -> 4496 | C67: =IF('2_Upravený'!C67="","",'2_Upravený'!C67) -> OPVaVI - NPU I (projekt ÚMTM) | D67: ='2_Upravený'!D67-'1_Původní'!D67 -> 0 | E67: ='2_Upravený'!E67-'1_Původní'!E67 -> 0 | F67: ='2_Upravený'!F67-'1_Původní'!F67 -> 0 | G67: ='2_Upravený'!G67-'1_Původní'!G67 -> -914016.247 | H67: ='2_Upravený'!H67-'1_Původní'!H67 -> 26049.512 | I67: ='2_Upravený'!I67-'1_Původní'!I67 -> 0 | J67: ='2_Upravený'!J67-'1_Původní'!J67 -> 0 | K67: ='2_Upravený'!K67-'1_Původní'!K67 -> 0 | L67: ='2_Upravený'!L67-'1_Původní'!L67 -> 0 | M67: ='2_Upravený'!M67-'1_Původní'!M67 -> 0 | N67: ='2_Upravený'!N67-'1_Původní'!N67 -> 0 | O67: ='2_Upravený'!O67-'1_Původní'!O67 -> 0 | P67: -887966.735
B68: =IF('2_Upravený'!B68="","",'2_Upravený'!B68) -> 5102 | C68: =IF('2_Upravený'!C68="","",'2_Upravený'!C68) -> NTMC - Národní telemedicínské centrum - provoz | D68: ='2_Upravený'!D68-'1_Původní'!D68 -> 0 | E68: ='2_Upravený'!E68-'1_Původní'!E68 -> 0 | F68: ='2_Upravený'!F68-'1_Původní'!F68 -> 0 | G68: ='2_Upravený'!G68-'1_Původní'!G68 -> 0 | H68: ='2_Upravený'!H68-'1_Původní'!H68 -> 0 | I68: ='2_Upravený'!I68-'1_Původní'!I68 -> 0 | J68: ='2_Upravený'!J68-'1_Původní'!J68 -> 0 | K68: ='2_Upravený'!K68-'1_Původní'!K68 -> 0 | L68: ='2_Upravený'!L68-'1_Původní'!L68 -> 0 | M68: ='2_Upravený'!M68-'1_Původní'!M68 -> -604224.2754 | N68: ='2_Upravený'!N68-'1_Původní'!N68 -> 0 | O68: ='2_Upravený'!O68-'1_Původní'!O68 -> 0 | P68: -604224.2754
B69: =IF('2_Upravený'!B69="","",'2_Upravený'!B69) -> 5106 | C69: =IF('2_Upravený'!C69="","",'2_Upravený'!C69) -> NTMC: SHAPES | D69: ='2_Upravený'!D69-'1_Původní'!D69 -> 0 | E69: ='2_Upravený'!E69-'1_Původní'!E69 -> 0 | F69: ='2_Upravený'!F69-'1_Původní'!F69 -> 0 | G69: ='2_Upravený'!G69-'1_Původní'!G69 -> 0 | H69: ='2_Upravený'!H69-'1_Původní'!H69 -> 0 | I69: ='2_Upravený'!I69-'1_Původní'!I69 -> 0 | J69: ='2_Upravený'!J69-'1_Původní'!J69 -> 0 | K69: ='2_Upravený'!K69-'1_Původní'!K69 -> 0 | L69: ='2_Upravený'!L69-'1_Původní'!L69 -> 0 | M69: ='2_Upravený'!M69-'1_Původní'!M69 -> 0 | N69: ='2_Upravený'!N69-'1_Původní'!N69 -> 0 | O69: ='2_Upravený'!O69-'1_Původní'!O69 -> -51769.6832 | P69: -51769.6832
B70: =IF('2_Upravený'!B70="","",'2_Upravený'!B70) -> 9029 | C70: =IF('2_Upravený'!C70="","",'2_Upravený'!C70) -> Paliativní péče | D70: ='2_Upravený'!D70-'1_Původní'!D70 -> 235000 | E70: ='2_Upravený'!E70-'1_Původní'!E70 -> 235000 | F70: ='2_Upravený'!F70-'1_Původní'!F70 -> 0 | G70: ='2_Upravený'!G70-'1_Původní'!G70 -> 0 | H70: ='2_Upravený'!H70-'1_Původní'!H70 -> 0 | I70: ='2_Upravený'!I70-'1_Původní'!I70 -> 0 | J70: ='2_Upravený'!J70-'1_Původní'!J70 -> 0 | K70: ='2_Upravený'!K70-'1_Původní'!K70 -> -4029007.12 | L70: ='2_Upravený'!L70-'1_Původní'!L70 -> 0 | M70: ='2_Upravený'!M70-'1_Původní'!M70 -> 0 | N70: ='2_Upravený'!N70-'1_Původní'!N70 -> 0 | O70: ='2_Upravený'!O70-'1_Původní'!O70 -> 1397640.923 | P70: -2161366.197
B71: =IF('2_Upravený'!B71="","",'2_Upravený'!B71) -> 9151 | C71: =IF('2_Upravený'!C71="","",'2_Upravený'!C71) -> MA FNOL: Běh za zdraví | D71: ='2_Upravený'!D71-'1_Původní'!D71 -> 0 | E71: ='2_Upravený'!E71-'1_Původní'!E71 -> 0 | F71: ='2_Upravený'!F71-'1_Původní'!F71 -> 0 | G71: ='2_Upravený'!G71-'1_Původní'!G71 -> 0 | H71: ='2_Upravený'!H71-'1_Původní'!H71 -> 0 | I71: ='2_Upravený'!I71-'1_Původní'!I71 -> 0 | J71: ='2_Upravený'!J71-'1_Původní'!J71 -> 0 | K71: ='2_Upravený'!K71-'1_Původní'!K71 -> -131804.8754 | L71: ='2_Upravený'!L71-'1_Původní'!L71 -> 0 | M71: ='2_Upravený'!M71-'1_Původní'!M71 -> 0 | N71: ='2_Upravený'!N71-'1_Původní'!N71 -> 0 | O71: ='2_Upravený'!O71-'1_Původní'!O71 -> 0 | P71: -131804.8754
B72: =IF('2_Upravený'!B72="","",'2_Upravený'!B72) -> 9801 | C72: =IF('2_Upravený'!C72="","",'2_Upravený'!C72) -> Krizová připravenost - MZ | D72: ='2_Upravený'!D72-'1_Původní'!D72 -> 0 | E72: ='2_Upravený'!E72-'1_Původní'!E72 -> 0 | F72: ='2_Upravený'!F72-'1_Původní'!F72 -> 0 | G72: ='2_Upravený'!G72-'1_Původní'!G72 -> 0 | H72: ='2_Upravený'!H72-'1_Původní'!H72 -> 0 | I72: ='2_Upravený'!I72-'1_Původní'!I72 -> 0 | J72: ='2_Upravený'!J72-'1_Původní'!J72 -> -551597.2541 | K72: ='2_Upravený'!K72-'1_Původní'!K72 -> 0 | L72: ='2_Upravený'!L72-'1_Původní'!L72 -> 0 | M72: ='2_Upravený'!M72-'1_Původní'!M72 -> 0 | N72: ='2_Upravený'!N72-'1_Původní'!N72 -> 0 | O72: ='2_Upravený'!O72-'1_Původní'!O72 -> 53805.2056 | P72: -497792.0485
B73: =IF('2_Upravený'!B73="","",'2_Upravený'!B73) -> 9819 | C73: =IF('2_Upravený'!C73="","",'2_Upravený'!C73) -> TranMZČR: Bezpečnost a kvalita zdravotní péče | D73: ='2_Upravený'!D73-'1_Původní'!D73 -> 0 | E73: ='2_Upravený'!E73-'1_Původní'!E73 -> 0 | F73: ='2_Upravený'!F73-'1_Původní'!F73 -> 0 | G73: ='2_Upravený'!G73-'1_Původní'!G73 -> 0 | H73: ='2_Upravený'!H73-'1_Původní'!H73 -> 0 | I73: ='2_Upravený'!I73-'1_Původní'!I73 -> 0 | J73: ='2_Upravený'!J73-'1_Původní'!J73 -> 0 | K73: ='2_Upravený'!K73-'1_Původní'!K73 -> -128836.6942 | L73: ='2_Upravený'!L73-'1_Původní'!L73 -> 0 | M73: ='2_Upravený'!M73-'1_Původní'!M73 -> 0 | N73: ='2_Upravený'!N73-'1_Původní'!N73 -> 0 | O73: ='2_Upravený'!O73-'1_Původní'!O73 -> 0 | P73: -128836.6942
B74: =IF('2_Upravený'!B74="","",'2_Upravený'!B74) -> 5110 | C74: =IF('2_Upravený'!C74="","",'2_Upravený'!C74) -> NTMC: Projekt X | D74: ='2_Upravený'!D74-'1_Původní'!D74 -> 79833.33333 | E74: ='2_Upravený'!E74-'1_Původní'!E74 -> 79833.33333 | F74: ='2_Upravený'!F74-'1_Původní'!F74 -> 79833.33333 | G74: ='2_Upravený'!G74-'1_Původní'!G74 -> 79833.33333 | H74: ='2_Upravený'!H74-'1_Původní'!H74 -> 79833.33333 | I74: ='2_Upravený'!I74-'1_Původní'!I74 -> 79833.33333 | J74: ='2_Upravený'!J74-'1_Původní'!J74 -> 79833.33333 | K74: ='2_Upravený'!K74-'1_Původní'!K74 -> 79833.33333 | L74: ='2_Upravený'!L74-'1_Původní'!L74 -> 79833.33333 | M74: ='2_Upravený'!M74-'1_Původní'!M74 -> 79833.33333 | N74: ='2_Upravený'!N74-'1_Původní'!N74 -> 79833.33333 | O74: ='2_Upravený'!O74-'1_Původní'!O74 -> 79833.33333 | P74: 958000
B75: =IF('2_Upravený'!B75="","",'2_Upravený'!B75) ->  | C75: =IF('2_Upravený'!C75="","",'2_Upravený'!C75) ->  | D75: ='2_Upravený'!D75-'1_Původní'!D75 -> 0 | E75: ='2_Upravený'!E75-'1_Původní'!E75 -> 0 | F75: ='2_Upravený'!F75-'1_Původní'!F75 -> 0 | G75: ='2_Upravený'!G75-'1_Původní'!G75 -> 0 | H75: ='2_Upravený'!H75-'1_Původní'!H75 -> 0 | I75: ='2_Upravený'!I75-'1_Původní'!I75 -> 0 | J75: ='2_Upravený'!J75-'1_Původní'!J75 -> 0 | K75: ='2_Upravený'!K75-'1_Původní'!K75 -> 0 | L75: ='2_Upravený'!L75-'1_Původní'!L75 -> 0 | M75: ='2_Upravený'!M75-'1_Původní'!M75 -> 0 | N75: ='2_Upravený'!N75-'1_Původní'!N75 -> 0 | O75: ='2_Upravený'!O75-'1_Původní'!O75 -> 0 | P75: 0
B76: =IF('2_Upravený'!B76="","",'2_Upravený'!B76) ->  | C76: =IF('2_Upravený'!C76="","",'2_Upravený'!C76) ->  | D76: ='2_Upravený'!D76-'1_Původní'!D76 -> 0 | E76: ='2_Upravený'!E76-'1_Původní'!E76 -> 0 | F76: ='2_Upravený'!F76-'1_Původní'!F76 -> 0 | G76: ='2_Upravený'!G76-'1_Původní'!G76 -> 0 | H76: ='2_Upravený'!H76-'1_Původní'!H76 -> 0 | I76: ='2_Upravený'!I76-'1_Původní'!I76 -> 0 | J76: ='2_Upravený'!J76-'1_Původní'!J76 -> 0 | K76: ='2_Upravený'!K76-'1_Původní'!K76 -> 0 | L76: ='2_Upravený'!L76-'1_Původní'!L76 -> 0 | M76: ='2_Upravený'!M76-'1_Původní'!M76 -> 0 | N76: ='2_Upravený'!N76-'1_Původní'!N76 -> 0 | O76: ='2_Upravený'!O76-'1_Původní'!O76 -> 0 | P76: 0
B77: =IF('2_Upravený'!B77="","",'2_Upravený'!B77) ->  | C77: =IF('2_Upravený'!C77="","",'2_Upravený'!C77) ->  | D77: ='2_Upravený'!D77-'1_Původní'!D77 -> 0 | E77: ='2_Upravený'!E77-'1_Původní'!E77 -> 0 | F77: ='2_Upravený'!F77-'1_Původní'!F77 -> 0 | G77: ='2_Upravený'!G77-'1_Původní'!G77 -> 0 | H77: ='2_Upravený'!H77-'1_Původní'!H77 -> 0 | I77: ='2_Upravený'!I77-'1_Původní'!I77 -> 0 | J77: ='2_Upravený'!J77-'1_Původní'!J77 -> 0 | K77: ='2_Upravený'!K77-'1_Původní'!K77 -> 0 | L77: ='2_Upravený'!L77-'1_Původní'!L77 -> 0 | M77: ='2_Upravený'!M77-'1_Původní'!M77 -> 0 | N77: ='2_Upravený'!N77-'1_Původní'!N77 -> 0 | O77: ='2_Upravený'!O77-'1_Původní'!O77 -> 0 | P77: 0
A79: 67101001 | B79: Transfery MZ na VaV - věcné náklady | D79: =SUM(D91:D91) -> 0 | E79: 0 | F79: 0 | G79: 0 | H79: 0 | I79: 0 | J79: 0 | K79: 0 | L79: 0 | M79: 0 | N79: 0 | O79: 0 | P79: 0
B80: =IF('2_Upravený'!B80="","",'2_Upravený'!B80) -> 8508 | C80: =IF('2_Upravený'!C80="","",'2_Upravený'!C80) -> Prof. MUDr. Miloš Táborský, CSc., FESC, MBA - I.IK | D80: ='2_Upravený'!D80-'1_Původní'!D80 -> 0 | E80: ='2_Upravený'!E80-'1_Původní'!E80 -> 0 | F80: ='2_Upravený'!F80-'1_Původní'!F80 -> 0 | G80: ='2_Upravený'!G80-'1_Původní'!G80 -> 0 | H80: ='2_Upravený'!H80-'1_Původní'!H80 -> 0 | I80: ='2_Upravený'!I80-'1_Původní'!I80 -> 0 | J80: ='2_Upravený'!J80-'1_Původní'!J80 -> -478607.759 | K80: ='2_Upravený'!K80-'1_Původní'!K80 -> 0 | L80: ='2_Upravený'!L80-'1_Původní'!L80 -> 0 | M80: ='2_Upravený'!M80-'1_Původní'!M80 -> 366816.1657 | N80: ='2_Upravený'!N80-'1_Původní'!N80 -> 0 | O80: ='2_Upravený'!O80-'1_Původní'!O80 -> 0 | P80: =SUM(D80:O80) -> -111791.5933
B81: =IF('2_Upravený'!B81="","",'2_Upravený'!B81) -> 8509 | C81: =IF('2_Upravený'!C81="","",'2_Upravený'!C81) -> Doc. MUDr. Daniel Šaňák, PhD. - NEUROL | D81: ='2_Upravený'!D81-'1_Původní'!D81 -> 0 | E81: ='2_Upravený'!E81-'1_Původní'!E81 -> 0 | F81: ='2_Upravený'!F81-'1_Původní'!F81 -> 0 | G81: ='2_Upravený'!G81-'1_Původní'!G81 -> 0 | H81: ='2_Upravený'!H81-'1_Původní'!H81 -> 0 | I81: ='2_Upravený'!I81-'1_Původní'!I81 -> 0 | J81: ='2_Upravený'!J81-'1_Původní'!J81 -> -974682.9545 | K81: ='2_Upravený'!K81-'1_Původní'!K81 ->  | L81: ='2_Upravený'!L81-'1_Původní'!L81 -> 0 | M81: ='2_Upravený'!M81-'1_Původní'!M81 -> 0 | N81: ='2_Upravený'!N81-'1_Původní'!N81 -> 0 | O81: ='2_Upravený'!O81-'1_Původní'!O81 -> 159077.743 | P81: =SUM(D81:O81) -> 
B82: =IF('2_Upravený'!B82="","",'2_Upravený'!B82) -> 8510 | C82: =IF('2_Upravený'!C82="","",'2_Upravený'!C82) -> Doc. MUDr. Petr Hamal, PhD. - MIKRO | D82: ='2_Upravený'!D82-'1_Původní'!D82 -> 0 | E82: ='2_Upravený'!E82-'1_Původní'!E82 -> 0 | F82: ='2_Upravený'!F82-'1_Původní'!F82 -> 0 | G82: ='2_Upravený'!G82-'1_Původní'!G82 -> 0 | H82: ='2_Upravený'!H82-'1_Původní'!H82 -> 0 | I82: ='2_Upravený'!I82-'1_Původní'!I82 -> 0 | J82: ='2_Upravený'!J82-'1_Původní'!J82 -> -403497.7822 | K82: ='2_Upravený'!K82-'1_Původní'!K82 -> 0 | L82: ='2_Upravený'!L82-'1_Původní'!L82 -> 0 | M82: ='2_Upravený'!M82-'1_Původní'!M82 -> 0 | N82: ='2_Upravený'!N82-'1_Původní'!N82 -> 0 | O82: ='2_Upravený'!O82-'1_Původní'!O82 -> 12653.3586 | P82: -390844.4236
B83: =IF('2_Upravený'!B83="","",'2_Upravený'!B83) -> 8511 | C83: =IF('2_Upravený'!C83="","",'2_Upravený'!C83) -> Prof. MUDr. Radovan Pilka, PhD. - PORGYN | D83: ='2_Upravený'!D83-'1_Původní'!D83 -> 0 | E83: ='2_Upravený'!E83-'1_Původní'!E83 -> 0 | F83: ='2_Upravený'!F83-'1_Původní'!F83 -> 0 | G83: ='2_Upravený'!G83-'1_Původní'!G83 -> -707431.1766 | H83: ='2_Upravený'!H83-'1_Původní'!H83 -> 0 | I83: ='2_Upravený'!I83-'1_Původní'!I83 -> 405000 | J83: ='2_Upravený'!J83-'1_Původní'!J83 -> 0 | K83: ='2_Upravený'!K83-'1_Původní'!K83 -> 0 | L83: ='2_Upravený'!L83-'1_Původní'!L83 -> 0 | M83: ='2_Upravený'!M83-'1_Původní'!M83 -> 0 | N83: ='2_Upravený'!N83-'1_Původní'!N83 -> 0 | O83: ='2_Upravený'!O83-'1_Původní'!O83 -> 89781.3483 | P83: -212649.8283
B84: =IF('2_Upravený'!B84="","",'2_Upravený'!B84) -> 8512 | C84: =IF('2_Upravený'!C84="","",'2_Upravený'!C84) -> Grant: MUDr. Martin Loveček, PhD. - I. CHIR | D84: ='2_Upravený'!D84-'1_Původní'!D84 -> 0 | E84: ='2_Upravený'!E84-'1_Původní'!E84 -> 0 | F84: ='2_Upravený'!F84-'1_Původní'!F84 -> 0 | G84: ='2_Upravený'!G84-'1_Původní'!G84 -> 0 | H84: ='2_Upravený'!H84-'1_Původní'!H84 -> 213000 | I84: ='2_Upravený'!I84-'1_Původní'!I84 -> -164193.9027 | J84: ='2_Upravený'!J84-'1_Původní'!J84 -> 0 | K84: ='2_Upravený'!K84-'1_Původní'!K84 -> 0 | L84: ='2_Upravený'!L84-'1_Původní'!L84 -> 0 | M84: ='2_Upravený'!M84-'1_Původní'!M84 -> 0 | N84: ='2_Upravený'!N84-'1_Původní'!N84 -> 0 | O84: ='2_Upravený'!O84-'1_Původní'!O84 -> 18985.706 | P84: 67791.8033
B85: =IF('2_Upravený'!B85="","",'2_Upravený'!B85) -> 8513 | C85: =IF('2_Upravený'!C85="","",'2_Upravený'!C85) -> Grant: MUDr. Martin Šín, PhD., FEBO - OČNÍ | D85: ='2_Upravený'!D85-'1_Původní'!D85 -> 0 | E85: ='2_Upravený'!E85-'1_Původní'!E85 -> 0 | F85: ='2_Upravený'!F85-'1_Původní'!F85 -> 0 | G85: ='2_Upravený'!G85-'1_Původní'!G85 -> 0 | H85: ='2_Upravený'!H85-'1_Původní'!H85 -> 354000 | I85: ='2_Upravený'!I85-'1_Původní'!I85 -> -534503.5557 | J85: ='2_Upravený'!J85-'1_Původní'!J85 -> 0 | K85: ='2_Upravený'!K85-'1_Původní'!K85 -> 0 | L85: ='2_Upravený'!L85-'1_Původní'!L85 -> 0 | M85: ='2_Upravený'!M85-'1_Původní'!M85 -> 0 | N85: ='2_Upravený'!N85-'1_Původní'!N85 -> 0 | O85: ='2_Upravený'!O85-'1_Původní'!O85 -> 134360.9012 | P85: -46142.6545
B86: =IF('2_Upravený'!B86="","",'2_Upravený'!B86) -> 8514 | C86: =IF('2_Upravený'!C86="","",'2_Upravený'!C86) -> Grant: Doc. MUDr. Miroslav Vaverka, CSc. - NEUROCH | D86: ='2_Upravený'!D86-'1_Původní'!D86 -> 0 | E86: ='2_Upravený'!E86-'1_Původní'!E86 -> 0 | F86: ='2_Upravený'!F86-'1_Původní'!F86 -> 0 | G86: ='2_Upravený'!G86-'1_Původní'!G86 -> 0 | H86: ='2_Upravený'!H86-'1_Původní'!H86 -> 0 | I86: ='2_Upravený'!I86-'1_Původní'!I86 -> -79588.9601 | J86: ='2_Upravený'!J86-'1_Původní'!J86 -> 0 | K86: ='2_Upravený'!K86-'1_Původní'!K86 -> 0 | L86: ='2_Upravený'!L86-'1_Původní'!L86 -> 0 | M86: ='2_Upravený'!M86-'1_Původní'!M86 -> 0 | N86: ='2_Upravený'!N86-'1_Původní'!N86 -> 0 | O86: ='2_Upravený'!O86-'1_Původní'!O86 -> 6830.8681 | P86: -72758.092
B87: =IF('2_Upravený'!B87="","",'2_Upravený'!B87) -> 8515 | C87: =IF('2_Upravený'!C87="","",'2_Upravený'!C87) -> Grant: Doc. Dr. Ing. Eva Kriegová - IMUNO | D87: ='2_Upravený'!D87-'1_Původní'!D87 -> 0 | E87: ='2_Upravený'!E87-'1_Původní'!E87 -> 0 | F87: ='2_Upravený'!F87-'1_Původní'!F87 -> 0 | G87: ='2_Upravený'!G87-'1_Původní'!G87 -> 0 | H87: ='2_Upravený'!H87-'1_Původní'!H87 -> 300000 | I87: ='2_Upravený'!I87-'1_Původní'!I87 -> 0 | J87: ='2_Upravený'!J87-'1_Původní'!J87 -> 0 | K87: ='2_Upravený'!K87-'1_Původní'!K87 -> 0 | L87: ='2_Upravený'!L87-'1_Původní'!L87 -> 0 | M87: ='2_Upravený'!M87-'1_Původní'!M87 -> 0 | N87: ='2_Upravený'!N87-'1_Původní'!N87 -> 0 | O87: ='2_Upravený'!O87-'1_Původní'!O87 -> 0 | P87: 300000
B88: =IF('2_Upravený'!B88="","",'2_Upravený'!B88) -> 8516 | C88: =IF('2_Upravený'!C88="","",'2_Upravený'!C88) -> Grant: Prof. RNDr. Tomáš Adam, PhD. - OKB | D88: ='2_Upravený'!D88-'1_Původní'!D88 -> 0 | E88: ='2_Upravený'!E88-'1_Původní'!E88 -> 0 | F88: ='2_Upravený'!F88-'1_Původní'!F88 -> 0 | G88: ='2_Upravený'!G88-'1_Původní'!G88 -> 0 | H88: ='2_Upravený'!H88-'1_Původní'!H88 -> 211000 | I88: ='2_Upravený'!I88-'1_Původní'!I88 -> 0 | J88: ='2_Upravený'!J88-'1_Původní'!J88 -> 0 | K88: ='2_Upravený'!K88-'1_Původní'!K88 -> 0 | L88: ='2_Upravený'!L88-'1_Původní'!L88 -> 0 | M88: ='2_Upravený'!M88-'1_Původní'!M88 -> 0 | N88: ='2_Upravený'!N88-'1_Původní'!N88 -> 0 | O88: ='2_Upravený'!O88-'1_Původní'!O88 -> 0 | P88: 211000
B89: =IF('2_Upravený'!B89="","",'2_Upravený'!B89) -> 8517 | C89: =IF('2_Upravený'!C89="","",'2_Upravený'!C89) -> Grant: Ing. David Kula, PhD., MBA - I.IK | D89: ='2_Upravený'!D89-'1_Původní'!D89 -> 0 | E89: ='2_Upravený'!E89-'1_Původní'!E89 -> 1071000 | F89: ='2_Upravený'!F89-'1_Původní'!F89 -> 0 | G89: ='2_Upravený'!G89-'1_Původní'!G89 -> 0 | H89: ='2_Upravený'!H89-'1_Původní'!H89 -> 0 | I89: ='2_Upravený'!I89-'1_Původní'!I89 -> 0 | J89: ='2_Upravený'!J89-'1_Původní'!J89 -> 0 | K89: ='2_Upravený'!K89-'1_Původní'!K89 -> 0 | L89: ='2_Upravený'!L89-'1_Původní'!L89 -> 0 | M89: ='2_Upravený'!M89-'1_Původní'!M89 -> 0 | N89: ='2_Upravený'!N89-'1_Původní'!N89 -> 0 | O89: ='2_Upravený'!O89-'1_Původní'!O89 -> 0 | P89: 1071000
B90: =IF('2_Upravený'!B90="","",'2_Upravený'!B90) ->  | C90: =IF('2_Upravený'!C90="","",'2_Upravený'!C90) ->  | D90: ='2_Upravený'!D90-'1_Původní'!D90 -> 0 | E90: ='2_Upravený'!E90-'1_Původní'!E90 -> 0 | F90: ='2_Upravený'!F90-'1_Původní'!F90 -> 0 | G90: ='2_Upravený'!G90-'1_Původní'!G90 -> 0 | H90: ='2_Upravený'!H90-'1_Původní'!H90 -> 0 | I90: ='2_Upravený'!I90-'1_Původní'!I90 -> 0 | J90: ='2_Upravený'!J90-'1_Původní'!J90 -> 0 | K90: ='2_Upravený'!K90-'1_Původní'!K90 -> 0 | L90: ='2_Upravený'!L90-'1_Původní'!L90 -> 0 | M90: ='2_Upravený'!M90-'1_Původní'!M90 -> 0 | N90: ='2_Upravený'!N90-'1_Původní'!N90 -> 0 | O90: ='2_Upravený'!O90-'1_Původní'!O90 -> 0 | P90: 0
B91: =IF('2_Upravený'!B91="","",'2_Upravený'!B91) ->  | C91: =IF('2_Upravený'!C91="","",'2_Upravený'!C91) ->  | D91: ='2_Upravený'!D91-'1_Původní'!D91 -> 0 | E91: ='2_Upravený'!E91-'1_Původní'!E91 -> 0 | F91: ='2_Upravený'!F91-'1_Původní'!F91 -> 0 | G91: ='2_Upravený'!G91-'1_Původní'!G91 -> 0 | H91: ='2_Upravený'!H91-'1_Původní'!H91 -> 0 | I91: ='2_Upravený'!I91-'1_Původní'!I91 -> 0 | J91: ='2_Upravený'!J91-'1_Původní'!J91 -> 0 | K91: ='2_Upravený'!K91-'1_Původní'!K91 -> 0 | L91: ='2_Upravený'!L91-'1_Původní'!L91 -> 0 | M91: ='2_Upravený'!M91-'1_Původní'!M91 -> 0 | N91: ='2_Upravený'!N91-'1_Původní'!N91 -> 0 | O91: ='2_Upravený'!O91-'1_Původní'!O91 -> 0 | P91: 0
A93: 67101002 | B93: Transfery MZ na VaV - mzdové náklady | D93: =SUM(D104:D104) -> 0 | E93: 0 | F93: 0 | G93: 0 | H93: 0 | I93: 0 | J93: 0 | K93: 0 | L93: 0 | M93: 0 | N93: 0 | O93: 0 | P93: 0
B94: =IF('2_Upravený'!B94="","",'2_Upravený'!B94) -> 8508 | C94: =IF('2_Upravený'!C94="","",'2_Upravený'!C94) -> Prof. MUDr. Miloš Táborský, CSc., FESC, MBA - I.IK | D94: ='2_Upravený'!D94-'1_Původní'!D94 -> 0 | E94: ='2_Upravený'!E94-'1_Původní'!E94 -> 0 | F94: ='2_Upravený'!F94-'1_Původní'!F94 -> 0 | G94: ='2_Upravený'!G94-'1_Původní'!G94 -> 0 | H94: ='2_Upravený'!H94-'1_Původní'!H94 -> 0 | I94: ='2_Upravený'!I94-'1_Původní'!I94 -> 0 | J94: ='2_Upravený'!J94-'1_Původní'!J94 -> -349760.7289 | K94: ='2_Upravený'!K94-'1_Původní'!K94 -> 0 | L94: ='2_Upravený'!L94-'1_Původní'!L94 -> 0 | M94: ='2_Upravený'!M94-'1_Původní'!M94 -> 0 | N94: ='2_Upravený'!N94-'1_Původní'!N94 -> 0 | O94: ='2_Upravený'!O94-'1_Původní'!O94 -> 1215.8032 | P94: =SUM(D94:O94) -> -348544.9257
B95: =IF('2_Upravený'!B95="","",'2_Upravený'!B95) -> 8509 | C95: =IF('2_Upravený'!C95="","",'2_Upravený'!C95) -> Doc. MUDr. Daniel Šaňák, PhD. - NEUROL | D95: ='2_Upravený'!D95-'1_Původní'!D95 -> 0 | E95: ='2_Upravený'!E95-'1_Původní'!E95 -> 0 | F95: ='2_Upravený'!F95-'1_Původní'!F95 -> 0 | G95: ='2_Upravený'!G95-'1_Původní'!G95 -> 0 | H95: ='2_Upravený'!H95-'1_Původní'!H95 -> 0 | I95: ='2_Upravený'!I95-'1_Původní'!I95 -> 0 | J95: ='2_Upravený'!J95-'1_Původní'!J95 -> -1276985.653 | K95: ='2_Upravený'!K95-'1_Původní'!K95 -> 0 | L95: ='2_Upravený'!L95-'1_Původní'!L95 -> 0 | M95: ='2_Upravený'!M95-'1_Původní'!M95 -> 0 | N95: ='2_Upravený'!N95-'1_Původní'!N95 -> 0 | O95: ='2_Upravený'!O95-'1_Původní'!O95 -> 84258.9289 | P95: =SUM(D95:O95) -> -1192726.724
B96: =IF('2_Upravený'!B96="","",'2_Upravený'!B96) -> 8510 | C96: =IF('2_Upravený'!C96="","",'2_Upravený'!C96) -> Doc. MUDr. Petr Hamal, PhD. - MIKRO | D96: ='2_Upravený'!D96-'1_Původní'!D96 -> 0 | E96: ='2_Upravený'!E96-'1_Původní'!E96 -> 0 | F96: ='2_Upravený'!F96-'1_Původní'!F96 -> 0 | G96: ='2_Upravený'!G96-'1_Původní'!G96 -> 0 | H96: ='2_Upravený'!H96-'1_Původní'!H96 -> 0 | I96: ='2_Upravený'!I96-'1_Původní'!I96 -> 0 | J96: ='2_Upravený'!J96-'1_Původní'!J96 -> -606183.5507 | K96: ='2_Upravený'!K96-'1_Původní'!K96 -> 0 | L96: ='2_Upravený'!L96-'1_Původní'!L96 -> 0 | M96: ='2_Upravený'!M96-'1_Původní'!M96 -> 0 | N96: ='2_Upravený'!N96-'1_Původní'!N96 -> 0 | O96: ='2_Upravený'!O96-'1_Původní'!O96 -> 675.3254 | P96: -605508.2253
B97: =IF('2_Upravený'!B97="","",'2_Upravený'!B97) -> 8511 | C97: =IF('2_Upravený'!C97="","",'2_Upravený'!C97) -> Prof. MUDr. Radovan Pilka, PhD. - PORGYN | D97: ='2_Upravený'!D97-'1_Původní'!D97 -> 0 | E97: ='2_Upravený'!E97-'1_Původní'!E97 -> 0 | F97: ='2_Upravený'!F97-'1_Původní'!F97 -> 0 | G97: ='2_Upravený'!G97-'1_Původní'!G97 -> -829784.2513 | H97: ='2_Upravený'!H97-'1_Původní'!H97 -> 0 | I97: ='2_Upravený'!I97-'1_Původní'!I97 -> 809000 | J97: ='2_Upravený'!J97-'1_Původní'!J97 -> 0 | K97: ='2_Upravený'!K97-'1_Původní'!K97 -> 0 | L97: ='2_Upravený'!L97-'1_Původní'!L97 -> 0 | M97: ='2_Upravený'!M97-'1_Původní'!M97 -> 0 | N97: ='2_Upravený'!N97-'1_Původní'!N97 -> 0 | O97: ='2_Upravený'!O97-'1_Původní'!O97 -> 48543.148 | P97: 27758.8967
B98: =IF('2_Upravený'!B98="","",'2_Upravený'!B98) -> 8512 | C98: =IF('2_Upravený'!C98="","",'2_Upravený'!C98) -> Grant: MUDr. Martin Loveček, PhD. - I. CHIR | D98: ='2_Upravený'!D98-'1_Původní'!D98 -> 0 | E98: ='2_Upravený'!E98-'1_Původní'!E98 -> 0 | F98: ='2_Upravený'!F98-'1_Původní'!F98 -> 0 | G98: ='2_Upravený'!G98-'1_Původní'!G98 -> 0 | H98: ='2_Upravený'!H98-'1_Původní'!H98 -> 502000 | I98: ='2_Upravený'!I98-'1_Původní'!I98 -> -342580.8899 | J98: ='2_Upravený'!J98-'1_Původní'!J98 -> 0 | K98: ='2_Upravený'!K98-'1_Původní'!K98 -> 0 | L98: ='2_Upravený'!L98-'1_Původní'!L98 -> 0 | M98: ='2_Upravený'!M98-'1_Původní'!M98 -> 0 | N98: ='2_Upravený'!N98-'1_Původní'!N98 -> 0 | O98: ='2_Upravený'!O98-'1_Původní'!O98 -> 2160.352 | P98: 161579.4621
B99: =IF('2_Upravený'!B99="","",'2_Upravený'!B99) -> 8513 | C99: =IF('2_Upravený'!C99="","",'2_Upravený'!C99) -> Grant: MUDr. Martin Šín, PhD., FEBO - OČNÍ | D99: ='2_Upravený'!D99-'1_Původní'!D99 -> 0 | E99: ='2_Upravený'!E99-'1_Původní'!E99 -> 0 | F99: ='2_Upravený'!F99-'1_Původní'!F99 -> 0 | G99: ='2_Upravený'!G99-'1_Původní'!G99 -> 0 | H99: ='2_Upravený'!H99-'1_Původní'!H99 -> 616000 | I99: ='2_Upravený'!I99-'1_Původní'!I99 -> -419507.7364 | J99: ='2_Upravený'!J99-'1_Původní'!J99 -> 0 | K99: ='2_Upravený'!K99-'1_Původní'!K99 -> 0 | L99: ='2_Upravený'!L99-'1_Původní'!L99 -> 0 | M99: ='2_Upravený'!M99-'1_Původní'!M99 -> 0 | N99: ='2_Upravený'!N99-'1_Původní'!N99 -> 0 | O99: ='2_Upravený'!O99-'1_Původní'!O99 -> 0 | P99: 196492.2636
B100: =IF('2_Upravený'!B100="","",'2_Upravený'!B100) -> 8514 | C100: =IF('2_Upravený'!C100="","",'2_Upravený'!C100) -> Grant: Doc. MUDr. Miroslav Vaverka, CSc. - NEUROCH | D100: ='2_Upravený'!D100-'1_Původní'!D100 -> 0 | E100: ='2_Upravený'!E100-'1_Původní'!E100 -> 0 | F100: ='2_Upravený'!F100-'1_Původní'!F100 -> 0 | G100: ='2_Upravený'!G100-'1_Původní'!G100 -> 0 | H100: ='2_Upravený'!H100-'1_Původní'!H100 -> 0 | I100: ='2_Upravený'!I100-'1_Původní'!I100 -> 91118.6554 | J100: ='2_Upravený'!J100-'1_Původní'!J100 -> 0 | K100: ='2_Upravený'!K100-'1_Původní'!K100 -> 0 | L100: ='2_Upravený'!L100-'1_Původní'!L100 -> 0 | M100: ='2_Upravený'!M100-'1_Původní'!M100 -> 0 | N100: ='2_Upravený'!N100-'1_Původní'!N100 -> 0 | O100: ='2_Upravený'!O100-'1_Původní'!O100 -> 8830.5968 | P100: 99949.2522
B101: =IF('2_Upravený'!B101="","",'2_Upravený'!B101) -> 8515 | C101: =IF('2_Upravený'!C101="","",'2_Upravený'!C101) -> Grant: Doc. Dr. Ing. Eva Kriegová - IMUNO | D101: ='2_Upravený'!D101-'1_Původní'!D101 -> 0 | E101: ='2_Upravený'!E101-'1_Původní'!E101 -> 0 | F101: ='2_Upravený'!F101-'1_Původní'!F101 -> 0 | G101: ='2_Upravený'!G101-'1_Původní'!G101 -> 0 | H101: ='2_Upravený'!H101-'1_Původní'!H101 -> 620000 | I101: ='2_Upravený'!I101-'1_Původní'!I101 -> 0 | J101: ='2_Upravený'!J101-'1_Původní'!J101 -> 0 | K101: ='2_Upravený'!K101-'1_Původní'!K101 -> 0 | L101: ='2_Upravený'!L101-'1_Původní'!L101 -> 0 | M101: ='2_Upravený'!M101-'1_Původní'!M101 -> 0 | N101: ='2_Upravený'!N101-'1_Původní'!N101 -> 0 | O101: ='2_Upravený'!O101-'1_Původní'!O101 -> 0 | P101: 620000
B102: =IF('2_Upravený'!B102="","",'2_Upravený'!B102) -> 8516 | C102: =IF('2_Upravený'!C102="","",'2_Upravený'!C102) -> Grant: Prof. RNDr. Tomáš Adam, PhD. - OKB | D102: ='2_Upravený'!D102-'1_Původní'!D102 -> 0 | E102: ='2_Upravený'!E102-'1_Původní'!E102 -> 0 | F102: ='2_Upravený'!F102-'1_Původní'!F102 -> 0 | G102: ='2_Upravený'!G102-'1_Původní'!G102 -> 0 | H102: ='2_Upravený'!H102-'1_Původní'!H102 -> 483000 | I102: ='2_Upravený'!I102-'1_Původní'!I102 -> 0 | J102: ='2_Upravený'!J102-'1_Původní'!J102 -> 0 | K102: ='2_Upravený'!K102-'1_Původní'!K102 -> 0 | L102: ='2_Upravený'!L102-'1_Původní'!L102 -> 0 | M102: ='2_Upravený'!M102-'1_Původní'!M102 -> 0 | N102: ='2_Upravený'!N102-'1_Původní'!N102 -> 0 | O102: ='2_Upravený'!O102-'1_Původní'!O102 -> 0 | P102: 483000
B103: =IF('2_Upravený'!B103="","",'2_Upravený'!B103) -> 8517 | C103: =IF('2_Upravený'!C103="","",'2_Upravený'!C103) -> Grant: Ing. David Kula, PhD., MBA - I.IK | D103: ='2_Upravený'!D103-'1_Původní'!D103 -> 0 | E103: ='2_Upravený'!E103-'1_Původní'!E103 -> 0 | F103: ='2_Upravený'!F103-'1_Původní'!F103 -> 558000 | G103: ='2_Upravený'!G103-'1_Původní'!G103 -> 0 | H103: ='2_Upravený'!H103-'1_Původní'!H103 -> 0 | I103: ='2_Upravený'!I103-'1_Původní'!I103 -> 0 | J103: ='2_Upravený'!J103-'1_Původní'!J103 -> 0 | K103: ='2_Upravený'!K103-'1_Původní'!K103 -> 0 | L103: ='2_Upravený'!L103-'1_Původní'!L103 -> 0 | M103: ='2_Upravený'!M103-'1_Původní'!M103 -> 0 | N103: ='2_Upravený'!N103-'1_Původní'!N103 -> 0 | O103: ='2_Upravený'!O103-'1_Původní'!O103 -> 0 | P103: 558000
B104: =IF('2_Upravený'!B104="","",'2_Upravený'!B104) ->  | C104: =IF('2_Upravený'!C104="","",'2_Upravený'!C104) ->  | D104: ='2_Upravený'!D104-'1_Původní'!D104 -> 0 | E104: ='2_Upravený'!E104-'1_Původní'!E104 -> 0 | F104: ='2_Upravený'!F104-'1_Původní'!F104 -> 0 | G104: ='2_Upravený'!G104-'1_Původní'!G104 -> 0 | H104: ='2_Upravený'!H104-'1_Původní'!H104 -> 0 | I104: ='2_Upravený'!I104-'1_Původní'!I104 -> 0 | J104: ='2_Upravený'!J104-'1_Původní'!J104 -> 0 | K104: ='2_Upravený'!K104-'1_Původní'!K104 -> 0 | L104: ='2_Upravený'!L104-'1_Původní'!L104 -> 0 | M104: ='2_Upravený'!M104-'1_Původní'!M104 -> 0 | N104: ='2_Upravený'!N104-'1_Původní'!N104 -> 0 | O104: ='2_Upravený'!O104-'1_Původní'!O104 -> 0 | P104: 0
A106: 67101006 | B106: Transfery MZ na rezidenční místa | D106: =SUM(D132:D132) -> 0 | E106: 0 | F106: 0 | G106: 0 | H106: 0 | I106: 0 | J106: 0 | K106: 0 | L106: 0 | M106: 0 | N106: 0 | O106: 0 | P106: 0
B107: =IF('2_Upravený'!B107="","",'2_Upravený'!B107) -> 0184 | C107: =IF('2_Upravený'!C107="","",'2_Upravený'!C107) -> 1IK: rezidenti 2019 - nelékařské obory | D107: ='2_Upravený'!D107-'1_Původní'!D107 -> 0 | E107: ='2_Upravený'!E107-'1_Původní'!E107 -> 0 | F107: ='2_Upravený'!F107-'1_Původní'!F107 -> 0 | G107: ='2_Upravený'!G107-'1_Původní'!G107 -> 0 | H107: ='2_Upravený'!H107-'1_Původní'!H107 -> 0 | I107: ='2_Upravený'!I107-'1_Původní'!I107 -> 0 | J107: ='2_Upravený'!J107-'1_Původní'!J107 -> 0 | K107: ='2_Upravený'!K107-'1_Původní'!K107 -> 0 | L107: ='2_Upravený'!L107-'1_Původní'!L107 -> 0 | M107: ='2_Upravený'!M107-'1_Původní'!M107 -> 0 | N107: ='2_Upravený'!N107-'1_Původní'!N107 -> 0 | O107: ='2_Upravený'!O107-'1_Původní'!O107 -> 0 | P107: =SUM(D107:O107) -> 0
B108: =IF('2_Upravený'!B108="","",'2_Upravený'!B108) -> 0185 | C108: =IF('2_Upravený'!C108="","",'2_Upravený'!C108) -> Rezidenti 2018 - nelékařské obory | D108: ='2_Upravený'!D108-'1_Původní'!D108 -> 0 | E108: ='2_Upravený'!E108-'1_Původní'!E108 -> 0 | F108: ='2_Upravený'!F108-'1_Původní'!F108 -> 0 | G108: ='2_Upravený'!G108-'1_Původní'!G108 -> 0 | H108: ='2_Upravený'!H108-'1_Původní'!H108 -> 0 | I108: ='2_Upravený'!I108-'1_Původní'!I108 -> 0 | J108: ='2_Upravený'!J108-'1_Původní'!J108 -> 0 | K108: ='2_Upravený'!K108-'1_Původní'!K108 -> 0 | L108: ='2_Upravený'!L108-'1_Původní'!L108 -> 0 | M108: ='2_Upravený'!M108-'1_Původní'!M108 -> 0 | N108: ='2_Upravený'!N108-'1_Původní'!N108 -> 0 | O108: ='2_Upravený'!O108-'1_Původní'!O108 -> 0 | P108: =SUM(D108:O108) -> 0
B109: =IF('2_Upravený'!B109="","",'2_Upravený'!B109) -> 0188 | C109: =IF('2_Upravený'!C109="","",'2_Upravený'!C109) -> Rezidenti 2017 - nelékařské obory | D109: ='2_Upravený'!D109-'1_Původní'!D109 -> 0 | E109: ='2_Upravený'!E109-'1_Původní'!E109 -> 0 | F109: ='2_Upravený'!F109-'1_Původní'!F109 -> 0 | G109: ='2_Upravený'!G109-'1_Původní'!G109 -> 0 | H109: ='2_Upravený'!H109-'1_Původní'!H109 -> 0 | I109: ='2_Upravený'!I109-'1_Původní'!I109 -> 0 | J109: ='2_Upravený'!J109-'1_Původní'!J109 -> 0 | K109: ='2_Upravený'!K109-'1_Původní'!K109 -> 0 | L109: ='2_Upravený'!L109-'1_Původní'!L109 -> 0 | M109: ='2_Upravený'!M109-'1_Původní'!M109 -> 0 | N109: ='2_Upravený'!N109-'1_Původní'!N109 -> 0 | O109: ='2_Upravený'!O109-'1_Původní'!O109 -> 0 | P109: 0
B110: =IF('2_Upravený'!B110="","",'2_Upravený'!B110) -> 0286 | C110: =IF('2_Upravený'!C110="","",'2_Upravený'!C110) -> Rezidenti 2018 - lékaři | D110: ='2_Upravený'!D110-'1_Původní'!D110 -> 0 | E110: ='2_Upravený'!E110-'1_Původní'!E110 -> 0 | F110: ='2_Upravený'!F110-'1_Původní'!F110 -> 0 | G110: ='2_Upravený'!G110-'1_Původní'!G110 -> 0 | H110: ='2_Upravený'!H110-'1_Původní'!H110 -> 0 | I110: ='2_Upravený'!I110-'1_Původní'!I110 -> 0 | J110: ='2_Upravený'!J110-'1_Původní'!J110 -> 0 | K110: ='2_Upravený'!K110-'1_Původní'!K110 -> 0 | L110: ='2_Upravený'!L110-'1_Původní'!L110 -> 0 | M110: ='2_Upravený'!M110-'1_Původní'!M110 -> 0 | N110: ='2_Upravený'!N110-'1_Původní'!N110 -> 0 | O110: ='2_Upravený'!O110-'1_Původní'!O110 -> 0 | P110: 0
B111: =IF('2_Upravený'!B111="","",'2_Upravený'!B111) -> 0386 | C111: =IF('2_Upravený'!C111="","",'2_Upravený'!C111) -> 3IK: Rezidenti 2019 - lékaři | D111: ='2_Upravený'!D111-'1_Původní'!D111 -> 0 | E111: ='2_Upravený'!E111-'1_Původní'!E111 -> 0 | F111: ='2_Upravený'!F111-'1_Původní'!F111 -> 0 | G111: ='2_Upravený'!G111-'1_Původní'!G111 -> 0 | H111: ='2_Upravený'!H111-'1_Původní'!H111 -> 0 | I111: ='2_Upravený'!I111-'1_Původní'!I111 -> 0 | J111: ='2_Upravený'!J111-'1_Původní'!J111 -> 0 | K111: ='2_Upravený'!K111-'1_Původní'!K111 -> 0 | L111: ='2_Upravený'!L111-'1_Původní'!L111 -> 0 | M111: ='2_Upravený'!M111-'1_Původní'!M111 -> 0 | N111: ='2_Upravený'!N111-'1_Původní'!N111 -> 0 | O111: ='2_Upravený'!O111-'1_Původní'!O111 -> 0 | P111: 0
B112: =IF('2_Upravený'!B112="","",'2_Upravený'!B112) -> 0685 | C112: =IF('2_Upravený'!C112="","",'2_Upravený'!C112) -> Rezidenti 2018 | D112: ='2_Upravený'!D112-'1_Původní'!D112 -> 0 | E112: ='2_Upravený'!E112-'1_Původní'!E112 -> 0 | F112: ='2_Upravený'!F112-'1_Původní'!F112 -> 0 | G112: ='2_Upravený'!G112-'1_Původní'!G112 -> 0 | H112: ='2_Upravený'!H112-'1_Původní'!H112 -> 0 | I112: ='2_Upravený'!I112-'1_Původní'!I112 -> 0 | J112: ='2_Upravený'!J112-'1_Původní'!J112 -> 0 | K112: ='2_Upravený'!K112-'1_Původní'!K112 -> 0 | L112: ='2_Upravený'!L112-'1_Původní'!L112 -> 0 | M112: ='2_Upravený'!M112-'1_Původní'!M112 -> 0 | N112: ='2_Upravený'!N112-'1_Původní'!N112 -> 0 | O112: ='2_Upravený'!O112-'1_Původní'!O112 -> 0 | P112: 0
B113: =IF('2_Upravený'!B113="","",'2_Upravený'!B113) -> 0688 | C113: =IF('2_Upravený'!C113="","",'2_Upravený'!C113) -> Rezidenti 2017 - nelékařské obory | D113: ='2_Upravený'!D113-'1_Původní'!D113 -> 0 | E113: ='2_Upravený'!E113-'1_Původní'!E113 -> 0 | F113: ='2_Upravený'!F113-'1_Původní'!F113 -> 0 | G113: ='2_Upravený'!G113-'1_Původní'!G113 -> 0 | H113: ='2_Upravený'!H113-'1_Původní'!H113 -> 0 | I113: ='2_Upravený'!I113-'1_Původní'!I113 -> 0 | J113: ='2_Upravený'!J113-'1_Původní'!J113 -> 0 | K113: ='2_Upravený'!K113-'1_Původní'!K113 -> 0 | L113: ='2_Upravený'!L113-'1_Původní'!L113 -> 0 | M113: ='2_Upravený'!M113-'1_Původní'!M113 -> 0 | N113: ='2_Upravený'!N113-'1_Původní'!N113 -> 0 | O113: ='2_Upravený'!O113-'1_Původní'!O113 -> 0 | P113: 0
B114: =IF('2_Upravený'!B114="","",'2_Upravený'!B114) -> 0785 | C114: =IF('2_Upravený'!C114="","",'2_Upravený'!C114) -> Rezidenti 2018 | D114: ='2_Upravený'!D114-'1_Původní'!D114 -> 0 | E114: ='2_Upravený'!E114-'1_Původní'!E114 -> 0 | F114: ='2_Upravený'!F114-'1_Původní'!F114 -> 0 | G114: ='2_Upravený'!G114-'1_Původní'!G114 -> 0 | H114: ='2_Upravený'!H114-'1_Původní'!H114 -> 0 | I114: ='2_Upravený'!I114-'1_Původní'!I114 -> 0 | J114: ='2_Upravený'!J114-'1_Původní'!J114 -> 0 | K114: ='2_Upravený'!K114-'1_Původní'!K114 -> 0 | L114: ='2_Upravený'!L114-'1_Původní'!L114 -> 0 | M114: ='2_Upravený'!M114-'1_Původní'!M114 -> 0 | N114: ='2_Upravený'!N114-'1_Původní'!N114 -> 0 | O114: ='2_Upravený'!O114-'1_Původní'!O114 -> 0 | P114: 0
B115: =IF('2_Upravený'!B115="","",'2_Upravený'!B115) -> 0788 | C115: =IF('2_Upravený'!C115="","",'2_Upravený'!C115) -> Rezidenti 2017 - nelékařské obory | D115: ='2_Upravený'!D115-'1_Původní'!D115 -> 0 | E115: ='2_Upravený'!E115-'1_Původní'!E115 -> 0 | F115: ='2_Upravený'!F115-'1_Původní'!F115 -> 0 | G115: ='2_Upravený'!G115-'1_Původní'!G115 -> 0 | H115: ='2_Upravený'!H115-'1_Původní'!H115 -> 0 | I115: ='2_Upravený'!I115-'1_Původní'!I115 -> 0 | J115: ='2_Upravený'!J115-'1_Původní'!J115 -> 0 | K115: ='2_Upravený'!K115-'1_Původní'!K115 -> 0 | L115: ='2_Upravený'!L115-'1_Původní'!L115 -> 0 | M115: ='2_Upravený'!M115-'1_Původní'!M115 -> 0 | N115: ='2_Upravený'!N115-'1_Původní'!N115 -> 0 | O115: ='2_Upravený'!O115-'1_Původní'!O115 -> 0 | P115: 0
B116: =IF('2_Upravený'!B116="","",'2_Upravený'!B116) -> 0885 | C116: =IF('2_Upravený'!C116="","",'2_Upravený'!C116) -> Rezidenti 2018 | D116: ='2_Upravený'!D116-'1_Původní'!D116 -> 0 | E116: ='2_Upravený'!E116-'1_Původní'!E116 -> 0 | F116: ='2_Upravený'!F116-'1_Původní'!F116 -> 0 | G116: ='2_Upravený'!G116-'1_Původní'!G116 -> 0 | H116: ='2_Upravený'!H116-'1_Původní'!H116 -> 0 | I116: ='2_Upravený'!I116-'1_Původní'!I116 -> 0 | J116: ='2_Upravený'!J116-'1_Původní'!J116 -> 0 | K116: ='2_Upravený'!K116-'1_Původní'!K116 -> 0 | L116: ='2_Upravený'!L116-'1_Původní'!L116 -> 0 | M116: ='2_Upravený'!M116-'1_Původní'!M116 -> 0 | N116: ='2_Upravený'!N116-'1_Původní'!N116 -> 0 | O116: ='2_Upravený'!O116-'1_Původní'!O116 -> 0 | P116: 0
B117: =IF('2_Upravený'!B117="","",'2_Upravený'!B117) -> 0886 | C117: =IF('2_Upravený'!C117="","",'2_Upravený'!C117) -> Rezidenti 2018 | D117: ='2_Upravený'!D117-'1_Původní'!D117 -> 0 | E117: ='2_Upravený'!E117-'1_Původní'!E117 -> 0 | F117: ='2_Upravený'!F117-'1_Původní'!F117 -> 0 | G117: ='2_Upravený'!G117-'1_Původní'!G117 -> 0 | H117: ='2_Upravený'!H117-'1_Původní'!H117 -> 0 | I117: ='2_Upravený'!I117-'1_Původní'!I117 -> 0 | J117: ='2_Upravený'!J117-'1_Původní'!J117 -> 0 | K117: ='2_Upravený'!K117-'1_Původní'!K117 -> 0 | L117: ='2_Upravený'!L117-'1_Původní'!L117 -> 0 | M117: ='2_Upravený'!M117-'1_Původní'!M117 -> 0 | N117: ='2_Upravený'!N117-'1_Původní'!N117 -> 0 | O117: ='2_Upravený'!O117-'1_Původní'!O117 -> 0 | P117: 0
B118: =IF('2_Upravený'!B118="","",'2_Upravený'!B118) -> 0988 | C118: =IF('2_Upravený'!C118="","",'2_Upravený'!C118) -> Rezidenti 2017 - nelékařské obory | D118: ='2_Upravený'!D118-'1_Původní'!D118 -> 0 | E118: ='2_Upravený'!E118-'1_Původní'!E118 -> 0 | F118: ='2_Upravený'!F118-'1_Původní'!F118 -> 0 | G118: ='2_Upravený'!G118-'1_Původní'!G118 -> 0 | H118: ='2_Upravený'!H118-'1_Původní'!H118 -> 0 | I118: ='2_Upravený'!I118-'1_Původní'!I118 -> 0 | J118: ='2_Upravený'!J118-'1_Původní'!J118 -> 0 | K118: ='2_Upravený'!K118-'1_Původní'!K118 -> 0 | L118: ='2_Upravený'!L118-'1_Původní'!L118 -> 0 | M118: ='2_Upravený'!M118-'1_Původní'!M118 -> 0 | N118: ='2_Upravený'!N118-'1_Původní'!N118 -> 0 | O118: ='2_Upravený'!O118-'1_Původní'!O118 -> 0 | P118: 0
B119: =IF('2_Upravený'!B119="","",'2_Upravený'!B119) -> 1083 | C119: =IF('2_Upravený'!C119="","",'2_Upravený'!C119) -> Rezidenti 2016 - ošetřovatelská a intenzivní péče | D119: ='2_Upravený'!D119-'1_Původní'!D119 -> 0 | E119: ='2_Upravený'!E119-'1_Původní'!E119 -> 0 | F119: ='2_Upravený'!F119-'1_Původní'!F119 -> 0 | G119: ='2_Upravený'!G119-'1_Původní'!G119 -> 0 | H119: ='2_Upravený'!H119-'1_Původní'!H119 -> 0 | I119: ='2_Upravený'!I119-'1_Původní'!I119 -> 0 | J119: ='2_Upravený'!J119-'1_Původní'!J119 -> 0 | K119: ='2_Upravený'!K119-'1_Původní'!K119 -> 0 | L119: ='2_Upravený'!L119-'1_Původní'!L119 -> 0 | M119: ='2_Upravený'!M119-'1_Původní'!M119 -> 0 | N119: ='2_Upravený'!N119-'1_Původní'!N119 -> 0 | O119: ='2_Upravený'!O119-'1_Původní'!O119 -> 0 | P119: 0
B120: =IF('2_Upravený'!B120="","",'2_Upravený'!B120) -> 1086 | C120: =IF('2_Upravený'!C120="","",'2_Upravený'!C120) -> DK: Rezidenti 2019 - lékaři | D120: ='2_Upravený'!D120-'1_Původní'!D120 -> 0 | E120: ='2_Upravený'!E120-'1_Původní'!E120 -> 0 | F120: ='2_Upravený'!F120-'1_Původní'!F120 -> 0 | G120: ='2_Upravený'!G120-'1_Původní'!G120 -> 0 | H120: ='2_Upravený'!H120-'1_Původní'!H120 -> 0 | I120: ='2_Upravený'!I120-'1_Původní'!I120 -> 0 | J120: ='2_Upravený'!J120-'1_Původní'!J120 -> 0 | K120: ='2_Upravený'!K120-'1_Původní'!K120 -> 0 | L120: ='2_Upravený'!L120-'1_Původní'!L120 -> 0 | M120: ='2_Upravený'!M120-'1_Původní'!M120 -> 0 | N120: ='2_Upravený'!N120-'1_Původní'!N120 -> 0 | O120: ='2_Upravený'!O120-'1_Původní'!O120 -> 0 | P120: 0
B121: =IF('2_Upravený'!B121="","",'2_Upravený'!B121) -> 1185 | C121: =IF('2_Upravený'!C121="","",'2_Upravený'!C121) -> Rezidenti 2018 | D121: ='2_Upravený'!D121-'1_Původní'!D121 -> 0 | E121: ='2_Upravený'!E121-'1_Původní'!E121 -> 0 | F121: ='2_Upravený'!F121-'1_Původní'!F121 -> 0 | G121: ='2_Upravený'!G121-'1_Původní'!G121 -> 0 | H121: ='2_Upravený'!H121-'1_Původní'!H121 -> 0 | I121: ='2_Upravený'!I121-'1_Původní'!I121 -> 0 | J121: ='2_Upravený'!J121-'1_Původní'!J121 -> 0 | K121: ='2_Upravený'!K121-'1_Původní'!K121 -> 0 | L121: ='2_Upravený'!L121-'1_Původní'!L121 -> 0 | M121: ='2_Upravený'!M121-'1_Původní'!M121 -> 0 | N121: ='2_Upravený'!N121-'1_Původní'!N121 -> 0 | O121: ='2_Upravený'!O121-'1_Původní'!O121 -> 0 | P121: 0
B122: =IF('2_Upravený'!B122="","",'2_Upravený'!B122) -> 1188 | C122: =IF('2_Upravený'!C122="","",'2_Upravený'!C122) -> Rezidenti 2017 - nelékařské obory | D122: ='2_Upravený'!D122-'1_Původní'!D122 -> 0 | E122: ='2_Upravený'!E122-'1_Původní'!E122 -> 0 | F122: ='2_Upravený'!F122-'1_Původní'!F122 -> 0 | G122: ='2_Upravený'!G122-'1_Původní'!G122 -> 0 | H122: ='2_Upravený'!H122-'1_Původní'!H122 -> 0 | I122: ='2_Upravený'!I122-'1_Původní'!I122 -> 0 | J122: ='2_Upravený'!J122-'1_Původní'!J122 -> 0 | K122: ='2_Upravený'!K122-'1_Původní'!K122 -> 0 | L122: ='2_Upravený'!L122-'1_Původní'!L122 -> 0 | M122: ='2_Upravený'!M122-'1_Původní'!M122 -> 0 | N122: ='2_Upravený'!N122-'1_Původní'!N122 -> 0 | O122: ='2_Upravený'!O122-'1_Původní'!O122 -> 0 | P122: 0
B123: =IF('2_Upravený'!B123="","",'2_Upravený'!B123) -> 1388 | C123: =IF('2_Upravený'!C123="","",'2_Upravený'!C123) -> Rezidenti 2017 - nelékařské obory | D123: ='2_Upravený'!D123-'1_Původní'!D123 -> 0 | E123: ='2_Upravený'!E123-'1_Původní'!E123 -> 0 | F123: ='2_Upravený'!F123-'1_Původní'!F123 -> 0 | G123: ='2_Upravený'!G123-'1_Původní'!G123 -> 0 | H123: ='2_Upravený'!H123-'1_Původní'!H123 -> 0 | I123: ='2_Upravený'!I123-'1_Původní'!I123 -> 0 | J123: ='2_Upravený'!J123-'1_Původní'!J123 -> 0 | K123: ='2_Upravený'!K123-'1_Původní'!K123 -> 0 | L123: ='2_Upravený'!L123-'1_Původní'!L123 -> 0 | M123: ='2_Upravený'!M123-'1_Původní'!M123 -> 0 | N123: ='2_Upravený'!N123-'1_Původní'!N123 -> 0 | O123: ='2_Upravený'!O123-'1_Původní'!O123 -> 0 | P123: 0
B124: =IF('2_Upravený'!B124="","",'2_Upravený'!B124) -> 1685 | C124: =IF('2_Upravený'!C124="","",'2_Upravený'!C124) -> Rezidenti 2018 | D124: ='2_Upravený'!D124-'1_Původní'!D124 -> 0 | E124: ='2_Upravený'!E124-'1_Původní'!E124 -> 0 | F124: ='2_Upravený'!F124-'1_Původní'!F124 -> 0 | G124: ='2_Upravený'!G124-'1_Původní'!G124 -> 0 | H124: ='2_Upravený'!H124-'1_Původní'!H124 -> 0 | I124: ='2_Upravený'!I124-'1_Původní'!I124 -> 0 | J124: ='2_Upravený'!J124-'1_Původní'!J124 -> 0 | K124: ='2_Upravený'!K124-'1_Původní'!K124 -> 0 | L124: ='2_Upravený'!L124-'1_Původní'!L124 -> 0 | M124: ='2_Upravený'!M124-'1_Původní'!M124 -> 0 | N124: ='2_Upravený'!N124-'1_Původní'!N124 -> 0 | O124: ='2_Upravený'!O124-'1_Původní'!O124 -> 0 | P124: 0
B125: =IF('2_Upravený'!B125="","",'2_Upravený'!B125) -> 1686 | C125: =IF('2_Upravený'!C125="","",'2_Upravený'!C125) -> PLIC: rezidenti 2019 - lékaři | D125: ='2_Upravený'!D125-'1_Původní'!D125 -> 0 | E125: ='2_Upravený'!E125-'1_Původní'!E125 -> 0 | F125: ='2_Upravený'!F125-'1_Původní'!F125 -> 0 | G125: ='2_Upravený'!G125-'1_Původní'!G125 -> 0 | H125: ='2_Upravený'!H125-'1_Původní'!H125 -> 0 | I125: ='2_Upravený'!I125-'1_Původní'!I125 -> 0 | J125: ='2_Upravený'!J125-'1_Původní'!J125 -> 0 | K125: ='2_Upravený'!K125-'1_Původní'!K125 -> 0 | L125: ='2_Upravený'!L125-'1_Původní'!L125 -> 0 | M125: ='2_Upravený'!M125-'1_Původní'!M125 -> 0 | N125: ='2_Upravený'!N125-'1_Původní'!N125 -> 0 | O125: ='2_Upravený'!O125-'1_Původní'!O125 -> 0 | P125: 0
B126: =IF('2_Upravený'!B126="","",'2_Upravený'!B126) -> 1886 | C126: =IF('2_Upravený'!C126="","",'2_Upravený'!C126) -> Rezidenti 2018 | D126: ='2_Upravený'!D126-'1_Původní'!D126 -> 0 | E126: ='2_Upravený'!E126-'1_Původní'!E126 -> 0 | F126: ='2_Upravený'!F126-'1_Původní'!F126 -> 0 | G126: ='2_Upravený'!G126-'1_Původní'!G126 -> 0 | H126: ='2_Upravený'!H126-'1_Původní'!H126 -> 0 | I126: ='2_Upravený'!I126-'1_Původní'!I126 -> 0 | J126: ='2_Upravený'!J126-'1_Původní'!J126 -> 0 | K126: ='2_Upravený'!K126-'1_Původní'!K126 -> 0 | L126: ='2_Upravený'!L126-'1_Původní'!L126 -> 0 | M126: ='2_Upravený'!M126-'1_Původní'!M126 -> 0 | N126: ='2_Upravený'!N126-'1_Původní'!N126 -> 0 | O126: ='2_Upravený'!O126-'1_Původní'!O126 -> 0 | P126: 0
B127: =IF('2_Upravený'!B127="","",'2_Upravený'!B127) -> 3285 | C127: =IF('2_Upravený'!C127="","",'2_Upravený'!C127) -> Rezidenti 2018 | D127: ='2_Upravený'!D127-'1_Původní'!D127 -> 0 | E127: ='2_Upravený'!E127-'1_Původní'!E127 -> 0 | F127: ='2_Upravený'!F127-'1_Původní'!F127 -> 0 | G127: ='2_Upravený'!G127-'1_Původní'!G127 -> 0 | H127: ='2_Upravený'!H127-'1_Původní'!H127 -> 0 | I127: ='2_Upravený'!I127-'1_Původní'!I127 -> 0 | J127: ='2_Upravený'!J127-'1_Původní'!J127 -> 0 | K127: ='2_Upravený'!K127-'1_Původní'!K127 -> 0 | L127: ='2_Upravený'!L127-'1_Původní'!L127 -> 0 | M127: ='2_Upravený'!M127-'1_Původní'!M127 -> 0 | N127: ='2_Upravený'!N127-'1_Původní'!N127 -> 0 | O127: ='2_Upravený'!O127-'1_Původní'!O127 -> 0 | P127: 0
B128: =IF('2_Upravený'!B128="","",'2_Upravený'!B128) -> 3485 | C128: =IF('2_Upravený'!C128="","",'2_Upravený'!C128) -> Rezidenti 2018 | D128: ='2_Upravený'!D128-'1_Původní'!D128 -> 0 | E128: ='2_Upravený'!E128-'1_Původní'!E128 -> 0 | F128: ='2_Upravený'!F128-'1_Původní'!F128 -> 0 | G128: ='2_Upravený'!G128-'1_Původní'!G128 -> 0 | H128: ='2_Upravený'!H128-'1_Původní'!H128 -> 0 | I128: ='2_Upravený'!I128-'1_Původní'!I128 -> 0 | J128: ='2_Upravený'!J128-'1_Původní'!J128 -> 0 | K128: ='2_Upravený'!K128-'1_Původní'!K128 -> 0 | L128: ='2_Upravený'!L128-'1_Původní'!L128 -> 0 | M128: ='2_Upravený'!M128-'1_Původní'!M128 -> 0 | N128: ='2_Upravený'!N128-'1_Původní'!N128 -> 0 | O128: ='2_Upravený'!O128-'1_Původní'!O128 -> 0 | P128: 0
B129: =IF('2_Upravený'!B129="","",'2_Upravený'!B129) -> 5085 | C129: =IF('2_Upravený'!C129="","",'2_Upravený'!C129) -> Rezidenti 2018 | D129: ='2_Upravený'!D129-'1_Původní'!D129 -> 0 | E129: ='2_Upravený'!E129-'1_Původní'!E129 -> 0 | F129: ='2_Upravený'!F129-'1_Původní'!F129 -> 0 | G129: ='2_Upravený'!G129-'1_Původní'!G129 -> 0 | H129: ='2_Upravený'!H129-'1_Původní'!H129 -> 0 | I129: ='2_Upravený'!I129-'1_Původní'!I129 -> 0 | J129: ='2_Upravený'!J129-'1_Původní'!J129 -> 0 | K129: ='2_Upravený'!K129-'1_Původní'!K129 -> 0 | L129: ='2_Upravený'!L129-'1_Původní'!L129 -> 0 | M129: ='2_Upravený'!M129-'1_Původní'!M129 -> 0 | N129: ='2_Upravený'!N129-'1_Původní'!N129 -> 0 | O129: ='2_Upravený'!O129-'1_Původní'!O129 -> 0 | P129: 0
B130: =IF('2_Upravený'!B130="","",'2_Upravený'!B130) -> 5684 | C130: =IF('2_Upravený'!C130="","",'2_Upravený'!C130) ->  | D130: ='2_Upravený'!D130-'1_Původní'!D130 -> 0 | E130: ='2_Upravený'!E130-'1_Původní'!E130 -> 0 | F130: ='2_Upravený'!F130-'1_Původní'!F130 -> 0 | G130: ='2_Upravený'!G130-'1_Původní'!G130 -> 0 | H130: ='2_Upravený'!H130-'1_Původní'!H130 -> 0 | I130: ='2_Upravený'!I130-'1_Původní'!I130 -> 0 | J130: ='2_Upravený'!J130-'1_Původní'!J130 -> 0 | K130: ='2_Upravený'!K130-'1_Původní'!K130 -> 0 | L130: ='2_Upravený'!L130-'1_Původní'!L130 -> 0 | M130: ='2_Upravený'!M130-'1_Původní'!M130 -> 0 | N130: ='2_Upravený'!N130-'1_Původní'!N130 -> 0 | O130: ='2_Upravený'!O130-'1_Původní'!O130 -> 0 | P130: 0
B131: =IF('2_Upravený'!B131="","",'2_Upravený'!B131) -> 6088 | C131: =IF('2_Upravený'!C131="","",'2_Upravený'!C131) -> Rezidenti 2017 - nelékařské obory | D131: ='2_Upravený'!D131-'1_Původní'!D131 -> 0 | E131: ='2_Upravený'!E131-'1_Původní'!E131 -> 0 | F131: ='2_Upravený'!F131-'1_Původní'!F131 -> 0 | G131: ='2_Upravený'!G131-'1_Původní'!G131 -> 0 | H131: ='2_Upravený'!H131-'1_Původní'!H131 -> 0 | I131: ='2_Upravený'!I131-'1_Původní'!I131 -> 0 | J131: ='2_Upravený'!J131-'1_Původní'!J131 -> 0 | K131: ='2_Upravený'!K131-'1_Původní'!K131 -> 0 | L131: ='2_Upravený'!L131-'1_Původní'!L131 -> 0 | M131: ='2_Upravený'!M131-'1_Původní'!M131 -> 0 | N131: ='2_Upravený'!N131-'1_Původní'!N131 -> 0 | O131: ='2_Upravený'!O131-'1_Původní'!O131 -> 0 | P131: 0
B132: =IF('2_Upravený'!B132="","",'2_Upravený'!B132) ->  | C132: =IF('2_Upravený'!C132="","",'2_Upravený'!C132) ->  | D132: ='2_Upravený'!D132-'1_Původní'!D132 -> 0 | E132: ='2_Upravený'!E132-'1_Původní'!E132 -> 0 | F132: ='2_Upravený'!F132-'1_Původní'!F132 -> 0 | G132: ='2_Upravený'!G132-'1_Původní'!G132 -> 0 | H132: ='2_Upravený'!H132-'1_Původní'!H132 -> 0 | I132: ='2_Upravený'!I132-'1_Původní'!I132 -> 0 | J132: ='2_Upravený'!J132-'1_Původní'!J132 -> 0 | K132: ='2_Upravený'!K132-'1_Původní'!K132 -> 0 | L132: ='2_Upravený'!L132-'1_Původní'!L132 -> 0 | M132: ='2_Upravený'!M132-'1_Původní'!M132 -> 0 | N132: ='2_Upravený'!N132-'1_Původní'!N132 -> 0 | O132: ='2_Upravený'!O132-'1_Původní'!O132 -> 0 | P132: 0
A134: 67101010 | B134: Transfery MZ - RIV (institucionální podpora) | D134: =SUM(D163:D163) -> 0 | E134: 0 | F134: 0 | G134: 0 | H134: 0 | I134: 0 | J134: 0 | K134: 0 | L134: 0 | M134: 0 | N134: 0 | O134: 0 | P134: 0
B135: =IF('2_Upravený'!B135="","",'2_Upravený'!B135) -> 8711 | C135: =IF('2_Upravený'!C135="","",'2_Upravený'!C135) -> RIV: doc. Mgr. Jan Bouchal, PhD. | D135: ='2_Upravený'!D135-'1_Původní'!D135 -> 0 | E135: ='2_Upravený'!E135-'1_Původní'!E135 -> 0 | F135: ='2_Upravený'!F135-'1_Původní'!F135 -> 0 | G135: ='2_Upravený'!G135-'1_Původní'!G135 -> -289763.6982 | H135: ='2_Upravený'!H135-'1_Původní'!H135 -> 0 | I135: ='2_Upravený'!I135-'1_Původní'!I135 -> 0 | J135: ='2_Upravený'!J135-'1_Původní'!J135 -> 0 | K135: ='2_Upravený'!K135-'1_Původní'!K135 -> 0 | L135: ='2_Upravený'!L135-'1_Původní'!L135 -> 0 | M135: ='2_Upravený'!M135-'1_Původní'!M135 -> 0 | N135: ='2_Upravený'!N135-'1_Původní'!N135 -> 0 | O135: ='2_Upravený'!O135-'1_Původní'!O135 -> 0 | P135: =SUM(D135:O135) -> -289763.6982
B136: =IF('2_Upravený'!B136="","",'2_Upravený'!B136) -> 8712 | C136: =IF('2_Upravený'!C136="","",'2_Upravený'!C136) -> RIV: prof. MUDr. Jiří Gallo, PhD. | D136: ='2_Upravený'!D136-'1_Původní'!D136 -> 0 | E136: ='2_Upravený'!E136-'1_Původní'!E136 -> 0 | F136: ='2_Upravený'!F136-'1_Původní'!F136 -> 0 | G136: ='2_Upravený'!G136-'1_Původní'!G136 -> -289763.6982 | H136: ='2_Upravený'!H136-'1_Původní'!H136 -> 0 | I136: ='2_Upravený'!I136-'1_Původní'!I136 -> 0 | J136: ='2_Upravený'!J136-'1_Původní'!J136 -> 0 | K136: ='2_Upravený'!K136-'1_Původní'!K136 -> 0 | L136: ='2_Upravený'!L136-'1_Původní'!L136 -> 0 | M136: ='2_Upravený'!M136-'1_Původní'!M136 -> 0 | N136: ='2_Upravený'!N136-'1_Původní'!N136 -> 0 | O136: ='2_Upravený'!O136-'1_Původní'!O136 -> 35634.3167 | P136: =SUM(D136:O136) -> -254129.3815
B137: =IF('2_Upravený'!B137="","",'2_Upravený'!B137) -> 8713 | C137: =IF('2_Upravený'!C137="","",'2_Upravený'!C137) -> RIV: MUDr. Matěj Halaj | D137: ='2_Upravený'!D137-'1_Původní'!D137 -> 0 | E137: ='2_Upravený'!E137-'1_Původní'!E137 -> 0 | F137: ='2_Upravený'!F137-'1_Původní'!F137 -> 0 | G137: ='2_Upravený'!G137-'1_Původní'!G137 -> -289763.6982 | H137: ='2_Upravený'!H137-'1_Původní'!H137 -> 0 | I137: ='2_Upravený'!I137-'1_Původní'!I137 -> 0 | J137: ='2_Upravený'!J137-'1_Původní'!J137 -> 0 | K137: ='2_Upravený'!K137-'1_Původní'!K137 -> 0 | L137: ='2_Upravený'!L137-'1_Původní'!L137 -> 0 | M137: ='2_Upravený'!M137-'1_Původní'!M137 -> 0 | N137: ='2_Upravený'!N137-'1_Původní'!N137 -> 0 | O137: ='2_Upravený'!O137-'1_Původní'!O137 -> 6261.5153 | P137: -283502.1829
B138: =IF('2_Upravený'!B138="","",'2_Upravený'!B138) -> 8715 | C138: =IF('2_Upravený'!C138="","",'2_Upravený'!C138) -> RIV: MUDr. Karel Huml | D138: ='2_Upravený'!D138-'1_Původní'!D138 -> 0 | E138: ='2_Upravený'!E138-'1_Původní'!E138 -> 0 | F138: ='2_Upravený'!F138-'1_Původní'!F138 -> 0 | G138: ='2_Upravený'!G138-'1_Původní'!G138 -> -234645.5473 | H138: ='2_Upravený'!H138-'1_Původní'!H138 -> 0 | I138: ='2_Upravený'!I138-'1_Původní'!I138 -> 0 | J138: ='2_Upravený'!J138-'1_Původní'!J138 -> 0 | K138: ='2_Upravený'!K138-'1_Původní'!K138 -> 0 | L138: ='2_Upravený'!L138-'1_Původní'!L138 -> 0 | M138: ='2_Upravený'!M138-'1_Původní'!M138 -> 0 | N138: ='2_Upravený'!N138-'1_Původní'!N138 -> 0 | O138: ='2_Upravený'!O138-'1_Původní'!O138 -> 29128.9594 | P138: -205516.5879
B139: =IF('2_Upravený'!B139="","",'2_Upravený'!B139) -> 8716 | C139: =IF('2_Upravený'!C139="","",'2_Upravený'!C139) -> RIV: MUDr. Beáta Hutyrová, PhD. | D139: ='2_Upravený'!D139-'1_Původní'!D139 -> 0 | E139: ='2_Upravený'!E139-'1_Původní'!E139 -> 0 | F139: ='2_Upravený'!F139-'1_Původní'!F139 -> 0 | G139: ='2_Upravený'!G139-'1_Původní'!G139 -> 10236.3018 | H139: ='2_Upravený'!H139-'1_Původní'!H139 -> 0 | I139: ='2_Upravený'!I139-'1_Původní'!I139 -> 0 | J139: ='2_Upravený'!J139-'1_Původní'!J139 -> 0 | K139: ='2_Upravený'!K139-'1_Původní'!K139 -> 0 | L139: ='2_Upravený'!L139-'1_Původní'!L139 -> 0 | M139: ='2_Upravený'!M139-'1_Původní'!M139 -> -34771.6438 | N139: ='2_Upravený'!N139-'1_Původní'!N139 -> 0 | O139: ='2_Upravený'!O139-'1_Původní'!O139 -> 62045.3621 | P139: 37510.0201
B140: =IF('2_Upravený'!B140="","",'2_Upravený'!B140) -> 8719 | C140: =IF('2_Upravený'!C140="","",'2_Upravený'!C140) -> RIV: MUDr. Hana Klosová, PhD. | D140: ='2_Upravený'!D140-'1_Původní'!D140 -> 0 | E140: ='2_Upravený'!E140-'1_Původní'!E140 -> 0 | F140: ='2_Upravený'!F140-'1_Původní'!F140 -> 0 | G140: ='2_Upravený'!G140-'1_Původní'!G140 -> 102960.6852 | H140: ='2_Upravený'!H140-'1_Původní'!H140 -> 0 | I140: ='2_Upravený'!I140-'1_Původní'!I140 -> 0 | J140: ='2_Upravený'!J140-'1_Původní'!J140 -> 0 | K140: ='2_Upravený'!K140-'1_Původní'!K140 -> 0 | L140: ='2_Upravený'!L140-'1_Původní'!L140 -> 0 | M140: ='2_Upravený'!M140-'1_Původní'!M140 -> 0 | N140: ='2_Upravený'!N140-'1_Původní'!N140 -> 0 | O140: ='2_Upravený'!O140-'1_Původní'!O140 -> 30571.2988 | P140: 133531.984
B141: =IF('2_Upravený'!B141="","",'2_Upravený'!B141) -> 8720 | C141: =IF('2_Upravený'!C141="","",'2_Upravený'!C141) -> RIV: MUDr. Petr Kolář, PhD. | D141: ='2_Upravený'!D141-'1_Původní'!D141 -> 0 | E141: ='2_Upravený'!E141-'1_Původní'!E141 -> 0 | F141: ='2_Upravený'!F141-'1_Původní'!F141 -> 0 | G141: ='2_Upravený'!G141-'1_Původní'!G141 -> 10236.3018 | H141: ='2_Upravený'!H141-'1_Původní'!H141 -> 0 | I141: ='2_Upravený'!I141-'1_Původní'!I141 -> 0 | J141: ='2_Upravený'!J141-'1_Původní'!J141 -> 0 | K141: ='2_Upravený'!K141-'1_Původní'!K141 -> 0 | L141: ='2_Upravený'!L141-'1_Původní'!L141 -> 0 | M141: ='2_Upravený'!M141-'1_Původní'!M141 -> 0 | N141: ='2_Upravený'!N141-'1_Původní'!N141 -> 0 | O141: ='2_Upravený'!O141-'1_Původní'!O141 -> 9231.3151 | P141: 19467.6169
B142: =IF('2_Upravený'!B142="","",'2_Upravený'!B142) -> 8721 | C142: =IF('2_Upravený'!C142="","",'2_Upravený'!C142) -> RIV: MUDr. Andrea Smržová | D142: ='2_Upravený'!D142-'1_Původní'!D142 -> 0 | E142: ='2_Upravený'!E142-'1_Původní'!E142 -> 0 | F142: ='2_Upravený'!F142-'1_Původní'!F142 -> 0 | G142: ='2_Upravený'!G142-'1_Původní'!G142 -> 10236.3018 | H142: ='2_Upravený'!H142-'1_Původní'!H142 -> 0 | I142: ='2_Upravený'!I142-'1_Původní'!I142 -> 0 | J142: ='2_Upravený'!J142-'1_Původní'!J142 -> 0 | K142: ='2_Upravený'!K142-'1_Původní'!K142 -> 0 | L142: ='2_Upravený'!L142-'1_Původní'!L142 -> 0 | M142: ='2_Upravený'!M142-'1_Původní'!M142 -> 0 | N142: ='2_Upravený'!N142-'1_Původní'!N142 -> 0 | O142: ='2_Upravený'!O142-'1_Původní'!O142 -> 4007.2581 | P142: 14243.5599
B143: =IF('2_Upravený'!B143="","",'2_Upravený'!B143) -> 8724 | C143: =IF('2_Upravený'!C143="","",'2_Upravený'!C143) -> RIV: MUDr. Vladimír Študent, PhD. | D143: ='2_Upravený'!D143-'1_Původní'!D143 -> 0 | E143: ='2_Upravený'!E143-'1_Původní'!E143 -> 0 | F143: ='2_Upravený'!F143-'1_Původní'!F143 -> 0 | G143: ='2_Upravený'!G143-'1_Původní'!G143 -> 76302.425 | H143: ='2_Upravený'!H143-'1_Původní'!H143 -> 0 | I143: ='2_Upravený'!I143-'1_Původní'!I143 -> 0 | J143: ='2_Upravený'!J143-'1_Původní'!J143 -> 0 | K143: ='2_Upravený'!K143-'1_Původní'!K143 -> 0 | L143: ='2_Upravený'!L143-'1_Původní'!L143 -> 0 | M143: ='2_Upravený'!M143-'1_Původní'!M143 -> 0 | N143: ='2_Upravený'!N143-'1_Původní'!N143 -> 0 | O143: ='2_Upravený'!O143-'1_Původní'!O143 -> 32572.5691 | P143: 108874.9941
B144: =IF('2_Upravený'!B144="","",'2_Upravený'!B144) -> 8725 | C144: =IF('2_Upravený'!C144="","",'2_Upravený'!C144) -> RIV: MUDr. Helena Urbánková | D144: ='2_Upravený'!D144-'1_Původní'!D144 -> 0 | E144: ='2_Upravený'!E144-'1_Původní'!E144 -> 0 | F144: ='2_Upravený'!F144-'1_Původní'!F144 -> 0 | G144: ='2_Upravený'!G144-'1_Původní'!G144 -> 10236.3018 | H144: ='2_Upravený'!H144-'1_Původní'!H144 -> 0 | I144: ='2_Upravený'!I144-'1_Původní'!I144 -> 0 | J144: ='2_Upravený'!J144-'1_Původní'!J144 -> 0 | K144: ='2_Upravený'!K144-'1_Původní'!K144 -> 0 | L144: ='2_Upravený'!L144-'1_Původní'!L144 -> 0 | M144: ='2_Upravený'!M144-'1_Původní'!M144 -> 0 | N144: ='2_Upravený'!N144-'1_Původní'!N144 -> 0 | O144: ='2_Upravený'!O144-'1_Původní'!O144 -> 40605.607 | P144: 50841.9088
B145: =IF('2_Upravený'!B145="","",'2_Upravený'!B145) -> 8726 | C145: =IF('2_Upravený'!C145="","",'2_Upravený'!C145) -> RIV: Mgr. Petr Vrtěl | D145: ='2_Upravený'!D145-'1_Původní'!D145 -> 0 | E145: ='2_Upravený'!E145-'1_Původní'!E145 -> 0 | F145: ='2_Upravený'!F145-'1_Původní'!F145 -> 0 | G145: ='2_Upravený'!G145-'1_Původní'!G145 -> 68189.0414 | H145: ='2_Upravený'!H145-'1_Původní'!H145 -> 0 | I145: ='2_Upravený'!I145-'1_Původní'!I145 -> 0 | J145: ='2_Upravený'!J145-'1_Původní'!J145 -> 0 | K145: ='2_Upravený'!K145-'1_Původní'!K145 -> 0 | L145: ='2_Upravený'!L145-'1_Původní'!L145 -> 0 | M145: ='2_Upravený'!M145-'1_Původní'!M145 -> 0 | N145: ='2_Upravený'!N145-'1_Původní'!N145 -> 0 | O145: ='2_Upravený'!O145-'1_Původní'!O145 -> 0 | P145: 68189.0414
B146: =IF('2_Upravený'!B146="","",'2_Upravený'!B146) -> 8753 | C146: =IF('2_Upravený'!C146="","",'2_Upravený'!C146) -> RIV: MUDr. Richard Salzmann, Ph.D. | D146: ='2_Upravený'!D146-'1_Původní'!D146 -> 0 | E146: ='2_Upravený'!E146-'1_Původní'!E146 -> 0 | F146: ='2_Upravený'!F146-'1_Původní'!F146 -> 0 | G146: ='2_Upravený'!G146-'1_Původní'!G146 -> -47716.4379 | H146: ='2_Upravený'!H146-'1_Původní'!H146 -> 0 | I146: ='2_Upravený'!I146-'1_Původní'!I146 -> 0 | J146: ='2_Upravený'!J146-'1_Původní'!J146 -> 0 | K146: ='2_Upravený'!K146-'1_Původní'!K146 -> 0 | L146: ='2_Upravený'!L146-'1_Původní'!L146 -> 0 | M146: ='2_Upravený'!M146-'1_Původní'!M146 -> 0 | N146: ='2_Upravený'!N146-'1_Původní'!N146 -> 0 | O146: ='2_Upravený'!O146-'1_Původní'!O146 -> 1594.8594 | P146: -46121.5785
B147: =IF('2_Upravený'!B147="","",'2_Upravený'!B147) -> 8760 | C147: =IF('2_Upravený'!C147="","",'2_Upravený'!C147) -> RIV: RNDr. Martin Novák, Ph.D. | D147: ='2_Upravený'!D147-'1_Původní'!D147 -> 0 | E147: ='2_Upravený'!E147-'1_Původní'!E147 -> 0 | F147: ='2_Upravený'!F147-'1_Původní'!F147 -> 0 | G147: ='2_Upravený'!G147-'1_Původní'!G147 -> 56598.4935 | H147: ='2_Upravený'!H147-'1_Původní'!H147 -> 0 | I147: ='2_Upravený'!I147-'1_Původní'!I147 -> 0 | J147: ='2_Upravený'!J147-'1_Původní'!J147 -> 0 | K147: ='2_Upravený'!K147-'1_Původní'!K147 -> 0 | L147: ='2_Upravený'!L147-'1_Původní'!L147 -> 0 | M147: ='2_Upravený'!M147-'1_Původní'!M147 -> 0 | N147: ='2_Upravený'!N147-'1_Původní'!N147 -> 0 | O147: ='2_Upravený'!O147-'1_Původní'!O147 -> 36412.3438 | P147: 93010.8373
B148: =IF('2_Upravený'!B148="","",'2_Upravený'!B148) -> 8762 | C148: =IF('2_Upravený'!C148="","",'2_Upravený'!C148) -> RIV - Doc. MUDr. David Karásek, Ph. D. | D148: ='2_Upravený'!D148-'1_Původní'!D148 -> 0 | E148: ='2_Upravený'!E148-'1_Původní'!E148 -> 0 | F148: ='2_Upravený'!F148-'1_Původní'!F148 -> 0 | G148: ='2_Upravený'!G148-'1_Původní'!G148 -> -47716.4379 | H148: ='2_Upravený'!H148-'1_Původní'!H148 -> 0 | I148: ='2_Upravený'!I148-'1_Původní'!I148 -> 0 | J148: ='2_Upravený'!J148-'1_Původní'!J148 -> 0 | K148: ='2_Upravený'!K148-'1_Původní'!K148 -> 0 | L148: ='2_Upravený'!L148-'1_Původní'!L148 -> 0 | M148: ='2_Upravený'!M148-'1_Původní'!M148 -> 0 | N148: ='2_Upravený'!N148-'1_Původní'!N148 -> 0 | O148: ='2_Upravený'!O148-'1_Původní'!O148 -> 11885.3535 | P148: -35831.0844
B149: =IF('2_Upravený'!B149="","",'2_Upravený'!B149) -> 8777 | C149: =IF('2_Upravený'!C149="","",'2_Upravený'!C149) -> RIV: Prof. MUDr. Radovan Pilka, Ph.D. | D149: ='2_Upravený'!D149-'1_Původní'!D149 -> 0 | E149: ='2_Upravený'!E149-'1_Původní'!E149 -> 0 | F149: ='2_Upravený'!F149-'1_Původní'!F149 -> 0 | G149: ='2_Upravený'!G149-'1_Původní'!G149 -> 10236.3018 | H149: ='2_Upravený'!H149-'1_Původní'!H149 -> 0 | I149: ='2_Upravený'!I149-'1_Původní'!I149 -> 0 | J149: ='2_Upravený'!J149-'1_Původní'!J149 -> 0 | K149: ='2_Upravený'!K149-'1_Původní'!K149 -> 0 | L149: ='2_Upravený'!L149-'1_Původní'!L149 -> 0 | M149: ='2_Upravený'!M149-'1_Původní'!M149 -> 0 | N149: ='2_Upravený'!N149-'1_Původní'!N149 -> 0 | O149: ='2_Upravený'!O149-'1_Původní'!O149 -> 8056.5551 | P149: 18292.8569
B150: =IF('2_Upravený'!B150="","",'2_Upravený'!B150) -> 8780 | C150: =IF('2_Upravený'!C150="","",'2_Upravený'!C150) -> RIV - MUDr. Eva Karásková | D150: ='2_Upravený'!D150-'1_Původní'!D150 -> 0 | E150: ='2_Upravený'!E150-'1_Původní'!E150 -> 0 | F150: ='2_Upravený'!F150-'1_Původní'!F150 -> 0 | G150: ='2_Upravený'!G150-'1_Původní'!G150 -> -47716.4379 | H150: ='2_Upravený'!H150-'1_Původní'!H150 -> 0 | I150: ='2_Upravený'!I150-'1_Původní'!I150 -> 0 | J150: ='2_Upravený'!J150-'1_Původní'!J150 -> 0 | K150: ='2_Upravený'!K150-'1_Původní'!K150 -> 0 | L150: ='2_Upravený'!L150-'1_Původní'!L150 -> 0 | M150: ='2_Upravený'!M150-'1_Původní'!M150 -> 0 | N150: ='2_Upravený'!N150-'1_Původní'!N150 -> 0 | O150: ='2_Upravený'!O150-'1_Původní'!O150 -> 1685.4743 | P150: -46030.9636
B151: =IF('2_Upravený'!B151="","",'2_Upravený'!B151) -> 8782 | C151: =IF('2_Upravený'!C151="","",'2_Upravený'!C151) -> RIV - RNDr. Pavlína Čapková, Ph. D. | D151: ='2_Upravený'!D151-'1_Původní'!D151 -> 0 | E151: ='2_Upravený'!E151-'1_Původní'!E151 -> 0 | F151: ='2_Upravený'!F151-'1_Původní'!F151 -> 0 | G151: ='2_Upravený'!G151-'1_Původní'!G151 -> 10236.3018 | H151: ='2_Upravený'!H151-'1_Původní'!H151 -> 0 | I151: ='2_Upravený'!I151-'1_Původní'!I151 -> 0 | J151: ='2_Upravený'!J151-'1_Původní'!J151 -> 0 | K151: ='2_Upravený'!K151-'1_Původní'!K151 -> 0 | L151: ='2_Upravený'!L151-'1_Původní'!L151 -> 0 | M151: ='2_Upravený'!M151-'1_Původní'!M151 -> 0 | N151: ='2_Upravený'!N151-'1_Původní'!N151 -> 0 | O151: ='2_Upravený'!O151-'1_Původní'!O151 -> 0 | P151: 10236.3018
B152: =IF('2_Upravený'!B152="","",'2_Upravený'!B152) -> 8785 | C152: =IF('2_Upravený'!C152="","",'2_Upravený'!C152) -> RIV - Doc. MUDr. Martin Hutyra, Ph. D. | D152: ='2_Upravený'!D152-'1_Původní'!D152 -> 0 | E152: ='2_Upravený'!E152-'1_Původní'!E152 -> 0 | F152: ='2_Upravený'!F152-'1_Původní'!F152 -> 0 | G152: ='2_Upravený'!G152-'1_Původní'!G152 -> -47716.4379 | H152: ='2_Upravený'!H152-'1_Původní'!H152 -> 0 | I152: ='2_Upravený'!I152-'1_Původní'!I152 -> 0 | J152: ='2_Upravený'!J152-'1_Původní'!J152 -> 0 | K152: ='2_Upravený'!K152-'1_Původní'!K152 -> 0 | L152: ='2_Upravený'!L152-'1_Původní'!L152 -> 0 | M152: ='2_Upravený'!M152-'1_Původní'!M152 -> 0 | N152: ='2_Upravený'!N152-'1_Původní'!N152 -> 0 | O152: ='2_Upravený'!O152-'1_Původní'!O152 -> 74911.8555 | P152: 27195.4176
B153: =IF('2_Upravený'!B153="","",'2_Upravený'!B153) -> 8789 | C153: =IF('2_Upravený'!C153="","",'2_Upravený'!C153) -> RIV - Doc. MUDr. Kateřina Menšíková, Ph. D. - MEX | D153: ='2_Upravený'!D153-'1_Původní'!D153 -> 0 | E153: ='2_Upravený'!E153-'1_Původní'!E153 -> 0 | F153: ='2_Upravený'!F153-'1_Původní'!F153 -> 0 | G153: ='2_Upravený'!G153-'1_Původní'!G153 -> -695432.8757 | H153: ='2_Upravený'!H153-'1_Původní'!H153 -> 0 | I153: ='2_Upravený'!I153-'1_Původní'!I153 -> 0 | J153: ='2_Upravený'!J153-'1_Původní'!J153 -> 0 | K153: ='2_Upravený'!K153-'1_Původní'!K153 -> 0 | L153: ='2_Upravený'!L153-'1_Původní'!L153 -> 0 | M153: ='2_Upravený'!M153-'1_Původní'!M153 -> 0 | N153: ='2_Upravený'!N153-'1_Původní'!N153 -> 0 | O153: ='2_Upravený'!O153-'1_Původní'!O153 -> 7245.4254 | P153: -688187.4503
B154: =IF('2_Upravený'!B154="","",'2_Upravený'!B154) -> 8791 | C154: =IF('2_Upravený'!C154="","",'2_Upravený'!C154) -> RIV - Doc. Mgr. Luděk Slavík, Ph. D. - MEX | D154: ='2_Upravený'!D154-'1_Původní'!D154 -> 0 | E154: ='2_Upravený'!E154-'1_Původní'!E154 -> 0 | F154: ='2_Upravený'!F154-'1_Původní'!F154 -> 0 | G154: ='2_Upravený'!G154-'1_Původní'!G154 -> -718613.9716 | H154: ='2_Upravený'!H154-'1_Původní'!H154 -> 0 | I154: ='2_Upravený'!I154-'1_Původní'!I154 -> 0 | J154: ='2_Upravený'!J154-'1_Původní'!J154 -> 0 | K154: ='2_Upravený'!K154-'1_Původní'!K154 -> 0 | L154: ='2_Upravený'!L154-'1_Původní'!L154 -> 0 | M154: ='2_Upravený'!M154-'1_Původní'!M154 -> 0 | N154: ='2_Upravený'!N154-'1_Původní'!N154 -> 0 | O154: ='2_Upravený'!O154-'1_Původní'!O154 -> 1572.1303 | P154: -717041.8413
B155: =IF('2_Upravený'!B155="","",'2_Upravený'!B155) -> 8792 | C155: =IF('2_Upravený'!C155="","",'2_Upravený'!C155) -> RIV - Prof. MUDr. Jiří Gallo, Ph. D. - MEX | D155: ='2_Upravený'!D155-'1_Původní'!D155 -> 0 | E155: ='2_Upravený'!E155-'1_Původní'!E155 -> 0 | F155: ='2_Upravený'!F155-'1_Původní'!F155 -> 0 | G155: ='2_Upravený'!G155-'1_Původní'!G155 -> -695432.8757 | H155: ='2_Upravený'!H155-'1_Původní'!H155 -> 0 | I155: ='2_Upravený'!I155-'1_Původní'!I155 -> 0 | J155: ='2_Upravený'!J155-'1_Původní'!J155 -> 0 | K155: ='2_Upravený'!K155-'1_Původní'!K155 -> 0 | L155: ='2_Upravený'!L155-'1_Původní'!L155 -> 0 | M155: ='2_Upravený'!M155-'1_Původní'!M155 -> 0 | N155: ='2_Upravený'!N155-'1_Původní'!N155 -> 0 | O155: ='2_Upravený'!O155-'1_Původní'!O155 -> 2299.5995 | P155: -693133.2762
B156: =IF('2_Upravený'!B156="","",'2_Upravený'!B156) -> 8793 | C156: =IF('2_Upravený'!C156="","",'2_Upravený'!C156) -> RIV: prof. MUDr. Milan Raška, PhD. - MEX | D156: ='2_Upravený'!D156-'1_Původní'!D156 -> 0 | E156: ='2_Upravený'!E156-'1_Původní'!E156 -> 0 | F156: ='2_Upravený'!F156-'1_Původní'!F156 -> 0 | G156: ='2_Upravený'!G156-'1_Původní'!G156 -> -657184.0675 | H156: ='2_Upravený'!H156-'1_Původní'!H156 -> 0 | I156: ='2_Upravený'!I156-'1_Původní'!I156 -> 0 | J156: ='2_Upravený'!J156-'1_Původní'!J156 -> 0 | K156: ='2_Upravený'!K156-'1_Původní'!K156 -> 0 | L156: ='2_Upravený'!L156-'1_Původní'!L156 -> 0 | M156: ='2_Upravený'!M156-'1_Původní'!M156 -> 34771.6438 | N156: ='2_Upravený'!N156-'1_Původní'!N156 -> 0 | O156: ='2_Upravený'!O156-'1_Původní'!O156 -> 44.1484 | P156: -622368.2753
B157: =IF('2_Upravený'!B157="","",'2_Upravený'!B157) -> 8794 | C157: =IF('2_Upravený'!C157="","",'2_Upravený'!C157) -> RIV: MUDr. Martin Loveček, PhD. - MEX | D157: ='2_Upravený'!D157-'1_Původní'!D157 -> 0 | E157: ='2_Upravený'!E157-'1_Původní'!E157 -> 0 | F157: ='2_Upravený'!F157-'1_Původní'!F157 -> 0 | G157: ='2_Upravený'!G157-'1_Původní'!G157 -> 287055.2059 | H157: ='2_Upravený'!H157-'1_Původní'!H157 -> 0 | I157: ='2_Upravený'!I157-'1_Původní'!I157 -> 0 | J157: ='2_Upravený'!J157-'1_Původní'!J157 -> 0 | K157: ='2_Upravený'!K157-'1_Původní'!K157 -> 0 | L157: ='2_Upravený'!L157-'1_Původní'!L157 -> 0 | M157: ='2_Upravený'!M157-'1_Původní'!M157 -> 0 | N157: ='2_Upravený'!N157-'1_Původní'!N157 -> 0 | O157: ='2_Upravený'!O157-'1_Původní'!O157 -> 13176.5753 | P157: 300231.7812
B158: =IF('2_Upravený'!B158="","",'2_Upravený'!B158) -> 8795 | C158: =IF('2_Upravený'!C158="","",'2_Upravený'!C158) -> RIV: doc. MUDr. Martin Vrba , PhD. - MEX | D158: ='2_Upravený'!D158-'1_Původní'!D158 -> 0 | E158: ='2_Upravený'!E158-'1_Původní'!E158 -> 0 | F158: ='2_Upravený'!F158-'1_Původní'!F158 -> 0 | G158: ='2_Upravený'!G158-'1_Původní'!G158 -> 600000 | H158: ='2_Upravený'!H158-'1_Původní'!H158 -> 0 | I158: ='2_Upravený'!I158-'1_Původní'!I158 -> 0 | J158: ='2_Upravený'!J158-'1_Původní'!J158 -> 0 | K158: ='2_Upravený'!K158-'1_Původní'!K158 -> 0 | L158: ='2_Upravený'!L158-'1_Původní'!L158 -> 0 | M158: ='2_Upravený'!M158-'1_Původní'!M158 -> 0 | N158: ='2_Upravený'!N158-'1_Původní'!N158 -> 0 | O158: ='2_Upravený'!O158-'1_Původní'!O158 -> 0 | P158: 600000
B159: =IF('2_Upravený'!B159="","",'2_Upravený'!B159) -> 8796 | C159: =IF('2_Upravený'!C159="","",'2_Upravený'!C159) -> RIV: doc. MUDr. Přemysl Falt, PhD. - MEX | D159: ='2_Upravený'!D159-'1_Původní'!D159 -> 0 | E159: ='2_Upravený'!E159-'1_Původní'!E159 -> 0 | F159: ='2_Upravený'!F159-'1_Původní'!F159 -> 0 | G159: ='2_Upravený'!G159-'1_Původní'!G159 -> 600000 | H159: ='2_Upravený'!H159-'1_Původní'!H159 -> 0 | I159: ='2_Upravený'!I159-'1_Původní'!I159 -> 0 | J159: ='2_Upravený'!J159-'1_Původní'!J159 -> 0 | K159: ='2_Upravený'!K159-'1_Původní'!K159 -> 0 | L159: ='2_Upravený'!L159-'1_Původní'!L159 -> 0 | M159: ='2_Upravený'!M159-'1_Původní'!M159 -> 0 | N159: ='2_Upravený'!N159-'1_Původní'!N159 -> 0 | O159: ='2_Upravený'!O159-'1_Původní'!O159 -> 0 | P159: 600000
B160: =IF('2_Upravený'!B160="","",'2_Upravený'!B160) -> 8797 | C160: =IF('2_Upravený'!C160="","",'2_Upravený'!C160) -> RIV: prof. MUDr. Jiří Gallo, PhD. - MEX | D160: ='2_Upravený'!D160-'1_Původní'!D160 -> 0 | E160: ='2_Upravený'!E160-'1_Původní'!E160 -> 0 | F160: ='2_Upravený'!F160-'1_Původní'!F160 -> 0 | G160: ='2_Upravený'!G160-'1_Původní'!G160 -> 600000 | H160: ='2_Upravený'!H160-'1_Původní'!H160 -> 0 | I160: ='2_Upravený'!I160-'1_Původní'!I160 -> 0 | J160: ='2_Upravený'!J160-'1_Původní'!J160 -> 0 | K160: ='2_Upravený'!K160-'1_Původní'!K160 -> 0 | L160: ='2_Upravený'!L160-'1_Původní'!L160 -> 0 | M160: ='2_Upravený'!M160-'1_Původní'!M160 -> 0 | N160: ='2_Upravený'!N160-'1_Původní'!N160 -> 0 | O160: ='2_Upravený'!O160-'1_Původní'!O160 -> 0 | P160: 600000
B161: =IF('2_Upravený'!B161="","",'2_Upravený'!B161) -> 8798 | C161: =IF('2_Upravený'!C161="","",'2_Upravený'!C161) -> RIV: prof. MUDr. Miloš Táborský, PhD. - MEX | D161: ='2_Upravený'!D161-'1_Původní'!D161 -> 0 | E161: ='2_Upravený'!E161-'1_Původní'!E161 -> 0 | F161: ='2_Upravený'!F161-'1_Původní'!F161 -> 0 | G161: ='2_Upravený'!G161-'1_Původní'!G161 -> 600000 | H161: ='2_Upravený'!H161-'1_Původní'!H161 -> 0 | I161: ='2_Upravený'!I161-'1_Původní'!I161 -> 0 | J161: ='2_Upravený'!J161-'1_Původní'!J161 -> 0 | K161: ='2_Upravený'!K161-'1_Původní'!K161 -> 0 | L161: ='2_Upravený'!L161-'1_Původní'!L161 -> 0 | M161: ='2_Upravený'!M161-'1_Původní'!M161 -> 0 | N161: ='2_Upravený'!N161-'1_Původní'!N161 -> 0 | O161: ='2_Upravený'!O161-'1_Původní'!O161 -> 0 | P161: 600000
B162: =IF('2_Upravený'!B162="","",'2_Upravený'!B162) -> 8799 | C162: =IF('2_Upravený'!C162="","",'2_Upravený'!C162) -> RIV: doc. MUDr. Radek Vodička, PhD. - MEX | D162: ='2_Upravený'!D162-'1_Původní'!D162 -> 0 | E162: ='2_Upravený'!E162-'1_Původní'!E162 -> 0 | F162: ='2_Upravený'!F162-'1_Původní'!F162 -> 0 | G162: ='2_Upravený'!G162-'1_Původní'!G162 -> 600000 | H162: ='2_Upravený'!H162-'1_Původní'!H162 -> 0 | I162: ='2_Upravený'!I162-'1_Původní'!I162 -> 0 | J162: ='2_Upravený'!J162-'1_Původní'!J162 -> 0 | K162: ='2_Upravený'!K162-'1_Původní'!K162 -> 0 | L162: ='2_Upravený'!L162-'1_Původní'!L162 -> 0 | M162: ='2_Upravený'!M162-'1_Původní'!M162 -> 0 | N162: ='2_Upravený'!N162-'1_Původní'!N162 -> 0 | O162: ='2_Upravený'!O162-'1_Původní'!O162 -> 0 | P162: 600000
B163: =IF('2_Upravený'!B163="","",'2_Upravený'!B163) ->  | C163: =IF('2_Upravený'!C163="","",'2_Upravený'!C163) ->  | D163: ='2_Upravený'!D163-'1_Původní'!D163 -> 0 | E163: ='2_Upravený'!E163-'1_Původní'!E163 -> 0 | F163: ='2_Upravený'!F163-'1_Původní'!F163 -> 0 | G163: ='2_Upravený'!G163-'1_Původní'!G163 -> 0 | H163: ='2_Upravený'!H163-'1_Původní'!H163 -> 0 | I163: ='2_Upravený'!I163-'1_Původní'!I163 -> 0 | J163: ='2_Upravený'!J163-'1_Původní'!J163 -> 0 | K163: ='2_Upravený'!K163-'1_Původní'!K163 -> 0 | L163: ='2_Upravený'!L163-'1_Původní'!L163 -> 0 | M163: ='2_Upravený'!M163-'1_Původní'!M163 -> 0 | N163: ='2_Upravený'!N163-'1_Původní'!N163 -> 0 | O163: ='2_Upravený'!O163-'1_Původní'!O163 -> 0 | P163: 0
A165: 67101011 | B165: Transfery MZ - MEDEVAC (humanitární program) | D165: =SUM(D168:D168) -> 0 | E165: 0 | F165: 0 | G165: 0 | H165: 0 | I165: 0 | J165: 0 | K165: 0 | L165: 0 | M165: 0 | N165: 0 | O165: 0 | P165: 0
B166: =IF('2_Upravený'!B166="","",'2_Upravený'!B166) -> 9813 | C166: =IF('2_Upravený'!C166="","",'2_Upravený'!C166) -> MEDEVAC | D166: ='2_Upravený'!D166-'1_Původní'!D166 -> 0 | E166: ='2_Upravený'!E166-'1_Původní'!E166 -> 0 | F166: ='2_Upravený'!F166-'1_Původní'!F166 -> 0 | G166: ='2_Upravený'!G166-'1_Původní'!G166 -> 0 | H166: ='2_Upravený'!H166-'1_Původní'!H166 -> 0 | I166: ='2_Upravený'!I166-'1_Původní'!I166 -> 0 | J166: ='2_Upravený'!J166-'1_Původní'!J166 -> 0 | K166: ='2_Upravený'!K166-'1_Původní'!K166 -> 0 | L166: ='2_Upravený'!L166-'1_Původní'!L166 -> 0 | M166: ='2_Upravený'!M166-'1_Původní'!M166 -> 0 | N166: ='2_Upravený'!N166-'1_Původní'!N166 -> -286063.7253 | O166: ='2_Upravený'!O166-'1_Původní'!O166 -> -116936.2747 | P166: =SUM(D166:O166) -> -403000
B167: =IF('2_Upravený'!B167="","",'2_Upravený'!B167) -> 9810 | C167: =IF('2_Upravený'!C167="","",'2_Upravený'!C167) -> TranMZČR: Zabezpečení svoláv. a varovného sys.-MZ | D167: ='2_Upravený'!D167-'1_Původní'!D167 -> 0 | E167: ='2_Upravený'!E167-'1_Původní'!E167 -> 0 | F167: ='2_Upravený'!F167-'1_Původní'!F167 -> 0 | G167: ='2_Upravený'!G167-'1_Původní'!G167 -> 0 | H167: ='2_Upravený'!H167-'1_Původní'!H167 -> 0 | I167: ='2_Upravený'!I167-'1_Původní'!I167 -> 0 | J167: ='2_Upravený'!J167-'1_Původní'!J167 -> 0 | K167: ='2_Upravený'!K167-'1_Původní'!K167 -> 0 | L167: ='2_Upravený'!L167-'1_Původní'!L167 -> 0 | M167: ='2_Upravený'!M167-'1_Původní'!M167 -> 0 | N167: ='2_Upravený'!N167-'1_Původní'!N167 -> 403000 | O167: ='2_Upravený'!O167-'1_Původní'!O167 -> 0 | P167: =SUM(D167:O167) -> 403000
B168: =IF('2_Upravený'!B168="","",'2_Upravený'!B168) ->  | C168: =IF('2_Upravený'!C168="","",'2_Upravený'!C168) ->  | D168: ='2_Upravený'!D168-'1_Původní'!D168 -> 0 | E168: ='2_Upravený'!E168-'1_Původní'!E168 -> 0 | F168: ='2_Upravený'!F168-'1_Původní'!F168 -> 0 | G168: ='2_Upravený'!G168-'1_Původní'!G168 -> 0 | H168: ='2_Upravený'!H168-'1_Původní'!H168 -> 0 | I168: ='2_Upravený'!I168-'1_Původní'!I168 -> 0 | J168: ='2_Upravený'!J168-'1_Původní'!J168 -> 0 | K168: ='2_Upravený'!K168-'1_Původní'!K168 -> 0 | L168: ='2_Upravený'!L168-'1_Původní'!L168 -> 0 | M168: ='2_Upravený'!M168-'1_Původní'!M168 -> 0 | N168: ='2_Upravený'!N168-'1_Původní'!N168 -> 0 | O168: ='2_Upravený'!O168-'1_Původní'!O168 -> 0 | P168: 0
A170: 67102001 | B170: Transfery jiného poskytovatele - VaV věcné | D170: =SUM(D204:D204) -> 0 | E170: 0 | F170: 0 | G170: 0 | H170: 0 | I170: 0 | J170: 0 | K170: 0 | L170: 0 | M170: 0 | N170: 0 | O170: 0 | P170: 0
B171: =IF('2_Upravený'!B171="","",'2_Upravený'!B171) -> 8542 | C171: =IF('2_Upravený'!C171="","",'2_Upravený'!C171) -> Prof. MUDr. Jiří Ehrmann, Ph.D. - PATOL | D171: ='2_Upravený'!D171-'1_Původní'!D171 -> 0 | E171: ='2_Upravený'!E171-'1_Původní'!E171 -> 0 | F171: ='2_Upravený'!F171-'1_Původní'!F171 -> 0 | G171: ='2_Upravený'!G171-'1_Původní'!G171 -> 0 | H171: ='2_Upravený'!H171-'1_Původní'!H171 -> 0 | I171: ='2_Upravený'!I171-'1_Původní'!I171 -> 0 | J171: ='2_Upravený'!J171-'1_Původní'!J171 -> 0 | K171: ='2_Upravený'!K171-'1_Původní'!K171 -> -94584.1569 | L171: ='2_Upravený'!L171-'1_Původní'!L171 -> 0 | M171: ='2_Upravený'!M171-'1_Původní'!M171 -> 0 | N171: ='2_Upravený'!N171-'1_Původní'!N171 -> 0 | O171: ='2_Upravený'!O171-'1_Původní'!O171 -> 37145.4009 | P171: =SUM(D171:O171) -> -57438.756
B172: =IF('2_Upravený'!B172="","",'2_Upravený'!B172) -> 8544 | C172: =IF('2_Upravený'!C172="","",'2_Upravený'!C172) -> MUDr. Jana Volejníková, Ph.D. - DK | D172: ='2_Upravený'!D172-'1_Původní'!D172 -> 0 | E172: ='2_Upravený'!E172-'1_Původní'!E172 -> 0 | F172: ='2_Upravený'!F172-'1_Původní'!F172 -> 0 | G172: ='2_Upravený'!G172-'1_Původní'!G172 -> 0 | H172: ='2_Upravený'!H172-'1_Původní'!H172 -> 0 | I172: ='2_Upravený'!I172-'1_Původní'!I172 -> 0 | J172: ='2_Upravený'!J172-'1_Původní'!J172 -> 0 | K172: ='2_Upravený'!K172-'1_Původní'!K172 -> -257404.0271 | L172: ='2_Upravený'!L172-'1_Původní'!L172 -> 0 | M172: ='2_Upravený'!M172-'1_Původní'!M172 -> 0 | N172: ='2_Upravený'!N172-'1_Původní'!N172 -> 0 | O172: ='2_Upravený'!O172-'1_Původní'!O172 -> 29152.1613 | P172: =SUM(D172:O172) -> -228251.8658
B173: =IF('2_Upravený'!B173="","",'2_Upravený'!B173) -> 8551 | C173: =IF('2_Upravený'!C173="","",'2_Upravený'!C173) -> Doc. MUDr. Vladimír Študent, PhD. - UROL | D173: ='2_Upravený'!D173-'1_Původní'!D173 -> 0 | E173: ='2_Upravený'!E173-'1_Původní'!E173 -> 0 | F173: ='2_Upravený'!F173-'1_Původní'!F173 -> 0 | G173: ='2_Upravený'!G173-'1_Původní'!G173 -> 0 | H173: ='2_Upravený'!H173-'1_Původní'!H173 -> 0 | I173: ='2_Upravený'!I173-'1_Původní'!I173 -> 0 | J173: ='2_Upravený'!J173-'1_Původní'!J173 -> 0 | K173: ='2_Upravený'!K173-'1_Původní'!K173 -> -152010.2522 | L173: ='2_Upravený'!L173-'1_Původní'!L173 -> 0 | M173: ='2_Upravený'!M173-'1_Původní'!M173 -> 0 | N173: ='2_Upravený'!N173-'1_Původní'!N173 -> 0 | O173: ='2_Upravený'!O173-'1_Původní'!O173 -> 35619.4139 | P173: -116390.8383
B174: =IF('2_Upravený'!B174="","",'2_Upravený'!B174) -> 8552 | C174: =IF('2_Upravený'!C174="","",'2_Upravený'!C174) -> Doc. MUDr. Jiří Minařík, PhD. - HOK | D174: ='2_Upravený'!D174-'1_Původní'!D174 -> 0 | E174: ='2_Upravený'!E174-'1_Původní'!E174 -> 0 | F174: ='2_Upravený'!F174-'1_Původní'!F174 -> 0 | G174: ='2_Upravený'!G174-'1_Původní'!G174 -> 0 | H174: ='2_Upravený'!H174-'1_Původní'!H174 -> 0 | I174: ='2_Upravený'!I174-'1_Původní'!I174 -> 0 | J174: ='2_Upravený'!J174-'1_Původní'!J174 -> 0 | K174: ='2_Upravený'!K174-'1_Původní'!K174 -> -31077.6516 | L174: ='2_Upravený'!L174-'1_Původní'!L174 -> 0 | M174: ='2_Upravený'!M174-'1_Původní'!M174 -> 0 | N174: ='2_Upravený'!N174-'1_Původní'!N174 -> 0 | O174: ='2_Upravený'!O174-'1_Původní'!O174 -> 0 | P174: -31077.6516
B175: =IF('2_Upravený'!B175="","",'2_Upravený'!B175) -> 8553 | C175: =IF('2_Upravený'!C175="","",'2_Upravený'!C175) -> MUDr. Hana Študentová, Ph.D. - ONKO | D175: ='2_Upravený'!D175-'1_Původní'!D175 -> 0 | E175: ='2_Upravený'!E175-'1_Původní'!E175 -> 0 | F175: ='2_Upravený'!F175-'1_Původní'!F175 -> 0 | G175: ='2_Upravený'!G175-'1_Původní'!G175 -> 0 | H175: ='2_Upravený'!H175-'1_Původní'!H175 -> 0 | I175: ='2_Upravený'!I175-'1_Původní'!I175 -> 0 | J175: ='2_Upravený'!J175-'1_Původní'!J175 -> -96610.9603 | K175: ='2_Upravený'!K175-'1_Původní'!K175 -> 0 | L175: ='2_Upravený'!L175-'1_Původní'!L175 -> 0 | M175: ='2_Upravený'!M175-'1_Původní'!M175 -> 0 | N175: ='2_Upravený'!N175-'1_Původní'!N175 -> 0 | O175: ='2_Upravený'!O175-'1_Původní'!O175 -> 1362.1267 | P175: -95248.8336
B176: =IF('2_Upravený'!B176="","",'2_Upravený'!B176) -> 8555 | C176: =IF('2_Upravený'!C176="","",'2_Upravený'!C176) -> Doc. RNDr. Radek Vrtěl, PhD. - GENETIKA | D176: ='2_Upravený'!D176-'1_Původní'!D176 -> 0 | E176: ='2_Upravený'!E176-'1_Původní'!E176 -> 0 | F176: ='2_Upravený'!F176-'1_Původní'!F176 -> 0 | G176: ='2_Upravený'!G176-'1_Původní'!G176 -> 0 | H176: ='2_Upravený'!H176-'1_Původní'!H176 -> 0 | I176: ='2_Upravený'!I176-'1_Původní'!I176 -> 0 | J176: ='2_Upravený'!J176-'1_Původní'!J176 -> 0 | K176: ='2_Upravený'!K176-'1_Původní'!K176 -> -272267.2517 | L176: ='2_Upravený'!L176-'1_Původní'!L176 -> 0 | M176: ='2_Upravený'!M176-'1_Původní'!M176 -> 0 | N176: ='2_Upravený'!N176-'1_Původní'!N176 -> 0 | O176: ='2_Upravený'!O176-'1_Původní'!O176 -> 1377.4426 | P176: -270889.8091
B177: =IF('2_Upravený'!B177="","",'2_Upravený'!B177) -> 8556 | C177: =IF('2_Upravený'!C177="","",'2_Upravený'!C177) -> MUDr. Tomáš Veverka, PhD. - NEUROL | D177: ='2_Upravený'!D177-'1_Původní'!D177 -> -29868.3864 | E177: ='2_Upravený'!E177-'1_Původní'!E177 -> 0 | F177: ='2_Upravený'!F177-'1_Původní'!F177 -> 0 | G177: ='2_Upravený'!G177-'1_Původní'!G177 -> 0 | H177: ='2_Upravený'!H177-'1_Původní'!H177 -> 0 | I177: ='2_Upravený'!I177-'1_Původní'!I177 -> 0 | J177: ='2_Upravený'!J177-'1_Původní'!J177 -> 0 | K177: ='2_Upravený'!K177-'1_Původní'!K177 -> -239162.7968 | L177: ='2_Upravený'!L177-'1_Původní'!L177 -> 0 | M177: ='2_Upravený'!M177-'1_Původní'!M177 -> 0 | N177: ='2_Upravený'!N177-'1_Původní'!N177 -> 0 | O177: ='2_Upravený'!O177-'1_Původní'!O177 -> 14224.1263 | P177: -254807.0569
B178: =IF('2_Upravený'!B178="","",'2_Upravený'!B178) -> 8557 | C178: =IF('2_Upravený'!C178="","",'2_Upravený'!C178) -> MUDr. Petr Šantavý, PhD. - KARDIOCHIR | D178: ='2_Upravený'!D178-'1_Původní'!D178 -> 0 | E178: ='2_Upravený'!E178-'1_Původní'!E178 -> 0 | F178: ='2_Upravený'!F178-'1_Původní'!F178 -> 0 | G178: ='2_Upravený'!G178-'1_Původní'!G178 -> 0 | H178: ='2_Upravený'!H178-'1_Původní'!H178 -> 0 | I178: ='2_Upravený'!I178-'1_Původní'!I178 -> 0 | J178: ='2_Upravený'!J178-'1_Původní'!J178 -> 0 | K178: ='2_Upravený'!K178-'1_Původní'!K178 -> -287130.4764 | L178: ='2_Upravený'!L178-'1_Původní'!L178 -> 0 | M178: ='2_Upravený'!M178-'1_Původní'!M178 -> 0 | N178: ='2_Upravený'!N178-'1_Původní'!N178 -> 0 | O178: ='2_Upravený'!O178-'1_Původní'!O178 -> 192.4112 | P178: -286938.0652
B179: =IF('2_Upravený'!B179="","",'2_Upravený'!B179) -> 8558 | C179: =IF('2_Upravený'!C179="","",'2_Upravený'!C179) -> MUDr. Filip Čtvrtlík, PhD. - RTG | D179: ='2_Upravený'!D179-'1_Původní'!D179 -> 0 | E179: ='2_Upravený'!E179-'1_Původní'!E179 -> 0 | F179: ='2_Upravený'!F179-'1_Původní'!F179 -> 0 | G179: ='2_Upravený'!G179-'1_Původní'!G179 -> 0 | H179: ='2_Upravený'!H179-'1_Původní'!H179 -> 0 | I179: ='2_Upravený'!I179-'1_Původní'!I179 -> 0 | J179: ='2_Upravený'!J179-'1_Původní'!J179 -> 0 | K179: ='2_Upravený'!K179-'1_Původní'!K179 -> -224299.5721 | L179: ='2_Upravený'!L179-'1_Původní'!L179 -> 0 | M179: ='2_Upravený'!M179-'1_Původní'!M179 -> 0 | N179: ='2_Upravený'!N179-'1_Původní'!N179 -> 0 | O179: ='2_Upravený'!O179-'1_Původní'!O179 -> 38519.6749 | P179: -185779.8972
B180: =IF('2_Upravený'!B180="","",'2_Upravený'!B180) -> 8559 | C180: =IF('2_Upravený'!C180="","",'2_Upravený'!C180) -> MUDr. JUDr. Dušan Klos, Ph.D. - I.CHIR | D180: ='2_Upravený'!D180-'1_Původní'!D180 -> 0 | E180: ='2_Upravený'!E180-'1_Původní'!E180 -> 0 | F180: ='2_Upravený'!F180-'1_Původní'!F180 -> 0 | G180: ='2_Upravený'!G180-'1_Původní'!G180 -> 0 | H180: ='2_Upravený'!H180-'1_Původní'!H180 -> 0 | I180: ='2_Upravený'!I180-'1_Původní'!I180 -> 521000 | J180: ='2_Upravený'!J180-'1_Původní'!J180 -> 0 | K180: ='2_Upravený'!K180-'1_Původní'!K180 -> -351988.184 | L180: ='2_Upravený'!L180-'1_Původní'!L180 -> 0 | M180: ='2_Upravený'!M180-'1_Původní'!M180 -> 0 | N180: ='2_Upravený'!N180-'1_Původní'!N180 -> 0 | O180: ='2_Upravený'!O180-'1_Původní'!O180 -> 1072.5708 | P180: 170084.3868
B181: =IF('2_Upravený'!B181="","",'2_Upravený'!B181) -> 8560 | C181: =IF('2_Upravený'!C181="","",'2_Upravený'!C181) -> Mgr. Lenka Kocourková - LEM | D181: ='2_Upravený'!D181-'1_Původní'!D181 -> 0 | E181: ='2_Upravený'!E181-'1_Původní'!E181 -> 0 | F181: ='2_Upravený'!F181-'1_Původní'!F181 -> 0 | G181: ='2_Upravený'!G181-'1_Původní'!G181 -> 0 | H181: ='2_Upravený'!H181-'1_Původní'!H181 -> 0 | I181: ='2_Upravený'!I181-'1_Původní'!I181 -> 212000 | J181: ='2_Upravený'!J181-'1_Původní'!J181 -> 0 | K181: ='2_Upravený'!K181-'1_Původní'!K181 -> -217543.5609 | L181: ='2_Upravený'!L181-'1_Původní'!L181 -> 0 | M181: ='2_Upravený'!M181-'1_Původní'!M181 -> 0 | N181: ='2_Upravený'!N181-'1_Původní'!N181 -> 0 | O181: ='2_Upravený'!O181-'1_Původní'!O181 -> 641.4495 | P181: -4902.1114
B182: =IF('2_Upravený'!B182="","",'2_Upravený'!B182) -> 8561 | C182: =IF('2_Upravený'!C182="","",'2_Upravený'!C182) -> MUDr. Ondřej Krystyník - III. IK | D182: ='2_Upravený'!D182-'1_Původní'!D182 -> 0 | E182: ='2_Upravený'!E182-'1_Původní'!E182 -> 0 | F182: ='2_Upravený'!F182-'1_Původní'!F182 -> 0 | G182: ='2_Upravený'!G182-'1_Původní'!G182 -> 0 | H182: ='2_Upravený'!H182-'1_Původní'!H182 -> 0 | I182: ='2_Upravený'!I182-'1_Původní'!I182 -> 729000 | J182: ='2_Upravený'!J182-'1_Původní'!J182 -> 0 | K182: ='2_Upravený'!K182-'1_Původní'!K182 -> -485757.2059 | L182: ='2_Upravený'!L182-'1_Původní'!L182 -> 0 | M182: ='2_Upravený'!M182-'1_Původní'!M182 -> 0 | N182: ='2_Upravený'!N182-'1_Původní'!N182 -> 0 | O182: ='2_Upravený'!O182-'1_Původní'!O182 -> 15968.0622 | P182: 259210.8563
B183: =IF('2_Upravený'!B183="","",'2_Upravený'!B183) -> 8562 | C183: =IF('2_Upravený'!C183="","",'2_Upravený'!C183) -> Mgr. Taťána Štosová, Ph.D. - MIKRO | D183: ='2_Upravený'!D183-'1_Původní'!D183 -> 0 | E183: ='2_Upravený'!E183-'1_Původní'!E183 -> 0 | F183: ='2_Upravený'!F183-'1_Původní'!F183 -> 0 | G183: ='2_Upravený'!G183-'1_Původní'!G183 -> 0 | H183: ='2_Upravený'!H183-'1_Původní'!H183 -> 0 | I183: ='2_Upravený'!I183-'1_Původní'!I183 -> 98000 | J183: ='2_Upravený'!J183-'1_Původní'!J183 -> 0 | K183: ='2_Upravený'!K183-'1_Původní'!K183 -> -133769.0219 | L183: ='2_Upravený'!L183-'1_Původní'!L183 -> 0 | M183: ='2_Upravený'!M183-'1_Původní'!M183 -> 0 | N183: ='2_Upravený'!N183-'1_Původní'!N183 -> 0 | O183: ='2_Upravený'!O183-'1_Původní'!O183 -> 19020.4618 | P183: -16748.5601
B184: =IF('2_Upravený'!B184="","",'2_Upravený'!B184) -> 8563 | C184: =IF('2_Upravený'!C184="","",'2_Upravený'!C184) -> Doc. MUDr. Jan Minařík, Ph.D. - HOK | D184: ='2_Upravený'!D184-'1_Původní'!D184 -> 0 | E184: ='2_Upravený'!E184-'1_Původní'!E184 -> 0 | F184: ='2_Upravený'!F184-'1_Původní'!F184 -> 0 | G184: ='2_Upravený'!G184-'1_Původní'!G184 -> 0 | H184: ='2_Upravený'!H184-'1_Původní'!H184 -> 0 | I184: ='2_Upravený'!I184-'1_Původní'!I184 -> 311000 | J184: ='2_Upravený'!J184-'1_Původní'!J184 -> 0 | K184: ='2_Upravený'!K184-'1_Původní'!K184 -> -210111.9486 | L184: ='2_Upravený'!L184-'1_Původní'!L184 -> 0 | M184: ='2_Upravený'!M184-'1_Původní'!M184 -> 0 | N184: ='2_Upravený'!N184-'1_Původní'!N184 -> 0 | O184: ='2_Upravený'!O184-'1_Původní'!O184 -> 1649.6963 | P184: 102537.7477
B185: =IF('2_Upravený'!B185="","",'2_Upravený'!B185) -> 8564 | C185: =IF('2_Upravený'!C185="","",'2_Upravený'!C185) -> MUDr. Jan Přeček, Ph.D. - I.IK | D185: ='2_Upravený'!D185-'1_Původní'!D185 -> 0 | E185: ='2_Upravený'!E185-'1_Původní'!E185 -> 0 | F185: ='2_Upravený'!F185-'1_Původní'!F185 -> 0 | G185: ='2_Upravený'!G185-'1_Původní'!G185 -> -41211.6684 | H185: ='2_Upravený'!H185-'1_Původní'!H185 -> 0 | I185: ='2_Upravený'!I185-'1_Původní'!I185 -> 61000 | J185: ='2_Upravený'!J185-'1_Původní'!J185 -> 0 | K185: ='2_Upravený'!K185-'1_Původní'!K185 -> 0 | L185: ='2_Upravený'!L185-'1_Původní'!L185 -> 0 | M185: ='2_Upravený'!M185-'1_Původní'!M185 -> 0 | N185: ='2_Upravený'!N185-'1_Původní'!N185 -> 0 | O185: ='2_Upravený'!O185-'1_Původní'!O185 -> 0 | P185: 19788.3316
B186: =IF('2_Upravený'!B186="","",'2_Upravený'!B186) -> 8565 | C186: =IF('2_Upravený'!C186="","",'2_Upravený'!C186) -> Prof. MUDr. Ing. Petr Hluštík, Ph.D. - NEUROL | D186: ='2_Upravený'!D186-'1_Původní'!D186 -> -79805.1054 | E186: ='2_Upravený'!E186-'1_Původní'!E186 -> 0 | F186: ='2_Upravený'!F186-'1_Původní'!F186 -> 0 | G186: ='2_Upravený'!G186-'1_Původní'!G186 -> 0 | H186: ='2_Upravený'!H186-'1_Původní'!H186 -> 52992.5063 | I186: ='2_Upravený'!I186-'1_Původní'!I186 -> 0 | J186: ='2_Upravený'!J186-'1_Původní'!J186 -> 0 | K186: ='2_Upravený'!K186-'1_Původní'!K186 -> 0 | L186: ='2_Upravený'!L186-'1_Původní'!L186 -> 0 | M186: ='2_Upravený'!M186-'1_Původní'!M186 -> 0 | N186: ='2_Upravený'!N186-'1_Původní'!N186 -> 0 | O186: ='2_Upravený'!O186-'1_Původní'!O186 -> 105413.624 | P186: 78601.0249
B187: =IF('2_Upravený'!B187="","",'2_Upravený'!B187) -> 8566 | C187: =IF('2_Upravený'!C187="","",'2_Upravený'!C187) -> MUDr. Michaela Kaiserová - NEUROL | D187: ='2_Upravený'!D187-'1_Původní'!D187 -> 0 | E187: ='2_Upravený'!E187-'1_Původní'!E187 -> 0 | F187: ='2_Upravený'!F187-'1_Původní'!F187 -> 0 | G187: ='2_Upravený'!G187-'1_Původní'!G187 -> 0 | H187: ='2_Upravený'!H187-'1_Původní'!H187 -> 42496.2532 | I187: ='2_Upravený'!I187-'1_Původní'!I187 -> 0 | J187: ='2_Upravený'!J187-'1_Původní'!J187 -> 0 | K187: ='2_Upravený'!K187-'1_Původní'!K187 -> 0 | L187: ='2_Upravený'!L187-'1_Původní'!L187 -> 0 | M187: ='2_Upravený'!M187-'1_Původní'!M187 -> 0 | N187: ='2_Upravený'!N187-'1_Původní'!N187 -> 0 | O187: ='2_Upravený'!O187-'1_Původní'!O187 -> 23757.3715 | P187: 66253.6247
B188: =IF('2_Upravený'!B188="","",'2_Upravený'!B188) -> 8567 | C188: =IF('2_Upravený'!C188="","",'2_Upravený'!C188) -> MUDr. Jana Petřková, Ph.D. - I.IK | D188: ='2_Upravený'!D188-'1_Původní'!D188 -> 0 | E188: ='2_Upravený'!E188-'1_Původní'!E188 -> 0 | F188: ='2_Upravený'!F188-'1_Původní'!F188 -> 0 | G188: ='2_Upravený'!G188-'1_Původní'!G188 -> 0 | H188: ='2_Upravený'!H188-'1_Původní'!H188 -> 91000 | I188: ='2_Upravený'!I188-'1_Původní'!I188 -> -120932.6006 | J188: ='2_Upravený'!J188-'1_Původní'!J188 -> 0 | K188: ='2_Upravený'!K188-'1_Původní'!K188 -> 0 | L188: ='2_Upravený'!L188-'1_Původní'!L188 -> 0 | M188: ='2_Upravený'!M188-'1_Původní'!M188 -> 0 | N188: ='2_Upravený'!N188-'1_Původní'!N188 -> 0 | O188: ='2_Upravený'!O188-'1_Původní'!O188 -> 821.3486 | P188: -29111.252
B189: =IF('2_Upravený'!B189="","",'2_Upravený'!B189) -> 8568 | C189: =IF('2_Upravený'!C189="","",'2_Upravený'!C189) -> Prof. MUDr. Dagmar Pospíšilová, Ph.D. - DK | D189: ='2_Upravený'!D189-'1_Původní'!D189 -> -6633.4504 | E189: ='2_Upravený'!E189-'1_Původní'!E189 -> 0 | F189: ='2_Upravený'!F189-'1_Původní'!F189 -> 0 | G189: ='2_Upravený'!G189-'1_Původní'!G189 -> 0 | H189: ='2_Upravený'!H189-'1_Původní'!H189 -> 0 | I189: ='2_Upravený'!I189-'1_Původní'!I189 -> 53737.4834 | J189: ='2_Upravený'!J189-'1_Původní'!J189 -> 0 | K189: ='2_Upravený'!K189-'1_Původní'!K189 -> 0 | L189: ='2_Upravený'!L189-'1_Původní'!L189 -> 0 | M189: ='2_Upravený'!M189-'1_Původní'!M189 -> 0 | N189: ='2_Upravený'!N189-'1_Původní'!N189 -> 0 | O189: ='2_Upravený'!O189-'1_Původní'!O189 -> 23592.4776 | P189: 70696.5106
B190: =IF('2_Upravený'!B190="","",'2_Upravený'!B190) -> 8569 | C190: =IF('2_Upravený'!C190="","",'2_Upravený'!C190) -> MUDr. Přemysl Falt, Ph.D. - II.IK | D190: ='2_Upravený'!D190-'1_Původní'!D190 -> 0 | E190: ='2_Upravený'!E190-'1_Původní'!E190 -> 0 | F190: ='2_Upravený'!F190-'1_Původní'!F190 -> 0 | G190: ='2_Upravený'!G190-'1_Původní'!G190 -> 0 | H190: ='2_Upravený'!H190-'1_Původní'!H190 -> -247945.6114 | I190: ='2_Upravený'!I190-'1_Původní'!I190 -> 136000 | J190: ='2_Upravený'!J190-'1_Původní'!J190 -> 0 | K190: ='2_Upravený'!K190-'1_Původní'!K190 -> 0 | L190: ='2_Upravený'!L190-'1_Původní'!L190 -> 0 | M190: ='2_Upravený'!M190-'1_Původní'!M190 -> 0 | N190: ='2_Upravený'!N190-'1_Původní'!N190 -> 0 | O190: ='2_Upravený'!O190-'1_Původní'!O190 -> 0 | P190: -111945.6114
B191: =IF('2_Upravený'!B191="","",'2_Upravený'!B191) -> 8570 | C191: =IF('2_Upravený'!C191="","",'2_Upravený'!C191) -> Prof. MUDr. Bohuslav Melichar, Ph.D. - ONKO | D191: ='2_Upravený'!D191-'1_Původní'!D191 -> -126075.9587 | E191: ='2_Upravený'!E191-'1_Původní'!E191 -> 0 | F191: ='2_Upravený'!F191-'1_Původní'!F191 -> 0 | G191: ='2_Upravený'!G191-'1_Původní'!G191 -> 0 | H191: ='2_Upravený'!H191-'1_Původní'!H191 -> 0 | I191: ='2_Upravený'!I191-'1_Původní'!I191 -> 0 | J191: ='2_Upravený'!J191-'1_Původní'!J191 -> -196599.9262 | K191: ='2_Upravený'!K191-'1_Původní'!K191 -> 0 | L191: ='2_Upravený'!L191-'1_Původní'!L191 -> 0 | M191: ='2_Upravený'!M191-'1_Původní'!M191 -> 0 | N191: ='2_Upravený'!N191-'1_Původní'!N191 -> 0 | O191: ='2_Upravený'!O191-'1_Původní'!O191 -> 207979.265 | P191: -114696.6199
B192: =IF('2_Upravený'!B192="","",'2_Upravený'!B192) -> 8571 | C192: =IF('2_Upravený'!C192="","",'2_Upravený'!C192) -> MUDr. Tomáš Skála, Ph.D., FESC - I.IK | D192: ='2_Upravený'!D192-'1_Původní'!D192 -> -23219.6336 | E192: ='2_Upravený'!E192-'1_Původní'!E192 -> 0 | F192: ='2_Upravený'!F192-'1_Původní'!F192 -> 0 | G192: ='2_Upravený'!G192-'1_Původní'!G192 -> -334422.5549 | H192: ='2_Upravený'!H192-'1_Původní'!H192 -> 79000 | I192: ='2_Upravený'!I192-'1_Původní'!I192 -> 0 | J192: ='2_Upravený'!J192-'1_Původní'!J192 -> 0 | K192: ='2_Upravený'!K192-'1_Původní'!K192 -> 0 | L192: ='2_Upravený'!L192-'1_Původní'!L192 -> 0 | M192: ='2_Upravený'!M192-'1_Původní'!M192 -> 0 | N192: ='2_Upravený'!N192-'1_Původní'!N192 -> 0 | O192: ='2_Upravený'!O192-'1_Původní'!O192 -> 22123.3356 | P192: -256518.8529
B193: =IF('2_Upravený'!B193="","",'2_Upravený'!B193) -> 8572 | C193: =IF('2_Upravený'!C193="","",'2_Upravený'!C193) -> Grant: Doc. MUDr. Petr Šantavý, Ph.D. - KARDIOCHIR | D193: ='2_Upravený'!D193-'1_Původní'!D193 -> 0 | E193: ='2_Upravený'!E193-'1_Původní'!E193 -> 0 | F193: ='2_Upravený'!F193-'1_Původní'!F193 -> 0 | G193: ='2_Upravený'!G193-'1_Původní'!G193 -> 0 | H193: ='2_Upravený'!H193-'1_Původní'!H193 -> 337000 | I193: ='2_Upravený'!I193-'1_Původní'!I193 -> -291184.0831 | J193: ='2_Upravený'!J193-'1_Původní'!J193 -> 0 | K193: ='2_Upravený'!K193-'1_Původní'!K193 -> 0 | L193: ='2_Upravený'!L193-'1_Původní'!L193 -> 0 | M193: ='2_Upravený'!M193-'1_Původní'!M193 -> 0 | N193: ='2_Upravený'!N193-'1_Původní'!N193 -> 0 | O193: ='2_Upravený'!O193-'1_Původní'!O193 -> 0 | P193: 45815.9169
B194: =IF('2_Upravený'!B194="","",'2_Upravený'!B194) -> 8573 | C194: =IF('2_Upravený'!C194="","",'2_Upravený'!C194) -> Grant: MUDr. Jan Přeček, PhD. - I.IK | D194: ='2_Upravený'!D194-'1_Původní'!D194 -> 0 | E194: ='2_Upravený'!E194-'1_Původní'!E194 -> 0 | F194: ='2_Upravený'!F194-'1_Původní'!F194 -> 0 | G194: ='2_Upravený'!G194-'1_Původní'!G194 -> 0 | H194: ='2_Upravený'!H194-'1_Původní'!H194 -> 29000 | I194: ='2_Upravený'!I194-'1_Původní'!I194 -> 0 | J194: ='2_Upravený'!J194-'1_Původní'!J194 -> -12836.4213 | K194: ='2_Upravený'!K194-'1_Původní'!K194 -> 0 | L194: ='2_Upravený'!L194-'1_Původní'!L194 -> 0 | M194: ='2_Upravený'!M194-'1_Původní'!M194 -> 0 | N194: ='2_Upravený'!N194-'1_Původní'!N194 -> 0 | O194: ='2_Upravený'!O194-'1_Původní'!O194 -> 0 | P194: 16163.5787
B195: =IF('2_Upravený'!B195="","",'2_Upravený'!B195) -> 8574 | C195: =IF('2_Upravený'!C195="","",'2_Upravený'!C195) -> Grant: Doc. MUDr. Kateřina Menšíková, PhD. - NEURO | D195: ='2_Upravený'!D195-'1_Původní'!D195 -> 0 | E195: ='2_Upravený'!E195-'1_Původní'!E195 -> 0 | F195: ='2_Upravený'!F195-'1_Původní'!F195 -> 0 | G195: ='2_Upravený'!G195-'1_Původní'!G195 -> 0 | H195: ='2_Upravený'!H195-'1_Původní'!H195 -> 506000 | I195: ='2_Upravený'!I195-'1_Původní'!I195 -> -193221.9206 | J195: ='2_Upravený'!J195-'1_Původní'!J195 -> 0 | K195: ='2_Upravený'!K195-'1_Původní'!K195 -> 0 | L195: ='2_Upravený'!L195-'1_Původní'!L195 -> 0 | M195: ='2_Upravený'!M195-'1_Původní'!M195 -> 0 | N195: ='2_Upravený'!N195-'1_Původní'!N195 -> 0 | O195: ='2_Upravený'!O195-'1_Původní'!O195 -> 3663.0687 | P195: 316441.1481
B196: =IF('2_Upravený'!B196="","",'2_Upravený'!B196) -> 8575 | C196: =IF('2_Upravený'!C196="","",'2_Upravený'!C196) -> Grant: Doc. MUDr. Miroslav Vaverka, CSc. - NEUROCH | D196: ='2_Upravený'!D196-'1_Původní'!D196 -> 0 | E196: ='2_Upravený'!E196-'1_Původní'!E196 -> 0 | F196: ='2_Upravený'!F196-'1_Původní'!F196 -> 0 | G196: ='2_Upravený'!G196-'1_Původní'!G196 -> 0 | H196: ='2_Upravený'!H196-'1_Původní'!H196 -> 0 | I196: ='2_Upravený'!I196-'1_Původní'!I196 -> 80000 | J196: ='2_Upravený'!J196-'1_Původní'!J196 -> 0 | K196: ='2_Upravený'!K196-'1_Původní'!K196 -> -41211.6684 | L196: ='2_Upravený'!L196-'1_Původní'!L196 -> 0 | M196: ='2_Upravený'!M196-'1_Původní'!M196 -> 0 | N196: ='2_Upravený'!N196-'1_Původní'!N196 -> 0 | O196: ='2_Upravený'!O196-'1_Původní'!O196 -> 18916.8314 | P196: 57705.163
B197: =IF('2_Upravený'!B197="","",'2_Upravený'!B197) -> 8576 | C197: =IF('2_Upravený'!C197="","",'2_Upravený'!C197) -> Grant: MUDr. Vladislav Raclavský, PhD. - MIKRO | D197: ='2_Upravený'!D197-'1_Původní'!D197 -> 0 | E197: ='2_Upravený'!E197-'1_Původní'!E197 -> 0 | F197: ='2_Upravený'!F197-'1_Původní'!F197 -> 0 | G197: ='2_Upravený'!G197-'1_Původní'!G197 -> 0 | H197: ='2_Upravený'!H197-'1_Původní'!H197 -> 0 | I197: ='2_Upravený'!I197-'1_Původní'!I197 -> 211000 | J197: ='2_Upravený'!J197-'1_Původní'!J197 -> 0 | K197: ='2_Upravený'!K197-'1_Původní'!K197 -> -67560.1121 | L197: ='2_Upravený'!L197-'1_Původní'!L197 -> 0 | M197: ='2_Upravený'!M197-'1_Původní'!M197 -> 0 | N197: ='2_Upravený'!N197-'1_Původní'!N197 -> 0 | O197: ='2_Upravený'!O197-'1_Původní'!O197 -> 0.9458 | P197: 143440.8337
B198: =IF('2_Upravený'!B198="","",'2_Upravený'!B198) -> 8577 | C198: =IF('2_Upravený'!C198="","",'2_Upravený'!C198) -> Grant: Prof. MUDr. Bohuslav Melichar, Ph.D. - ONKO | D198: ='2_Upravený'!D198-'1_Původní'!D198 -> 0 | E198: ='2_Upravený'!E198-'1_Původní'!E198 -> 0 | F198: ='2_Upravený'!F198-'1_Původní'!F198 -> 0 | G198: ='2_Upravený'!G198-'1_Původní'!G198 -> 0 | H198: ='2_Upravený'!H198-'1_Původní'!H198 -> 0 | I198: ='2_Upravený'!I198-'1_Původní'!I198 -> 100000 | J198: ='2_Upravený'!J198-'1_Původní'!J198 -> 0 | K198: ='2_Upravený'!K198-'1_Původní'!K198 -> -35806.8594 | L198: ='2_Upravený'!L198-'1_Původní'!L198 -> 0 | M198: ='2_Upravený'!M198-'1_Původní'!M198 -> 0 | N198: ='2_Upravený'!N198-'1_Původní'!N198 -> 0 | O198: ='2_Upravený'!O198-'1_Původní'!O198 -> 0 | P198: 64193.1406
B199: =IF('2_Upravený'!B199="","",'2_Upravený'!B199) -> 8578 | C199: =IF('2_Upravený'!C199="","",'2_Upravený'!C199) -> Grant: Prof. MUDr. Mgr. Milan Raška, PhD. - IMUNO | D199: ='2_Upravený'!D199-'1_Původní'!D199 -> 0 | E199: ='2_Upravený'!E199-'1_Původní'!E199 -> 0 | F199: ='2_Upravený'!F199-'1_Původní'!F199 -> 0 | G199: ='2_Upravený'!G199-'1_Původní'!G199 -> 0 | H199: ='2_Upravený'!H199-'1_Původní'!H199 -> 130000 | I199: ='2_Upravený'!I199-'1_Původní'!I199 -> 0 | J199: ='2_Upravený'!J199-'1_Původní'!J199 -> 0 | K199: ='2_Upravený'!K199-'1_Původní'!K199 -> -67560.1121 | L199: ='2_Upravený'!L199-'1_Původní'!L199 -> 0 | M199: ='2_Upravený'!M199-'1_Původní'!M199 -> 0 | N199: ='2_Upravený'!N199-'1_Původní'!N199 -> 0 | O199: ='2_Upravený'!O199-'1_Původní'!O199 -> 31753.5635 | P199: 94193.4514
B200: =IF('2_Upravený'!B200="","",'2_Upravený'!B200) -> 8579 | C200: =IF('2_Upravený'!C200="","",'2_Upravený'!C200) -> Grant: Prof. MUDr. Dagmar Pospíšilová, PhD. - DK | D200: ='2_Upravený'!D200-'1_Původní'!D200 -> 0 | E200: ='2_Upravený'!E200-'1_Původní'!E200 -> 0 | F200: ='2_Upravený'!F200-'1_Původní'!F200 -> 0 | G200: ='2_Upravený'!G200-'1_Původní'!G200 -> 0 | H200: ='2_Upravený'!H200-'1_Původní'!H200 -> 243000 | I200: ='2_Upravený'!I200-'1_Původní'!I200 -> 0 | J200: ='2_Upravený'!J200-'1_Původní'!J200 -> 0 | K200: ='2_Upravený'!K200-'1_Původní'!K200 -> -86476.9435 | L200: ='2_Upravený'!L200-'1_Původní'!L200 -> 0 | M200: ='2_Upravený'!M200-'1_Původní'!M200 -> 0 | N200: ='2_Upravený'!N200-'1_Původní'!N200 -> 0 | O200: ='2_Upravený'!O200-'1_Původní'!O200 -> 27096.6044 | P200: 183619.6609
B201: =IF('2_Upravený'!B201="","",'2_Upravený'!B201) -> 8580 | C201: =IF('2_Upravený'!C201="","",'2_Upravený'!C201) -> Grant: Doc. MUDr. Martin Doležel, PhD. - ONKOL | D201: ='2_Upravený'!D201-'1_Původní'!D201 -> 0 | E201: ='2_Upravený'!E201-'1_Původní'!E201 -> 0 | F201: ='2_Upravený'!F201-'1_Původní'!F201 -> 0 | G201: ='2_Upravený'!G201-'1_Původní'!G201 -> 162000 | H201: ='2_Upravený'!H201-'1_Původní'!H201 -> 0 | I201: ='2_Upravený'!I201-'1_Původní'!I201 -> 0 | J201: ='2_Upravený'!J201-'1_Původní'!J201 -> 0 | K201: ='2_Upravený'!K201-'1_Původní'!K201 -> 0 | L201: ='2_Upravený'!L201-'1_Původní'!L201 -> 0 | M201: ='2_Upravený'!M201-'1_Původní'!M201 -> 0 | N201: ='2_Upravený'!N201-'1_Původní'!N201 -> 0 | O201: ='2_Upravený'!O201-'1_Původní'!O201 -> 0 | P201: 162000
B202: =IF('2_Upravený'!B202="","",'2_Upravený'!B202) -> 8581 | C202: =IF('2_Upravený'!C202="","",'2_Upravený'!C202) -> Grant: Doc. MUDr. Ondřej Urban, PhD. - II. IK | D202: ='2_Upravený'!D202-'1_Původní'!D202 -> 0 | E202: ='2_Upravený'!E202-'1_Původní'!E202 -> 0 | F202: ='2_Upravený'!F202-'1_Původní'!F202 -> 0 | G202: ='2_Upravený'!G202-'1_Původní'!G202 -> 153000 | H202: ='2_Upravený'!H202-'1_Původní'!H202 -> 0 | I202: ='2_Upravený'!I202-'1_Původní'!I202 -> 0 | J202: ='2_Upravený'!J202-'1_Původní'!J202 -> 0 | K202: ='2_Upravený'!K202-'1_Původní'!K202 -> 0 | L202: ='2_Upravený'!L202-'1_Původní'!L202 -> 0 | M202: ='2_Upravený'!M202-'1_Původní'!M202 -> 0 | N202: ='2_Upravený'!N202-'1_Původní'!N202 -> 0 | O202: ='2_Upravený'!O202-'1_Původní'!O202 -> 0 | P202: 153000
B203: =IF('2_Upravený'!B203="","",'2_Upravený'!B203) -> 8582 | C203: =IF('2_Upravený'!C203="","",'2_Upravený'!C203) -> Grant: MUDr. Tomáš Skála, PhD. FESC - I. IK | D203: ='2_Upravený'!D203-'1_Původní'!D203 -> 0 | E203: ='2_Upravený'!E203-'1_Původní'!E203 -> 0 | F203: ='2_Upravený'!F203-'1_Původní'!F203 -> 0 | G203: ='2_Upravený'!G203-'1_Původní'!G203 -> 57000 | H203: ='2_Upravený'!H203-'1_Původní'!H203 -> 0 | I203: ='2_Upravený'!I203-'1_Původní'!I203 -> 0 | J203: ='2_Upravený'!J203-'1_Původní'!J203 -> 0 | K203: ='2_Upravený'!K203-'1_Původní'!K203 -> 0 | L203: ='2_Upravený'!L203-'1_Původní'!L203 -> 0 | M203: ='2_Upravený'!M203-'1_Původní'!M203 -> 0 | N203: ='2_Upravený'!N203-'1_Původní'!N203 -> 0 | O203: ='2_Upravený'!O203-'1_Původní'!O203 -> 0 | P203: 57000
B204: =IF('2_Upravený'!B204="","",'2_Upravený'!B204) ->  | C204: =IF('2_Upravený'!C204="","",'2_Upravený'!C204) ->  | D204: ='2_Upravený'!D204-'1_Původní'!D204 -> 0 | E204: ='2_Upravený'!E204-'1_Původní'!E204 -> 0 | F204: ='2_Upravený'!F204-'1_Původní'!F204 -> 0 | G204: ='2_Upravený'!G204-'1_Původní'!G204 -> 0 | H204: ='2_Upravený'!H204-'1_Původní'!H204 -> 0 | I204: ='2_Upravený'!I204-'1_Původní'!I204 -> 0 | J204: ='2_Upravený'!J204-'1_Původní'!J204 -> 0 | K204: ='2_Upravený'!K204-'1_Původní'!K204 -> 0 | L204: ='2_Upravený'!L204-'1_Původní'!L204 -> 0 | M204: ='2_Upravený'!M204-'1_Původní'!M204 -> 0 | N204: ='2_Upravený'!N204-'1_Původní'!N204 -> 0 | O204: ='2_Upravený'!O204-'1_Původní'!O204 -> 0 | P204: 0
A206: 67102002 | B206: Transfery jiného poskytovatele - VaV mzdové | D206: =SUM(D240:D240) -> 0 | E206: 0 | F206: 0 | G206: 0 | H206: 0 | I206: 0 | J206: 0 | K206: 0 | L206: 0 | M206: 0 | N206: 0 | O206: 0 | P206: 0
B207: =IF('2_Upravený'!B207="","",'2_Upravený'!B207) -> 8542 | C207: =IF('2_Upravený'!C207="","",'2_Upravený'!C207) -> Prof. MUDr. Jiří Ehrmann, Ph.D. - PATOL | D207: ='2_Upravený'!D207-'1_Původní'!D207 -> 0 | E207: ='2_Upravený'!E207-'1_Původní'!E207 -> 0 | F207: ='2_Upravený'!F207-'1_Původní'!F207 -> 0 | G207: ='2_Upravený'!G207-'1_Původní'!G207 -> 0 | H207: ='2_Upravený'!H207-'1_Původní'!H207 -> 0 | I207: ='2_Upravený'!I207-'1_Původní'!I207 -> 0 | J207: ='2_Upravený'!J207-'1_Původní'!J207 -> 0 | K207: ='2_Upravený'!K207-'1_Původní'!K207 -> -263537.4162 | L207: ='2_Upravený'!L207-'1_Původní'!L207 -> 0 | M207: ='2_Upravený'!M207-'1_Původní'!M207 -> 0 | N207: ='2_Upravený'!N207-'1_Původní'!N207 -> 0 | O207: ='2_Upravený'!O207-'1_Původní'!O207 -> 9852.01 | P207: =SUM(D207:O207) -> -253685.4062
B208: =IF('2_Upravený'!B208="","",'2_Upravený'!B208) -> 8544 | C208: =IF('2_Upravený'!C208="","",'2_Upravený'!C208) -> MUDr. Jana Volejníková, Ph.D. - DK | D208: ='2_Upravený'!D208-'1_Původní'!D208 -> 0 | E208: ='2_Upravený'!E208-'1_Původní'!E208 -> 0 | F208: ='2_Upravený'!F208-'1_Původní'!F208 -> 0 | G208: ='2_Upravený'!G208-'1_Původní'!G208 -> 0 | H208: ='2_Upravený'!H208-'1_Původní'!H208 -> 0 | I208: ='2_Upravený'!I208-'1_Původní'!I208 -> 0 | J208: ='2_Upravený'!J208-'1_Původní'!J208 -> 0 | K208: ='2_Upravený'!K208-'1_Původní'!K208 -> -204973.546 | L208: ='2_Upravený'!L208-'1_Původní'!L208 -> 0 | M208: ='2_Upravený'!M208-'1_Původní'!M208 -> 0 | N208: ='2_Upravený'!N208-'1_Původní'!N208 -> 0 | O208: ='2_Upravený'!O208-'1_Původní'!O208 -> 26868.154 | P208: =SUM(D208:O208) -> -178105.392
B209: =IF('2_Upravený'!B209="","",'2_Upravený'!B209) -> 8551 | C209: =IF('2_Upravený'!C209="","",'2_Upravený'!C209) -> Doc. MUDr. Vladimír Študent, PhD. - UROL | D209: ='2_Upravený'!D209-'1_Původní'!D209 -> 0 | E209: ='2_Upravený'!E209-'1_Původní'!E209 -> 0 | F209: ='2_Upravený'!F209-'1_Původní'!F209 -> 0 | G209: ='2_Upravený'!G209-'1_Původní'!G209 -> 0 | H209: ='2_Upravený'!H209-'1_Původní'!H209 -> 0 | I209: ='2_Upravený'!I209-'1_Původní'!I209 -> 0 | J209: ='2_Upravený'!J209-'1_Původní'!J209 -> 0 | K209: ='2_Upravený'!K209-'1_Původní'!K209 -> -337929.3596 | L209: ='2_Upravený'!L209-'1_Původní'!L209 -> 0 | M209: ='2_Upravený'!M209-'1_Původní'!M209 -> 0 | N209: ='2_Upravený'!N209-'1_Původní'!N209 -> 0 | O209: ='2_Upravený'!O209-'1_Původní'!O209 -> 1.6857 | P209: -337927.6739
B210: =IF('2_Upravený'!B210="","",'2_Upravený'!B210) -> 8552 | C210: =IF('2_Upravený'!C210="","",'2_Upravený'!C210) -> Doc. MUDr. Jiří Minařík, PhD. - HOK | D210: ='2_Upravený'!D210-'1_Původní'!D210 -> 0 | E210: ='2_Upravený'!E210-'1_Původní'!E210 -> 0 | F210: ='2_Upravený'!F210-'1_Původní'!F210 -> 0 | G210: ='2_Upravený'!G210-'1_Původní'!G210 -> 0 | H210: ='2_Upravený'!H210-'1_Původní'!H210 -> 0 | I210: ='2_Upravený'!I210-'1_Původní'!I210 -> 0 | J210: ='2_Upravený'!J210-'1_Původní'!J210 -> 0 | K210: ='2_Upravený'!K210-'1_Původní'!K210 -> -195476.7021 | L210: ='2_Upravený'!L210-'1_Původní'!L210 -> 0 | M210: ='2_Upravený'!M210-'1_Původní'!M210 -> 0 | N210: ='2_Upravený'!N210-'1_Původní'!N210 -> 0 | O210: ='2_Upravený'!O210-'1_Původní'!O210 -> 0 | P210: -195476.7021
B211: =IF('2_Upravený'!B211="","",'2_Upravený'!B211) -> 8553 | C211: =IF('2_Upravený'!C211="","",'2_Upravený'!C211) -> MUDr. Hana Študentová, Ph.D. - ONKO | D211: ='2_Upravený'!D211-'1_Původní'!D211 -> 0 | E211: ='2_Upravený'!E211-'1_Původní'!E211 -> 0 | F211: ='2_Upravený'!F211-'1_Původní'!F211 -> 0 | G211: ='2_Upravený'!G211-'1_Původní'!G211 -> 0 | H211: ='2_Upravený'!H211-'1_Původní'!H211 -> 0 | I211: ='2_Upravený'!I211-'1_Původní'!I211 -> 0 | J211: ='2_Upravený'!J211-'1_Původní'!J211 -> -432106.3942 | K211: ='2_Upravený'!K211-'1_Původní'!K211 -> 0 | L211: ='2_Upravený'!L211-'1_Původní'!L211 -> 0 | M211: ='2_Upravený'!M211-'1_Původní'!M211 -> 0 | N211: ='2_Upravený'!N211-'1_Původní'!N211 -> 0 | O211: ='2_Upravený'!O211-'1_Původní'!O211 -> 5104.9493 | P211: -427001.4449
B212: =IF('2_Upravený'!B212="","",'2_Upravený'!B212) -> 8555 | C212: =IF('2_Upravený'!C212="","",'2_Upravený'!C212) -> Doc. RNDr. Radek Vrtěl, PhD. - GENETIKA | D212: ='2_Upravený'!D212-'1_Původní'!D212 -> 0 | E212: ='2_Upravený'!E212-'1_Původní'!E212 -> 0 | F212: ='2_Upravený'!F212-'1_Původní'!F212 -> 0 | G212: ='2_Upravený'!G212-'1_Původní'!G212 -> 0 | H212: ='2_Upravený'!H212-'1_Původní'!H212 -> 0 | I212: ='2_Upravený'!I212-'1_Původní'!I212 -> 0 | J212: ='2_Upravený'!J212-'1_Původní'!J212 -> 0 | K212: ='2_Upravený'!K212-'1_Původní'!K212 -> -477216.4024 | L212: ='2_Upravený'!L212-'1_Původní'!L212 -> 0 | M212: ='2_Upravený'!M212-'1_Původní'!M212 -> 0 | N212: ='2_Upravený'!N212-'1_Původní'!N212 -> 0 | O212: ='2_Upravený'!O212-'1_Původní'!O212 -> 0 | P212: -477216.4024
B213: =IF('2_Upravený'!B213="","",'2_Upravený'!B213) -> 8556 | C213: =IF('2_Upravený'!C213="","",'2_Upravený'!C213) -> MUDr. Tomáš Veverka, PhD. - NEUROL | D213: ='2_Upravený'!D213-'1_Původní'!D213 -> 0 | E213: ='2_Upravený'!E213-'1_Původní'!E213 -> 0 | F213: ='2_Upravený'!F213-'1_Původní'!F213 -> 0 | G213: ='2_Upravený'!G213-'1_Původní'!G213 -> 0 | H213: ='2_Upravený'!H213-'1_Původní'!H213 -> 0 | I213: ='2_Upravený'!I213-'1_Původní'!I213 -> 0 | J213: ='2_Upravený'!J213-'1_Původní'!J213 -> 0 | K213: ='2_Upravený'!K213-'1_Původní'!K213 -> -565062.2078 | L213: ='2_Upravený'!L213-'1_Původní'!L213 -> 0 | M213: ='2_Upravený'!M213-'1_Původní'!M213 -> 0 | N213: ='2_Upravený'!N213-'1_Původní'!N213 -> 0 | O213: ='2_Upravený'!O213-'1_Původní'!O213 -> 25021.1603 | P213: -540041.0475
... 33 more rows

Sheet CisNS (hidden)
A1: pracv | B1: pracvt
A2: 0101 | B2: Vedení klinického pracoviště
A3: 0102
A4: 0103
A5: 0104 | B5: OP - Interaktivní kardiologie-moderní výukové metody
A6: 0107 | B6: IOP- Mod.obn.přistr.vyb.komplex.kardiovas.centra
A7: 0111 | B7: Lůžkové oddělení 1
A8: 0112 | B8: Lůžkové oddělení
A9: 0113 | B9: Lůžkové oddělení 4
A10: 0115 | B10: Lůžkové oddělení ECMO
A11: 0116 | B11: Lůžkové oddělení COVID 19
A12: 0117 | B12: 1IK: lůžkové oddělení
A13: 0121 | B13: Ambulance
A14: 0122 | B14: Ambulance - PAH
A15: 0123 | B15: Ambulance
A16: 0124 | B16: Ambulance
A17: 0131 | B17: JIP
A18: 0171 | B18: Odd. invaz. vyš. metod-kardiovertery
A19: 0172 | B19: Katetrizační sál
A20: 0176 | B20: IROP - Návazná péče
A21: 0182 | B21: Rezidenti 2015 - nelékařské obory
A22: 0183 | B22: Rezidenti 2016 - ošetřovatelská a intenzivní péče
A23: 0184 | B23: 1IK: rezidenti 2019 - nelékařské obory
A24: 0185 | B24: Rezidenti 2018 - nelékařské obory
A25: 0187 | B25: 1IK: rezidenti 2013 - ošetřovatelská péče
A26: 0188 | B26: Rezidenti 2017 - nelékařské obory
A27: 0189 | B27: Rezidenti 2014 - nelékařské obory
A28: 0194 | B28: Centrum - I.interna
A29: 0201 | B29: Vedení klinického pracoviště gastroenterologiie
A30: 0204 | B30: IOP - Mod.obn.přístr.vyb.centra komplexní onkologické péče
A31: 0205 | B31: IOP - Mod.obn.přístr.vyb.traumatologického c.
A32: 0206 | B32: IOP - Mod.tech.vyb.v oblasti prevence nozokomiál.infek.
A33: 0213 | B33: Lůžkové oddělení 30C
A34: 0216 | B34: Metabolická jednotka 30M
A35: 0221 | B35: Ambulance
A36: 0226
A37: 0231 | B37: JIP 30D
A38: 0266 | B38: Pracoviště DK COS
A39: 0271 | B39: Endoskopie
A40: 0272 | B40: Dospávací hala
A41: 0276 | B41: IROP - Návazná péče
A42: 0284 | B42: 2IK-GER: rezidenti 2019 - nelékařské obory
A43: 0286 | B43: Rezidenti 2018 - lékaři
A44: 0294 | B44: Centrum - II.interna
A45: 0301 | B45: Vedení klinického pracoviště
A46: 0306 | B46: IOP - Mod.tech.vyb.v oblasti prevence nozokomiál.infek.
A47: 0311 | B47: Lůžkové oddělení 39A + 39R
A48: 0312 | B48: Lůžkové oddělení 39B + 39C
A49: 0313 | B49: 3IK: COVID - ORT
A50: 0321 | B50: Ambulance
A51: 0322 | B51: Ambulance - podiatrie
A52: 0331 | B52: JIP 39D
A53: 0352 | B53: Hemodialyzační středisko
A54: 0353 | B54: CAPD
A55: 0376 | B55: IROP - Návazná péče
A56: 0384 | B56: Rezidenti 2010 projekt č. 1 (lékaři)
A57: 0386 | B57: 3IK: Rezidenti 2019 - lékaři
A58: 0387 | B58: 3IK: Rezidenti 2020 - lékaři
A59: 0394 | B59: Centrum - III. interna
A60: 0401 | B60: Vedení klinického pracoviště
A61: 0404 | B61: IOP - Mod.obn.přístr.vyb.centra komplexní onkologické péče
A62: 0406 | B62: IOP - Mod.tech.vyb.v oblasti prevence nozokomiál.infek.
A63: 0411 | B63: Lůžkové oddělení 8
A64: 0412 | B64: Lůžkové oddělení 9 + 9P
A65: 0413 | B65: Lůžkové oddělení 3
A66: 0414 | B66: Lůžkové oddělení 4
A67: 0421 | B67: Ambulance
A68: 0422 | B68: Ambulance
A69: 0432 | B69: JIP 6
A70: 0464 | B70: Pracoviště COS
A71: 0466 | B71: Pracoviště DK COS
A72: 0471 | B72: Odd. invaz. vyš. metotody-endoskopie
A73: 0476 | B73: IROP - Návazná péče
A74: 0483 | B74: Rezidenti 2016 - ošetřovatelská a intenzivní péče
A75: 0484 | B75: 1CHIR: rezidenti 2019 - nelékařské obory
A76: 0487 | B76: 1CHIR: rezidenti 2013 - ošetřovatelská péče
A77: 0489 | B77: Rezidenti 2014 - nelékařské obory
A78: 0499 | B78: Rezidenti
A79: 0501 | B79: Vedení klinického pracoviště
A80: 0507 | B80: IOP- Mod.obn.přistr.vyb.komplex.kardiovas.centra
A81: 0511 | B81: Lůžkové oddělení 37
A82: 0521 | B82: Ambulance
A83: 0532 | B83: JIP 37A
A84: 0564 | B84: Pracoviště COS
A85: 0566 | B85: Pracoviště DK COS
A86: 0601 | B86: Vedení klinického pracoviště
A87: 0604 | B87: IOP - Mod.obn.přístr.vyb.centra komplexní onkologické péče
A88: 0605 | B88: IOP - Mod.obn.přístr.vyb.traumatologického c.
A89: 0606 | B89: IOP - Mod.tech.vyb.v oblasti prevence nozokomiál.infek.
A90: 0609 | B90: IOP - Mod.obn.přístr.vyb.cerebrovaskulárního centra FNOL
A91: 0611 | B91: Lůžkové oddělení 34
A92: 0612 | B92: Lůžkové oddělení 36A
A93: 0621 | B93: Ambulance
A94: 0631 | B94: JIP
A95: 0662 | B95: Operační sál - lokální
A96: 0666 | B96: Pracoviště DK COS
A97: 0676 | B97: IROP - Návazná péče
A98: 0682 | B98: Rezidenti 2015 - nelékařské obory
A99: 0683 | B99: Rezidenti 2016 - ošetřovatelská a intenzivní péče
A100: 0684 | B100: NCHIR: rezidenti 2019 - nelékařské obory
A101: 0685 | B101: Rezidenti 2018
A102: 0687 | B102: NCHIR: rezidenti 2013 - ošetřovatelská péče
A103: 0688 | B103: Rezidenti 2017 - nelékařské obory
A104: 0689 | B104: Rezidenti 2014 - nelékařské obory
A105: 0701 | B105: Vedení klinického pracoviště
A106: 0705 | B106: IOP - Mod.obn.přístr.vyb.traumatologického c.
A107: 0706 | B107: IOP - Mod.tech.vyb.v oblasti prevence nozokomiál.infek.
A108: 0709 | B108: IOP - Mod.obn.přístr.vyb.cerebrovaskulárního centra FNOL
A109: 0715 | B109: Lůžkové oddělení ECMO
A110: 0721 | B110: Ambulance
A111: 0731 | B111: JIP
A112: 0732 | B112: NIOP
A113: 0733 | B113: DIOP
A114: 0762 | B114: Operační sál - lok. prac. anesteziologů
A115: 0764 | B115: Pracoviště COS
A116: 0765 | B116: Dospávací hala KAR
A117: 0766 | B117: Pracoviště DK COS
A118: 0775 | B118: IOP - Mod.obn.přístr.vyb.traumatologického cen. II
A119: 0776 | B119: IROP - Návazná péče
A120: 0782 | B120: Rezidenti 2015 - nelékařské obory
A121: 0783 | B121: Rezidenti 2016 - ošetřovatelská a intenzivní péče
A122: 0785 | B122: Rezidenti 2018
A123: 0787 | B123: KARIM: rezidenti 2013 - ošetřovatelská péče
A124: 0788 | B124: Rezidenti 2017 - nelékařské obory
A125: 0789 | B125: Rezidenti 2014 - nelékařské obory
A126: 0794 | B126: Centrum - KAR
A127: 0801 | B127: Vedení klinického pracoviště
A128: 0802 | B128: ZT pro Perinatologické centrum - IISSP
A129: 0806 | B129: IOP - Mod.tech.vyb.v oblasti prevence nozokomiál.infek.
A130: 0811 | B130: Lůžkové oddělení 19B (šestinedělí)
A131: 0817 | B131: Lůžkové oddělení 17 (operativní gyn.)
A132: 0818 | B132: Intermediální jednotka (17A)
A133: 0821 | B133: Ambulance
A134: 0822 | B134: Ambulance - fetální medicína
A135: 0823 | B135: Centrum asistované reprodukce
A136: 0831 | B136: JIP
A137: 0832 | B137: JIP 19 (porodní sál)
A138: 0841 | B138: Laboratoř cytologická
A139: 0862 | B139: Porodní sál - lokální
A140: 0863 | B140: Operační sál OP 17 (z 08 62)
A141: 0864 | B141: Pracoviště COS
A142: 0873 | B142: IROP - Mod.obn.přístr.vyb.perinatologického centra
A143: 0874 | B143: IROP - Mod.obn.přístr.vyb.onkogynekologického centra
A144: 0884 | B144: PORGYN: rezidenti 2019 - nelékařské obory
A145: 0885 | B145: Rezidenti 2018
A146: 0886 | B146: Rezidenti 2018
A147: 0901 | B147: Vedení klinického pracoviště
A148: 0902 | B148: ZT pro Perinatologické centrum - IISSP
A149: 0903 | B149: Norský fond - projekt 2009
A150: 0904 | B150: Norský fond - projekt 2015
A151: 0911 | B151: Lůžkové oddělení 16C + 16B +16BD
A152: 0912
A153: 0921 | B153: Ambulance
A154: 0931 | B154: JIP 16A +16D
A155: 0932 | B155: JIP
A156: 0973 | B156: IROP - Mod.obn.přístr.vyb.perinatologického centra
A157: 0982 | B157: Rezidenti 2015 - nelékařské obory
A158: 0984 | B158: NOVO: Rezidenti 2019 - nelékařské obory
A159: 0988 | B159: Rezidenti 2017 - nelékařské obory
A160: 0994 | B160: Centrum - novorozenecké
A161: 1001 | B161: Vedení klinického pracoviště
A162: 1004 | B162: IOP - Mod.obn.přístr.vyb.c.k.onkologické p.
A163: 1006 | B163: IOP - Mod.tech.vyb.v oblasti prevence nozokomiál.infek.
A164: 1008 | B164: IOP - Mod.a obnova přístroj.vyb.komplex.rehab.péče
A165: 1011 | B165: Lůžkové oddělení 28B
A166: 1012 | B166: Lůžkové oddělení 28C vč.dospávací haly
A167: 1013 | B167: Lůžkové oddělení 21A
A168: 1014 | B168: Lůžkové oddělení 21B
A169: 1015 | B169: Lůžkové oddělení 28D
A170: 1021 | B170: Ambulance
A171: 1022 | B171: LPS dětská
A172: 1023 | B172: Praktický lékař pro děti a dorost
A173: 1026
A174: 1031 | B174: JIP 21B
A175: 1032 | B175: JIP
A176: 1033 | B176: JIP 21C (pro větší děti)
A177: 1041 | B177: LEM
A178: 1042 | B178: LEM
A179: 1066 | B179: Pracoviště DK COS
A180: 1071 | B180: Endoskopie
A181: 1076 | B181: IROP - Návazná péče
A182: 1083 | B182: Rezidenti 2016 - ošetřovatelská a intenzivní péče
A183: 1084 | B183: DK: rezidenti 2010 projekt č. 1 (lékaři)
A184: 1086 | B184: DK: Rezidenti 2019 - lékaři
A185: 1087 | B185: DK: rezidenti 2020 - lékaři
A186: 1089 | B186: Rezidenti 2014 - nelékařské obory
A187: 1094 | B187: Centrum - DK
A188: 1096 | B188: OPVaVI - NPU I (projekt ÚMTM)
A189: 1097 | B189: OPVaVI - projekt ÚMTM (pouze os.nákl.)
A190: 1101 | B190: Vedení klinického pracoviště
A191: 1102 | B191: ZT pro ORT - IISSP
A192: 1105 | B192: IOP - Mod.obn.přístr.vyb.traumatologického c.
A193: 1106 | B193: IOP - Mod.tech.vyb.v oblasti prevence nozokomiál.infek.
A194: 1108 | B194: IOP - Mod.a obnova přístroj.vyb.komplex.rehab.péče
A195: 1111 | B195: Lůžkové oddělení 29A
A196: 1112 | B196: Lůžkové oddělení 29B
A197: 1113 | B197: Lůžkové oddělení 29C (6 lůžek KÚČOCH)
A198: 1121 | B198: Ambulance
A199: 1131 | B199: JIP 29A
A200: 1151 | B200: Diagnostika poruch pohyb. funkcí - výzkum
... 842 more rows
